Workbook

Sheet Main
B10: 2021-08-27
B12: Sheet No. | C12: Template Name | D12: Summary
B13: 1 | C13: Future Intra | D13: For Intraday trading in F&O segment
B14: 2 | C14: Cash Intra | D14: For Intraday trading in cash market segment
B15: 3 | C15: Mid-cap Intra | D15: For Intraday trading in Mid-cap stocks
B16: 4 | C16: Bulk Deals | D16: Reveals Bulk Deals carried on NSE & BSE
B17: 5 | C17: Call Tracker
K27: `

Sheet Future Intra
M5: Back to Main Page
A6: FOR INTRA DAY TRADING | L6: =Main!B10 -> 2021-08-27
A9: Sr.no | B9: Sector | C9: Scrip | D9: Expiry Date | E9: CLOSE RATE | F9: Pivot Point | G9: Supports | J9: Resistances
E10: Point | F10: Point | G10: S1 | H10: S2 | I10: S3 | J10: R1 | K10: R2 | L10: R3 | M10: HIGH | N10: LOW | O10: OI | P10: % Change in OI
A11: 1 | B11: Index | C11: BANKNIFTY | D11: 2021-09-30 | E11: 35738.25 | F11: 35727.08 | G11: 35574.72 | H11: 35411.18 | I11: 35258.82 | J11: 35890.62 | K11: 36042.98 | L11: 36206.52 | M11: 35879.45 | N11: 35563.55 | O11: 1524950 | P11: -24.82%
A12: 2 | B12: Index | C12: NIFTY | D12: 2021-09-30 | E12: 16647.65 | F12: 16653.67 | G12: 16605.98 | H12: 16564.32 | I12: 16516.63 | J12: 16695.33 | K12: 16743.02 | L12: 16784.68 | M12: 16701.35 | N12: 16612 | O12: 13056400 | P12: -11.50%
A13: 3 | B13: Index | C13: FINNIFTY | D13: 2021-09-30 | E13: 17488.90 | F13: 17470.98 | G13: 17411.47 | H13: 17334.03 | I13: 17274.52 | J13: 17548.42 | K13: 17607.93 | L13: 17685.37 | M13: 17530.5 | N13: 17393.55 | O13: 2520 | P13: -43.75%
A14: 4 | B14: Chemical | C14: AARTIIND | D14: 2021-09-30 | E14: 905.55 | F14: 909.50 | G14: 899.05 | H14: 892.55 | I14: 882.10 | J14: 916.00 | K14: 926.45 | L14: 932.95 | M14: 919.95 | N14: 903 | O14: 2236350 | P14: -18.60%
A15: 5 | B15: Textile | C15: ABFRL | D15: 2021-09-30 | E15: 201.20 | F15: 200.75 | G15: 198.55 | H15: 195.90 | I15: 193.70 | J15: 203.40 | K15: 205.60 | L15: 208.25 | M15: 202.95 | N15: 198.1 | O15: 9107800 | P15: -9.79%
A16: 6 | B16: Cement | C16: ACC | D16: 2021-09-30 | E16: 2280.15 | F16: 2277.68 | G16: 2264.52 | H16: 2248.88 | I16: 2235.72 | J16: 2293.32 | K16: 2306.48 | L16: 2322.12 | M16: 2290.85 | N16: 2262.05 | O16: 2773000 | P16: -6.29%
A17: 7 | B17: Others | C17: ADANIENT | D17: 2021-09-30 | E17: 1481.45 | F17: 1483.35 | G17: 1464.50 | H17: 1447.55 | I17: 1428.70 | J17: 1500.30 | K17: 1519.15 | L17: 1536.10 | M17: 1502.2 | N17: 1466.4 | O17: 16376000 | P17: -6.35%
A18: 8 | B18: Others | C18: ADANIPORTS | D18: 2021-09-30 | E18: 725.05 | F18: 726.85 | G18: 718.20 | H18: 711.35 | I18: 702.70 | J18: 733.70 | K18: 742.35 | L18: 749.20 | M18: 735.5 | N18: 720 | O18: 86726250 | P18: -1.69%
A19: 9 | B19: Pharma | C19: ALKEM | D19: 2021-09-30 | E19: 3868.25 | F19: 3851.28 | G19: 3822.57 | H19: 3776.88 | I19: 3748.17 | J19: 3896.97 | K19: 3925.68 | L19: 3971.37 | M19: 3880 | N19: 3805.6 | O19: 394600 | P19: -14.85%
A20: 10 | B20: Automobile | C20: AMARAJABAT | D20: 2021-09-30 | E20: 668.10 | F20: 672.18 | G20: 662.87 | H20: 657.63 | I20: 648.32 | J20: 677.42 | K20: 686.73 | L20: 691.97 | M20: 681.5 | N20: 666.95 | O20: 8877000 | P20: -5.40%
A21: 11 | B21: Cement | C21: AMBUJACEM | D21: 2021-09-30 | E21: 397.95 | F21: 397.15 | G21: 393.30 | H21: 388.65 | I21: 384.80 | J21: 401.80 | K21: 405.65 | L21: 410.30 | M21: 401 | N21: 392.5 | O21: 14175000 | P21: -16.13%
A22: 12 | B22: Pharma | C22: APLLTD | D22: 2021-09-30 | E22: 737.85 | F22: 743.58 | G22: 729.72 | H22: 721.58 | I22: 707.72 | J22: 751.72 | K22: 765.58 | L22: 773.72 | M22: 757.45 | N22: 735.45 | O22: 1788050 | P22: -8.42%
A23: 13 | B23: Others | C23: APOLLOHOSP | D23: 2021-09-30 | E23: 4725.95 | F23: 4729.05 | G23: 4667.05 | H23: 4608.15 | I23: 4546.15 | J23: 4787.95 | K23: 4849.95 | L23: 4908.85 | M23: 4791.05 | N23: 4670.15 | O23: 2105750 | P23: -14.92%
A24: 14 | B24: Automobile | C24: APOLLOTYRE | D24: 2021-09-30 | E24: 209.00 | F24: 208.88 | G24: 206.92 | H24: 204.83 | I24: 202.87 | J24: 210.97 | K24: 212.93 | L24: 215.02 | M24: 210.85 | N24: 206.8 | O24: 13565000 | P24: -5.11%
A25: 15 | B25: Automobile | C25: ASHOKLEY | D25: 2021-09-30 | E25: 117.40 | F25: 117.83 | G25: 116.27 | H25: 115.13 | I25: 113.57 | J25: 118.97 | K25: 120.53 | L25: 121.67 | M25: 119.4 | N25: 116.7 | O25: 35599500 | P25: -7.04%
A26: 16 | B26: Others | C26: ASTRAL | D26: 2021-09-30 | E26: 1977.10 | F26: 1976.80 | G26: 1952.90 | H26: 1928.70 | I26: 1904.80 | J26: 2001.00 | K26: 2024.90 | L26: 2049.10 | M26: 2000.7 | N26: 1952.6 | O26: 350625 | P26: -1.85%
A27: 17 | B27: FMCG | C27: ASIANPAINT | D27: 2021-09-30 | E27: 3045.05 | F27: 3055.93 | G27: 3021.97 | H27: 2998.88 | I27: 2964.92 | J27: 3079.02 | K27: 3112.98 | L27: 3136.07 | M27: 3089.9 | N27: 3032.85 | O27: 4835100 | P27: -1.49%
A28: 18 | B28: Banking | C28: AUBANK | D28: 2021-09-30 | E28: 1356.90 | F28: 1354.37 | G28: 1333.73 | H28: 1310.57 | I28: 1289.93 | J28: 1377.53 | K28: 1398.17 | L28: 1421.33 | M28: 1375 | N28: 1331.2 | O28: 2130000 | P28: -6.70%
A29: 19 | B29: Pharma | C29: AUROPHARMA | D29: 2021-09-30 | E29: 702.00 | F29: 701.60 | G29: 694.20 | H29: 686.40 | I29: 679.00 | J29: 709.40 | K29: 716.80 | L29: 724.60 | M29: 709 | N29: 693.8 | O29: 17149600 | P29: -2.95%
A30: 20 | B30: Banking | C30: AXISBANK | D30: 2021-09-30 | E30: 747.90 | F30: 744.53 | G30: 739.37 | H30: 730.83 | I30: 725.67 | J30: 753.07 | K30: 758.23 | L30: 766.77 | M30: 749.7 | N30: 736 | O30: 26289600 | P30: -2.74%
A31: 21 | B31: Automobile | C31: BAJAJ-AUTO | D31: 2021-09-30 | E31: 3698.75 | F31: 3705.35 | G31: 3678.95 | H31: 3659.15 | I31: 3632.75 | J31: 3725.15 | K31: 3751.55 | L31: 3771.35 | M31: 3731.75 | N31: 3685.55 | O31: 2004250 | P31: -4.85%
A32: 22 | B32: Finance | C32: BAJAJFINSV | D32: 2021-09-30 | E32: 16013.45 | F32: 15974.55 | G32: 15789.10 | H32: 15564.75 | I32: 15379.30 | J32: 16198.90 | K32: 16384.35 | L32: 16608.70 | M32: 16160 | N32: 15750.2 | O32: 796200 | P32: -15.91%
A33: 23 | B33: Finance | C33: BAJFINANCE | D33: 2021-09-30 | E33: 6959.95 | F33: 6952.82 | G33: 6892.13 | H33: 6824.32 | I33: 6763.63 | J33: 7020.63 | K33: 7081.32 | L33: 7149.13 | M33: 7013.5 | N33: 6885 | O33: 4027500 | P33: -7.89%
A34: 24 | B34: Automobile | C34: BALKRISIND | D34: 2021-09-30 | E34: 2276.80 | F34: 2275.10 | G34: 2253.20 | H34: 2229.60 | I34: 2207.70 | J34: 2298.70 | K34: 2320.60 | L34: 2344.20 | M34: 2297 | N34: 2251.5 | O34: 1202400 | P34: -6.53%
A35: 25 | B35: Banking | C35: BANDHANBNK | D35: 2021-09-30 | E35: 265.60 | F35: 267.00 | G35: 262.50 | H35: 259.40 | I35: 254.90 | J35: 270.10 | K35: 274.60 | L35: 277.70 | M35: 271.5 | N35: 263.9 | O35: 29143800 | P35: -4.17%
A36: 26 | B36: Banking | C36: BANKBARODA | D36: 2021-09-30 | E36: 74.35 | F36: 74.78 | G36: 73.67 | H36: 72.98 | I36: 71.87 | J36: 75.47 | K36: 76.58 | L36: 77.27 | M36: 75.9 | N36: 74.1 | O36: 164080800 | P36: -9.08%
A37: 27 | B37: FMCG | C37: BATAINDIA | D37: 2021-09-30 | E37: 1715.05 | F37: 1720.68 | G37: 1702.37 | H37: 1689.68 | I37: 1671.37 | J37: 1733.37 | K37: 1751.68 | L37: 1764.37 | M37: 1739 | N37: 1708 | O37: 1756150 | P37: -8.80%
A38: 28 | B38: Capital_Goods | C38: BEL | D38: 2021-09-30 | E38: 180.80 | F38: 180.37 | G38: 179.08 | H38: 177.37 | I38: 176.08 | J38: 182.08 | K38: 183.37 | L38: 185.08 | M38: 181.65 | N38: 178.65 | O38: 23415600 | P38: -11.40%
A39: 29 | B39: FMCG | C39: BERGEPAINT | D39: 2021-09-30 | E39: 788.20 | F39: 791.02 | G39: 782.18 | H39: 776.17 | I39: 767.33 | J39: 797.03 | K39: 805.87 | L39: 811.88 | M39: 799.85 | N39: 785 | O39: 4649700 | P39: -4.47%
A40: 30 | B40: Automobile | C40: BHARATFORG | D40: 2021-09-30 | E40: 728.60 | F40: 730.78 | G40: 724.57 | H40: 720.53 | I40: 714.32 | J40: 734.82 | K40: 741.03 | L40: 745.07 | M40: 737 | N40: 726.75 | O40: 8637000 | P40: -3.70%
A41: 31 | B41: Telecom | C41: BHARTIARTL | D41: 2021-09-30 | E41: 589.40 | F41: 597.67 | G41: 578.73 | H41: 568.07 | I41: 549.13 | J41: 608.33 | K41: 627.27 | L41: 637.93 | M41: 616.6 | N41: 587 | O41: 90547218 | P41: -5.76%
A42: 32 | B42: Capital_Goods | C42: BHEL | D42: 2021-09-30 | E42: 52.15 | F42: 52.55 | G42: 51.45 | H42: 50.75 | I42: 49.65 | J42: 53.25 | K42: 54.35 | L42: 55.05 | M42: 53.65 | N42: 51.85 | O42: 111079500 | P42: -9.77%
A43: 33 | B43: Pharma | C43: BIOCON | D43: 2021-09-30 | E43: 341.55 | F43: 344.02 | G43: 338.08 | H43: 334.62 | I43: 328.68 | J43: 347.48 | K43: 353.42 | L43: 356.88 | M43: 349.95 | N43: 340.55 | O43: 17001600 | P43: -5.38%
A44: 34 | B44: Automobile | C44: BOSCHLTD | D44: 2021-09-30 | E44: 13673.45 | F44: 13746.00 | G44: 13553.50 | H44: 13433.55 | I44: 13241.05 | J44: 13865.95 | K44: 14058.45 | L44: 14178.40 | M44: 13938.5 | N44: 13626.05 | O44: 159550 | P44: -12.07%
A45: 35 | B45: Oil_Gas | C45: BPCL | D45: 2021-09-30 | E45: 468.30 | F45: 467.42 | G45: 461.33 | H45: 454.37 | I45: 448.28 | J45: 474.38 | K45: 480.47 | L45: 487.43 | M45: 473.5 | N45: 460.45 | O45: 40674600 | P45: 1.12%
A46: 36 | B46: FMCG | C46: BRITANNIA | D46: 2021-09-30 | E46: 3934.95 | F46: 3910.10 | G46: 3865.80 | H46: 3796.65 | I46: 3752.35 | J46: 3979.25 | K46: 4023.55 | L46: 4092.70 | M46: 3954.4 | N46: 3840.95 | O46: 1320800 | P46: -8.00%
A47: 37 | B47: Pharma | C47: CADILAHC | D47: 2021-09-30 | E47: 541.60 | F47: 543.40 | G47: 538.05 | H47: 534.50 | I47: 529.15 | J47: 546.95 | K47: 552.30 | L47: 555.85 | M47: 548.75 | N47: 539.85 | O47: 19685600 | P47: -12.00%
A48: 38 | B48: Banking | C48: CANBK | D48: 2021-09-30 | E48: 153.55 | F48: 153.93 | G48: 151.87 | H48: 150.18 | I48: 148.12 | J48: 155.62 | K48: 157.68 | L48: 159.37 | M48: 156 | N48: 152.25 | O48: 61317000 | P48: 8.47%
A49: 39 | B49: Finance | C49: CHOLAFIN | D49: 2021-09-30 | E49: 533.20 | F49: 526.82 | G49: 517.63 | H49: 502.07 | I49: 492.88 | J49: 542.38 | K49: 551.57 | L49: 567.13 | M49: 536 | N49: 511.25 | O49: 10166250 | P49: -4.55%
A50: 40 | B50: Pharma | C50: CIPLA | D50: 2021-09-30 | E50: 911.90 | F50: 912.80 | G50: 907.60 | H50: 903.30 | I50: 898.10 | J50: 917.10 | K50: 922.30 | L50: 926.60 | M50: 918 | N50: 908.5 | O50: 12201150 | P50: -6.11%
A51: 41 | B51: Others | C51: COALINDIA | D51: 2021-09-30 | E51: 134.45 | F51: 134.85 | G51: 133.15 | H51: 131.85 | I51: 130.15 | J51: 136.15 | K51: 137.85 | L51: 139.15 | M51: 136.55 | N51: 133.55 | O51: 56817600 | P51: -9.63%
A52: 42 | B52: Technology | C52: COFORGE | D52: 2021-09-30 | E52: 4976.25 | F52: 5011.33 | G52: 4887.87 | H52: 4799.48 | I52: 4676.02 | J52: 5099.72 | K52: 5223.18 | L52: 5311.57 | M52: 5134.8 | N52: 4922.95 | O52: 704800 | P52: -17.59%
A53: 43 | B53: FMCG | C53: COLPAL | D53: 2021-09-30 | E53: 1659.55 | F53: 1661.32 | G53: 1648.23 | H53: 1636.92 | I53: 1623.83 | J53: 1672.63 | K53: 1685.72 | L53: 1697.03 | M53: 1674.4 | N53: 1650 | O53: 2478000 | P53: -6.32%
A54: 44 | B54: Others | C54: CONCOR | D54: 2021-09-30 | E54: 655.30 | F54: 655.28 | G54: 645.72 | H54: 636.13 | I54: 626.57 | J54: 664.87 | K54: 674.43 | L54: 684.02 | M54: 664.85 | N54: 645.7 | O54: 7155414 | P54: -6.23%
A55: 45 | B55: Others | C55: COROMANDEL | D55: 2021-09-30 | E55: 769.70 | F55: 773.92 | G55: 762.83 | H55: 755.97 | I55: 744.88 | J55: 780.78 | K55: 791.87 | L55: 798.73 | M55: 785 | N55: 767.05 | O55: 1346250 | P55: -21.21%
A56: 46 | B56: Banking | C56: CUB | D56: 2021-09-30 | E56: 145.05 | F56: 145.78 | G56: 143.92 | H56: 142.78 | I56: 140.92 | J56: 146.92 | K56: 148.78 | L56: 149.92 | M56: 147.65 | N56: 144.65 | O56: 7241600 | P56: -7.41%
A57: 47 | B57: Capital_Goods | C57: CUMMINSIND | D57: 2021-09-30 | E57: 985.35 | F57: 989.30 | G57: 978.60 | H57: 971.85 | I57: 961.15 | J57: 996.05 | K57: 1006.75 | L57: 1013.50 | M57: 1000 | N57: 982.55 | O57: 2362200 | P57: -29.44%
A58: 48 | B58: FMCG | C58: DABUR | D58: 2021-09-30 | E58: 606.75 | F58: 605.78 | G58: 601.07 | H58: 595.38 | I58: 590.67 | J58: 611.47 | K58: 616.18 | L58: 621.87 | M58: 610.5 | N58: 600.1 | O58: 11140000 | P58: -0.52%
A59: 49 | B59: Chemical | C59: DEEPAKNTR | D59: 2021-09-30 | E59: 2093.55 | F59: 2090.52 | G59: 2078.03 | H59: 2062.52 | I59: 2050.03 | J59: 2106.03 | K59: 2118.52 | L59: 2134.03 | M59: 2103 | N59: 2075 | O59: 2754000 | P59: -4.64%
A60: 50 | B60: Pharma | C60: DIVISLAB | D60: 2021-09-30 | E60: 4867.00 | F60: 4886.75 | G60: 4830.25 | H60: 4793.50 | I60: 4737.00 | J60: 4923.50 | K60: 4980.00 | L60: 5016.75 | M60: 4943.25 | N60: 4850 | O60: 2006600 | P60: -8.04%
A61: 51 | B61: Realty | C61: DLF | D61: 2021-09-30 | E61: 309.15 | F61: 309.33 | G61: 306.12 | H61: 303.08 | I61: 299.87 | J61: 312.37 | K61: 315.58 | L61: 318.62 | M61: 312.55 | N61: 306.3 | O61: 45312300 | P61: -5.24%
A62: 52 | B62: Pharma | C62: DRREDDY | D62: 2021-09-30 | E62: 4521.80 | F62: 4533.27 | G62: 4496.53 | H62: 4471.27 | I62: 4434.53 | J62: 4558.53 | K62: 4595.27 | L62: 4620.53 | M62: 4570 | N62: 4508 | O62: 3205375 | P62: -5.93%
A63: 53 | B63: Automobile | C63: EICHERMOT | D63: 2021-09-30 | E63: 2543.45 | F63: 2545.90 | G63: 2529.55 | H63: 2515.65 | I63: 2499.30 | J63: 2559.80 | K63: 2576.15 | L63: 2590.05 | M63: 2562.25 | N63: 2532 | O63: 4116000 | P63: -6.16%
A64: 54 | B64: Automobile | C64: ESCORTS | D64: 2021-09-30 | E64: 1349.50 | F64: 1346.40 | G64: 1335.10 | H64: 1320.70 | I64: 1309.40 | J64: 1360.80 | K64: 1372.10 | L64: 1386.50 | M64: 1357.7 | N64: 1332 | O64: 5835500 | P64: -9.04%
A65: 55 | B65: Automobile | C65: EXIDEIND | D65: 2021-09-30 | E65: 157.65 | F65: 158.77 | G65: 156.28 | H65: 154.92 | I65: 152.43 | J65: 160.13 | K65: 162.62 | L65: 163.98 | M65: 161.25 | N65: 157.4 | O65: 24411600 | P65: -2.64%
A66: 56 | B66: Banking | C66: FEDERALBNK | D66: 2021-09-30 | E66: 78.35 | F66: 79.08 | G66: 77.42 | H66: 76.48 | I66: 74.82 | J66: 80.02 | K66: 81.68 | L66: 82.62 | M66: 80.75 | N66: 78.15 | O66: 80970000 | P66: -6.44%
A67: 57 | B67: Oil_Gas | C67: GAIL | D67: 2021-09-30 | E67: 143.25 | F67: 143.68 | G67: 141.67 | H67: 140.08 | I67: 138.07 | J67: 145.27 | K67: 147.28 | L67: 148.87 | M67: 145.7 | N67: 142.1 | O67: 32744800 | P67: -1.18%
A68: 58 | B68: Pharma | C68: GLENMARK | D68: 2021-09-30 | E68: 512.65 | F68: 515.53 | G68: 507.52 | H68: 502.38 | I68: 494.37 | J68: 520.67 | K68: 528.68 | L68: 533.82 | M68: 523.55 | N68: 510.4 | O68: 8267350 | P68: -5.94%
A69: 59 | B69: Infrastructure | C69: GMRINFRA | D69: 2021-09-30 | E69: 28.80 | F69: 28.88 | G69: 28.62 | H69: 28.43 | I69: 28.17 | J69: 29.07 | K69: 29.33 | L69: 29.52 | M69: 29.15 | N69: 28.7 | O69: 101002500 | P69: -16.19%
A70: 60 | B70: FMCG | C70: GODREJCP | D70: 2021-09-30 | E70: 1046.50 | F70: 1051.87 | G70: 1027.23 | H70: 1007.97 | I70: 983.33 | J70: 1071.13 | K70: 1095.77 | L70: 1115.03 | M70: 1076.5 | N70: 1032.6 | O70: 4838000 | P70: 2.35%
A71: 61 | B71: Realty | C71: GODREJPROP | D71: 2021-09-30 | E71: 1469.10 | F71: 1460.92 | G71: 1439.43 | H71: 1409.77 | I71: 1388.28 | J71: 1490.58 | K71: 1512.07 | L71: 1541.73 | M71: 1482.4 | N71: 1431.25 | O71: 1866800 | P71: -21.85%
A72: 62 | B72: Pharma | C72: GRANULES | D72: 2021-09-30 | E72: 327.55 | F72: 329.08 | G72: 324.07 | H72: 320.58 | I72: 315.57 | J72: 332.57 | K72: 337.58 | L72: 341.07 | M72: 334.1 | N72: 325.6 | O72: 11194100 | P72: -11.07%
A73: 63 | B73: Cement | C73: GRASIM | D73: 2021-09-30 | E73: 1444.45 | F73: 1448.30 | G73: 1430.35 | H73: 1416.25 | I73: 1398.30 | J73: 1462.40 | K73: 1480.35 | L73: 1494.45 | M73: 1466.25 | N73: 1434.2 | O73: 10269025 | P73: -5.85%
A74: 64 | B74: Oil_Gas | C74: GUJGASLTD | D74: 2021-09-30 | E74: 709.95 | F74: 711.83 | G74: 703.67 | H74: 697.38 | I74: 689.22 | J74: 718.12 | K74: 726.28 | L74: 732.57 | M74: 720 | N74: 705.55 | O74: 1788750 | P74: -11.34%
A75: 65 | B75: Capital_Goods | C75: HAVELLS | D75: 2021-09-30 | E75: 1217.50 | F75: 1188.58 | G75: 1154.02 | H75: 1090.53 | I75: 1055.97 | J75: 1252.07 | K75: 1286.63 | L75: 1350.12 | M75: 1223.15 | N75: 1125.1 | O75: 3996000 | P75: -6.30%
A76: 66 | B76: Technology | C76: HCLTECH | D76: 2021-09-30 | E76: 1169.05 | F76: 1167.62 | G76: 1160.23 | H76: 1151.42 | I76: 1144.03 | J76: 1176.43 | K76: 1183.82 | L76: 1192.63 | M76: 1175 | N76: 1158.8 | O76: 16551500 | P76: -3.03%
A77: 67 | B77: Finance | C77: HDFC | D77: 2021-09-30 | E77: 2708.10 | F77: 2707.45 | G77: 2693.90 | H77: 2679.70 | I77: 2666.15 | J77: 2721.65 | K77: 2735.20 | L77: 2749.40 | M77: 2721 | N77: 2693.25 | O77: 12178200 | P77: -3.11%
A78: 68 | B78: Finance | C78: HDFCAMC | D78: 2021-09-30 | E78: 2988.05 | F78: 2984.02 | G78: 2965.03 | H78: 2942.02 | I78: 2923.03 | J78: 3007.03 | K78: 3026.02 | L78: 3049.03 | M78: 3003 | N78: 2961 | O78: 870000 | P78: -3.23%
A79: 69 | B79: Banking | C79: HDFCBANK | D79: 2021-09-30 | E79: 1557.00 | F79: 1560.57 | G79: 1546.13 | H79: 1535.27 | I79: 1520.83 | J79: 1571.43 | K79: 1585.87 | L79: 1596.73 | M79: 1575 | N79: 1549.7 | O79: 21657350 | P79: -8.41%
A80: 70 | B80: Finance | C80: HDFCLIFE | D80: 2021-09-30 | E80: 700.10 | F80: 698.23 | G80: 693.27 | H80: 686.43 | I80: 681.47 | J80: 705.07 | K80: 710.03 | L80: 716.87 | M80: 703.2 | N80: 691.4 | O80: 21157400 | P80: -4.08%
A81: 71 | B81: Automobile | C81: HEROMOTOCO | D81: 2021-09-30 | E81: 2654.40 | F81: 2663.22 | G81: 2639.98 | H81: 2625.57 | I81: 2602.33 | J81: 2677.63 | K81: 2700.87 | L81: 2715.28 | M81: 2686.45 | N81: 2648.8 | O81: 5139600 | P81: -4.61%
A82: 72 | B82: Metals | C82: HINDALCO | D82: 2021-09-30 | E82: 424.60 | F82: 426.55 | G82: 419.80 | H82: 415.00 | I82: 408.25 | J82: 431.35 | K82: 438.10 | L82: 442.90 | M82: 433.3 | N82: 421.75 | O82: 35879200 | P82: -11.64%
A83: 73 | B83: Oil_Gas | C83: HINDPETRO | D83: 2021-09-30 | E83: 256.10 | F83: 256.57 | G83: 253.88 | H83: 251.67 | I83: 248.98 | J83: 258.78 | K83: 261.47 | L83: 263.68 | M83: 259.25 | N83: 254.35 | O83: 21365100 | P83: -4.15%
A84: 74 | B84: FMCG | C84: HINDUNILVR | D84: 2021-09-30 | E84: 2670.05 | F84: 2673.20 | G84: 2643.25 | H84: 2616.45 | I84: 2586.50 | J84: 2700.00 | K84: 2729.95 | L84: 2756.75 | M84: 2703.15 | N84: 2646.4 | O84: 7107000 | P84: 5.48%
A85: 75 | B85: Finance | C85: IBULHSGFIN | D85: 2021-09-30 | E85: 220.00 | F85: 221.67 | G85: 216.38 | H85: 212.77 | I85: 207.48 | J85: 225.28 | K85: 230.57 | L85: 234.18 | M85: 226.95 | N85: 218.05 | O85: 34456500 | P85: -9.28%
A86: 76 | B86: Banking | C86: ICICIBANK | D86: 2021-09-30 | E86: 700.45 | F86: 698.62 | G86: 693.83 | H86: 687.22 | I86: 682.43 | J86: 705.23 | K86: 710.02 | L86: 716.63 | M86: 703.4 | N86: 692 | O86: 84506125 | P86: 1.03%
A87: 77 | B87: Finance | C87: ICICIGI | D87: 2021-09-30 | E87: 1476.55 | F87: 1475.12 | G87: 1456.43 | H87: 1436.32 | I87: 1417.63 | J87: 1495.23 | K87: 1513.92 | L87: 1534.03 | M87: 1493.8 | N87: 1455 | O87: 1955000 | P87: 0.72%
A88: 78 | B88: Finance | C88: ICICIPRULI | D88: 2021-09-30 | E88: 654.95 | F88: 654.52 | G88: 649.43 | H88: 643.92 | I88: 638.83 | J88: 660.03 | K88: 665.12 | L88: 670.63 | M88: 659.6 | N88: 649 | O88: 5908500 | P88: -4.25%
A89: 79 | B89: Telecom | C89: IDEA | D89: 2021-09-30 | E89: 6.00 | F89: 6.07 | G89: 5.83 | H89: 5.67 | I89: 5.43 | J89: 6.23 | K89: 6.47 | L89: 6.63 | M89: 6.3 | N89: 5.9 | O89: 300160000 | P89: -47.75%
A90: 80 | B90: Banking | C90: IDFCFIRSTB | D90: 2021-09-30 | E90: 42.35 | F90: 42.47 | G90: 41.88 | H90: 41.42 | I90: 40.83 | J90: 42.93 | K90: 43.52 | L90: 43.98 | M90: 43.05 | N90: 42 | O90: 183093500 | P90: -18.12%
A91: 81 | B91: Oil_Gas | C91: IGL | D91: 2021-09-30 | E91: 522.50 | F91: 522.73 | G91: 518.87 | H91: 515.23 | I91: 511.37 | J91: 526.37 | K91: 530.23 | L91: 533.87 | M91: 526.6 | N91: 519.1 | O91: 9117625 | P91: -16.90%
A92: 82 | B92: Infrastructure | C92: INDHOTEL | D92: 2021-09-30 | E92: 138.05 | F92: 138.32 | G92: 137.03 | H92: 136.02 | I92: 134.73 | J92: 139.33 | K92: 140.62 | L92: 141.63 | M92: 139.6 | N92: 137.3 | O92: 7476300 | P92: -14.15%
A93: 83 | B93: Others | C93: INDIGO | D93: 2021-09-30 | E93: 1750.10 | F93: 1743.13 | G93: 1723.82 | H93: 1697.53 | I93: 1678.22 | J93: 1769.42 | K93: 1788.73 | L93: 1815.02 | M93: 1762.45 | N93: 1716.85 | O93: 2396000 | P93: -7.97%
A94: 84 | B94: Banking | C94: INDUSINDBK | D94: 2021-09-30 | E94: 1003.20 | F94: 1006.02 | G94: 997.68 | H94: 992.17 | I94: 983.83 | J94: 1011.53 | K94: 1019.87 | L94: 1025.38 | M94: 1014.35 | N94: 1000.5 | O94: 12221100 | P94: -6.95%
A95: 85 | B95: Telecom | C95: INDUSTOWER | D95: 2021-09-30 | E95: 215.50 | F95: 216.65 | G95: 213.45 | H95: 211.40 | I95: 208.20 | J95: 218.70 | K95: 221.90 | L95: 223.95 | M95: 219.85 | N95: 214.6 | O95: 11998000 | P95: -11.90%
A96: 86 | B96: Technology | C96: INFY | D96: 2021-09-30 | E96: 1732.00 | F96: 1736.63 | G96: 1721.37 | H96: 1710.73 | I96: 1695.47 | J96: 1747.27 | K96: 1762.53 | L96: 1773.17 | M96: 1751.9 | N96: 1726 | O96: 27789000 | P96: -11.49%
A97: 87 | B97: Oil_Gas | C97: IOC | D97: 2021-09-30 | E97: 105.75 | F97: 105.75 | G97: 105.05 | H97: 104.35 | I97: 103.65 | J97: 106.45 | K97: 107.15 | L97: 107.85 | M97: 106.45 | N97: 105.05 | O97: 49764000 | P97: -3.94%
A98: 88 | B98: Others | C98: IRCTC | D98: 2021-09-30 | E98: 2632.50 | F98: 2641.17 | G98: 2611.58 | H98: 2590.67 | I98: 2561.08 | J98: 2662.08 | K98: 2691.67 | L98: 2712.58 | M98: 2670.75 | N98: 2620.25 | O98: 1805700 | P98: -10.66%
A99: 89 | B99: FMCG | C99: ITC | D99: 2021-09-30 | E99: 205.40 | F99: 206.03 | G99: 204.62 | H99: 203.83 | I99: 202.42 | J99: 206.82 | K99: 208.23 | L99: 209.02 | M99: 207.45 | N99: 205.25 | O99: 175952000 | P99: -2.74%
A100: 90 | B100: Metals | C100: JINDALSTEL | D100: 2021-09-30 | E100: 371.55 | F100: 373.47 | G100: 368.08 | H100: 364.62 | I100: 359.23 | J100: 376.93 | K100: 382.32 | L100: 385.78 | M100: 378.85 | N100: 370 | O100: 35477500 | P100: -4.82%
A101: 91 | B101: Metals | C101: JSWSTEEL | D101: 2021-09-30 | E101: 673.35 | F101: 677.22 | G101: 667.13 | H101: 660.92 | I101: 650.83 | J101: 683.43 | K101: 693.52 | L101: 699.73 | M101: 687.3 | N101: 671 | O101: 46399500 | P101: -2.55%
A102: 92 | B102: Others | C102: JUBLFOOD | D102: 2021-09-30 | E102: 3836.05 | F102: 3825.22 | G102: 3778.93 | H102: 3721.82 | I102: 3675.53 | J102: 3882.33 | K102: 3928.62 | L102: 3985.73 | M102: 3871.5 | N102: 3768.1 | O102: 1624000 | P102: -25.73%
A103: 93 | B103: Banking | C103: KOTAKBANK | D103: 2021-09-30 | E103: 1705.60 | F103: 1708.60 | G103: 1692.20 | H103: 1678.80 | I103: 1662.40 | J103: 1722.00 | K103: 1738.40 | L103: 1751.80 | M103: 1725 | N103: 1695.2 | O103: 16214400 | P103: 7.79%
A104: 94 | B104: Finance | C104: L&TFH | D104: 2021-09-30 | E104: 81.50 | F104: 81.23 | G104: 80.27 | H104: 79.03 | I104: 78.07 | J104: 82.47 | K104: 83.43 | L104: 84.67 | M104: 82.2 | N104: 80 | O104: 57247460 | P104: -12.00%
A105: 95 | B105: Others | C105: LALPATHLAB | D105: 2021-09-30 | E105: 3796.75 | F105: 3806.10 | G105: 3762.20 | H105: 3727.65 | I105: 3683.75 | J105: 3840.65 | K105: 3884.55 | L105: 3919.10 | M105: 3850 | N105: 3771.55 | O105: 366500 | P105: -17.32%
A106: 96 | B106: Finance | C106: LICHSGFIN | D106: 2021-09-30 | E106: 379.85 | F106: 379.68 | G106: 374.47 | H106: 369.08 | I106: 363.87 | J106: 385.07 | K106: 390.28 | L106: 395.67 | M106: 384.9 | N106: 374.3 | O106: 23888000 | P106: -6.94%
A107: 97 | B107: Capital_Goods | C107: LT | D107: 2021-09-30 | E107: 1598.35 | F107: 1599.07 | G107: 1590.13 | H107: 1581.92 | I107: 1572.98 | J107: 1607.28 | K107: 1616.22 | L107: 1624.43 | M107: 1608 | N107: 1590.85 | O107: 12513150 | P107: 0.79%
A108: 98 | B108: Technology | C108: LTI | D108: 2021-09-30 | E108: 5160.65 | F108: 5151.88 | G108: 5073.77 | H108: 4986.88 | I108: 4908.77 | J108: 5238.77 | K108: 5316.88 | L108: 5403.77 | M108: 5230 | N108: 5065 | O108: 665700 | P108: -5.51%
A109: 99 | B109: Technology | C109: LTTS | D109: 2021-09-30 | E109: 3867.75 | F109: 3886.93 | G109: 3789.87 | H109: 3711.98 | I109: 3614.92 | J109: 3964.82 | K109: 4061.88 | L109: 4139.77 | M109: 3984 | N109: 3809.05 | O109: 526800 | P109: -7.45%
A110: 100 | B110: Pharma | C110: LUPIN | D110: 2021-09-30 | E110: 939.50 | F110: 941.78 | G110: 934.92 | H110: 930.33 | I110: 923.47 | J110: 946.37 | K110: 953.23 | L110: 957.82 | M110: 948.65 | N110: 937.2 | O110: 10471150 | P110: -8.56%
A111: 101 | B111: Automobile | C111: M&M | D111: 2021-09-30 | E111: 782.90 | F111: 778.98 | G111: 773.97 | H111: 765.03 | I111: 760.02 | J111: 787.92 | K111: 792.93 | L111: 801.87 | M111: 784 | N111: 770.05 | O111: 10780700 | P111: -4.11%
A112: 102 | B112: Finance | C112: M&MFIN | D112: 2021-09-30 | E112: 155.25 | F112: 153.12 | G112: 150.43 | H112: 145.62 | I112: 142.93 | J112: 157.93 | K112: 160.62 | L112: 165.43 | M112: 155.8 | N112: 148.3 | O112: 31428000 | P112: -12.90%
A113: 103 | B113: Finance | C113: MANAPPURAM | D113: 2021-09-30 | E113: 161.90 | F113: 162.72 | G113: 160.33 | H113: 158.77 | I113: 156.38 | J113: 164.28 | K113: 166.67 | L113: 168.23 | M113: 165.1 | N113: 161.15 | O113: 23166000 | P113: -9.43%
A114: 104 | B114: FMCG | C114: MARICO | D114: 2021-09-30 | E114: 524.90 | F114: 523.03 | G114: 515.87 | H114: 506.83 | I114: 499.67 | J114: 532.07 | K114: 539.23 | L114: 548.27 | M114: 530.2 | N114: 514 | O114: 10306000 | P114: -4.38%
A115: 105 | B115: Automobile | C115: MARUTI | D115: 2021-09-30 | E115: 6637.10 | F115: 6633.22 | G115: 6532.23 | H115: 6427.37 | I115: 6326.38 | J115: 6738.08 | K115: 6839.07 | L115: 6943.93 | M115: 6734.2 | N115: 6528.35 | O115: 3314600 | P115: 2.60%
A116: 106 | B116: FMCG | C116: MCDOWELL-N | D116: 2021-09-30 | E116: 687.95 | F116: 687.82 | G116: 679.38 | H116: 670.82 | I116: 662.38 | J116: 696.38 | K116: 704.82 | L116: 713.38 | M116: 696.25 | N116: 679.25 | O116: 14398750 | P116: 1.44%
A117: 107 | B117: Pharma | C117: METROPOLIS | D117: 2021-09-30 | E117: 2688.05 | F117: 2685.72 | G117: 2656.43 | H117: 2624.82 | I117: 2595.53 | J117: 2717.33 | K117: 2746.62 | L117: 2778.23 | M117: 2715 | N117: 2654.1 | O117: 313800 | P117: -12.69%
A118: 108 | B118: Finance | C118: MFSL | D118: 2021-09-30 | E118: 1027.50 | F118: 1028.28 | G118: 1016.57 | H118: 1005.63 | I118: 993.92 | J118: 1039.22 | K118: 1050.93 | L118: 1061.87 | M118: 1040 | N118: 1017.35 | O118: 3051750 | P118: -4.79%
A119: 109 | B119: Oil_Gas | C119: MGL | D119: 2021-09-30 | E119: 1107.60 | F119: 1109.97 | G119: 1098.08 | H119: 1088.57 | I119: 1076.68 | J119: 1119.48 | K119: 1131.37 | L119: 1140.88 | M119: 1121.85 | N119: 1100.45 | O119: 1664400 | P119: -7.16%
A120: 110 | B120: Technology | C120: MINDTREE | D120: 2021-09-30 | E120: 3510.05 | F120: 3509.68 | G120: 3456.37 | H120: 3402.68 | I120: 3349.37 | J120: 3563.37 | K120: 3616.68 | L120: 3670.37 | M120: 3563 | N120: 3456 | O120: 1713200 | P120: -19.05%
A121: 111 | B121: Automobile | C121: MOTHERSUMI | D121: 2021-09-30 | E121: 212.20 | F121: 211.17 | G121: 209.38 | H121: 206.57 | I121: 204.78 | J121: 213.98 | K121: 215.77 | L121: 218.58 | M121: 212.95 | N121: 208.35 | O121: 30464000 | P121: -5.13%
A122: 112 | B122: Technology | C122: MPHASIS | D122: 2021-09-30 | E122: 2703.80 | F122: 2729.12 | G122: 2674.68 | H122: 2645.57 | I122: 2591.13 | J122: 2758.23 | K122: 2812.67 | L122: 2841.78 | M122: 2783.55 | N122: 2700 | O122: 1111500 | P122: -21.33%
A123: 113 | B123: Automobile | C123: MRF | D123: 2021-09-30 | E123: 76777.15 | F123: 76915.72 | G123: 76361.43 | H123: 75945.72 | I123: 75391.43 | J123: 77331.43 | K123: 77885.72 | L123: 78301.43 | M123: 77470 | N123: 76500 | O123: 45350 | P123: -4.53%
A124: 114 | B124: Finance | C124: MUTHOOTFIN | D124: 2021-09-30 | E124: 1490.40 | F124: 1488.82 | G124: 1473.63 | H124: 1456.87 | I124: 1441.68 | J124: 1505.58 | K124: 1520.77 | L124: 1537.53 | M124: 1504 | N124: 1472.05 | O124: 2986500 | P124: -9.58%
A125: 115 | B125: Others | C125: NAM-INDIA | D125: 2021-09-30 | E125: 409.15 | F125: 410.73 | G125: 402.82 | H125: 396.48 | I125: 388.57 | J125: 417.07 | K125: 424.98 | L125: 431.32 | M125: 418.65 | N125: 404.4 | O125: 3585600 | P125: -0.44%
A126: 116 | B126: Metals | C126: NATIONALUM | D126: 2021-09-30 | E126: 79.00 | F126: 79.85 | G126: 77.40 | H126: 75.80 | I126: 73.35 | J126: 81.45 | K126: 83.90 | L126: 85.50 | M126: 82.3 | N126: 78.25 | O126: 68799000 | P126: -31.50%
A127: 117 | B127: Others | C127: NAUKRI | D127: 2021-09-30 | E127: 5817.25 | F127: 5820.97 | G127: 5751.93 | H127: 5686.62 | I127: 5617.58 | J127: 5886.28 | K127: 5955.32 | L127: 6020.63 | M127: 5890 | N127: 5755.65 | O127: 928875 | P127: -11.30%
A128: 118 | B128: Chemical | C128: NAVINFLUOR | D128: 2021-09-30 | E128: 3603.25 | F128: 3607.70 | G128: 3566.15 | H128: 3529.05 | I128: 3487.50 | J128: 3644.80 | K128: 3686.35 | L128: 3723.45 | M128: 3649.25 | N128: 3570.6 | O128: 408600 | P128: -11.93%
A129: 119 | B129: FMCG | C129: NESTLEIND | D129: 2021-09-30 | E129: 20079.85 | F129: 20029.57 | G129: 19911.48 | H129: 19743.12 | I129: 19625.03 | J129: 20197.93 | K129: 20316.02 | L129: 20484.38 | M129: 20147.65 | N129: 19861.2 | O129: 383200 | P129: 0.45%
A130: 120 | B130: Metals | C130: NMDC | D130: 2021-09-30 | E130: 150.15 | F130: 152.62 | G130: 146.88 | H130: 143.62 | I130: 137.88 | J130: 155.88 | K130: 161.62 | L130: 164.88 | M130: 158.35 | N130: 149.35 | O130: 62162600 | P130: -45.50%
A131: 121 | B131: Power | C131: NTPC | D131: 2021-09-30 | E131: 110.00 | F131: 110.33 | G131: 108.92 | H131: 107.83 | I131: 106.42 | J131: 111.42 | K131: 112.83 | L131: 113.92 | M131: 111.75 | N131: 109.25 | O131: 59382600 | P131: -4.61%
A132: 122 | B132: Oil_Gas | C132: ONGC | D132: 2021-09-30 | E132: 114.40 | F132: 114.30 | G132: 113.40 | H132: 112.40 | I132: 111.50 | J132: 115.30 | K132: 116.20 | L132: 117.20 | M132: 115.2 | N132: 113.3 | O132: 45876600 | P132: -10.41%
A133: 123 | B133: Textile | C133: PAGEIND | D133: 2021-09-30 | E133: 30606.85 | F133: 30774.82 | G133: 30289.18 | H133: 29971.52 | I133: 29485.88 | J133: 31092.48 | K133: 31578.12 | L133: 31895.78 | M133: 31260.45 | N133: 30457.15 | O133: 80580 | P133: -0.15%
A134: 124 | B134: Pharma | C134: PEL | D134: 2021-09-30 | E134: 2574.85 | F134: 2587.42 | G134: 2540.83 | H134: 2506.82 | I134: 2460.23 | J134: 2621.43 | K134: 2668.02 | L134: 2702.03 | M134: 2634 | N134: 2553.4 | O134: 2806375 | P134: -3.45%
A135: 125 | B135: Oil_Gas | C135: PETRONET | D135: 2021-09-30 | E135: 228.00 | F135: 228.52 | G135: 225.53 | H135: 223.07 | I135: 220.08 | J135: 230.98 | K135: 233.97 | L135: 236.43 | M135: 231.5 | N135: 226.05 | O135: 19851000 | P135: -5.06%
A136: 126 | B136: Finance | C136: PFC | D136: 2021-09-30 | E136: 123.00 | F136: 123.57 | G136: 121.93 | H136: 120.87 | I136: 119.23 | J136: 124.63 | K136: 126.27 | L136: 127.33 | M136: 125.2 | N136: 122.5 | O136: 26474000 | P136: -11.61%
A137: 127 | B137: Pharma | C137: PFIZER | D137: 2021-09-30 | E137: 5709.10 | F137: 5731.27 | G137: 5677.53 | H137: 5645.97 | I137: 5592.23 | J137: 5762.83 | K137: 5816.57 | L137: 5848.13 | M137: 5785 | N137: 5699.7 | O137: 218000 | P137: -7.68%
A138: 128 | B138: FMCG | C138: PIDILITIND | D138: 2021-09-30 | E138: 2232.35 | F138: 2228.37 | G138: 2215.98 | H138: 2199.62 | I138: 2187.23 | J138: 2244.73 | K138: 2257.12 | L138: 2273.48 | M138: 2240.75 | N138: 2212 | O138: 2590000 | P138: -4.74%
A139: 129 | B139: Chemical | C139: PIIND | D139: 2021-09-30 | E139: 3148.55 | F139: 3143.22 | G139: 3112.33 | H139: 3076.12 | I139: 3045.23 | J139: 3179.43 | K139: 3210.32 | L139: 3246.53 | M139: 3174.1 | N139: 3107 | O139: 928750 | P139: -3.31%
A140: 130 | B140: Banking | C140: PNB | D140: 2021-09-30 | E140: 35.95 | F140: 36.22 | G140: 35.58 | H140: 35.22 | I140: 34.58 | J140: 36.58 | K140: 37.22 | L140: 37.58 | M140: 36.85 | N140: 35.85 | O140: 283984000 | P140: -10.67%
A141: 131 | B141: Power | C141: POWERGRID | D141: 2021-09-30 | E141: 171.40 | F141: 171.67 | G141: 169.83 | H141: 168.27 | I141: 166.43 | J141: 173.23 | K141: 175.07 | L141: 176.63 | M141: 173.5 | N141: 170.1 | O141: 24275816 | P141: -21.20%
A142: 132 | B142: Media | C142: PVR | D142: 2021-09-30 | E142: 1305.60 | F142: 1312.45 | G142: 1294.15 | H142: 1282.70 | I142: 1264.40 | J142: 1323.90 | K142: 1342.20 | L142: 1353.65 | M142: 1330.75 | N142: 1301 | O142: 1671142 | P142: -7.27%
A143: 133 | B143: Cement | C143: RAMCOCEM | D143: 2021-09-30 | E143: 968.40 | F143: 969.52 | G143: 959.03 | H143: 949.67 | I143: 939.18 | J143: 978.88 | K143: 989.37 | L143: 998.73 | M143: 980 | N143: 960.15 | O143: 1807950 | P143: -7.80%
A144: 134 | B144: Banking | C144: RBLBANK | D144: 2021-09-30 | E144: 163.10 | F144: 163.18 | G144: 161.12 | H144: 159.13 | I144: 157.07 | J144: 165.17 | K144: 167.23 | L144: 169.22 | M144: 165.25 | N144: 161.2 | O144: 33550100 | P144: -12.48%
A145: 135 | B145: Power | C145: RECLTD | D145: 2021-09-30 | E145: 143.10 | F145: 143.53 | G145: 142.07 | H145: 141.03 | I145: 139.57 | J145: 144.57 | K145: 146.03 | L145: 147.07 | M145: 145 | N145: 142.5 | O145: 20514000 | P145: -8.39%
A146: 136 | B146: Oil_Gas | C146: RELIANCE | D146: 2021-09-30 | E146: 2234.50 | F146: 2232.73 | G146: 2214.97 | H146: 2195.43 | I146: 2177.67 | J146: 2252.27 | K146: 2270.03 | L146: 2289.57 | M146: 2250.5 | N146: 2213.2 | O146: 32060500 | P146: -2.14%
A147: 137 | B147: Metals | C147: SAIL | D147: 2021-09-30 | E147: 115.00 | F147: 115.45 | G147: 113.05 | H147: 111.10 | I147: 108.70 | J147: 117.40 | K147: 119.80 | L147: 121.75 | M147: 117.85 | N147: 113.5 | O147: 135299000 | P147: -21.94%
A148: 138 | B148: Finance | C148: SBILIFE | D148: 2021-09-30 | E148: 1154.30 | F148: 1154.67 | G148: 1142.83 | H148: 1131.37 | I148: 1119.53 | J148: 1166.13 | K148: 1177.97 | L148: 1189.43 | M148: 1166.5 | N148: 1143.2 | O148: 6034500 | P148: -35.93%
A149: 139 | B149: Banking | C149: SBIN | D149: 2021-09-30 | E149: 411.65 | F149: 413.10 | G149: 409.20 | H149: 406.75 | I149: 402.85 | J149: 415.55 | K149: 419.45 | L149: 421.90 | M149: 417 | N149: 410.65 | O149: 89601000 | P149: -6.26%
A150: 140 | B150: Cement | C150: SHREECEM | D150: 2021-09-30 | E150: 26586.40 | F150: 26492.13 | G150: 26314.27 | H150: 26042.13 | I150: 25864.27 | J150: 26764.27 | K150: 26942.13 | L150: 27214.27 | M150: 26670 | N150: 26220 | O150: 205825 | P150: -2.74%
A151: 141 | B151: Capital_Goods | C151: SIEMENS | D151: 2021-09-30 | E151: 2215.25 | F151: 2210.40 | G151: 2194.85 | H151: 2174.45 | I151: 2158.90 | J151: 2230.80 | K151: 2246.35 | L151: 2266.75 | M151: 2225.95 | N151: 2190 | O151: 1811975 | P151: -8.05%
A152: 142 | B152: Textile | C152: SRF | D152: 2021-09-30 | E152: 9117.50 | F152: 9066.73 | G152: 8953.47 | H152: 8789.43 | I152: 8676.17 | J152: 9230.77 | K152: 9344.03 | L152: 9508.07 | M152: 9180 | N152: 8902.7 | O152: 616625 | P152: -4.97%
A153: 143 | B153: Finance | C153: SRTRANSFIN | D153: 2021-09-30 | E153: 1270.35 | F153: 1277.62 | G153: 1255.08 | H153: 1239.82 | I153: 1217.28 | J153: 1292.88 | K153: 1315.42 | L153: 1330.68 | M153: 1300.15 | N153: 1262.35 | O153: 4763200 | P153: 0.18%
A154: 144 | B154: Pharma | C154: STAR | D154: 2021-09-30 | E154: 584.40 | F154: 587.30 | G154: 579.60 | H154: 574.80 | I154: 567.10 | J154: 592.10 | K154: 599.80 | L154: 604.60 | M154: 595 | N154: 582.5 | O154: 1957500 | P154: -3.69%
A155: 145 | B155: Pharma | C155: SUNPHARMA | D155: 2021-09-30 | E155: 763.35 | F155: 766.63 | G155: 759.07 | H155: 754.78 | I155: 747.22 | J155: 770.92 | K155: 778.48 | L155: 782.77 | M155: 774.2 | N155: 762.35 | O155: 34367200 | P155: -3.94%
A156: 146 | B156: Media | C156: SUNTV | D156: 2021-09-30 | E156: 476.90 | F156: 480.83 | G156: 470.67 | H156: 464.43 | I156: 454.27 | J156: 487.07 | K156: 497.23 | L156: 503.47 | M156: 491 | N156: 474.6 | O156: 13038000 | P156: -3.93%
A157: 147 | B157: Chemical | C157: TATACHEM | D157: 2021-09-30 | E157: 828.20 | F157: 828.92 | G157: 821.43 | H157: 814.67 | I157: 807.18 | J157: 835.68 | K157: 843.17 | L157: 849.93 | M157: 836.4 | N157: 822.15 | O157: 10114000 | P157: -5.18%
A158: 148 | B158: FMCG | C158: TATACONSUM | D158: 2021-09-30 | E158: 855.25 | F158: 850.70 | G158: 843.10 | H158: 830.95 | I158: 823.35 | J158: 862.85 | K158: 870.45 | L158: 882.60 | M158: 858.3 | N158: 838.55 | O158: 7522200 | P158: 2.56%
A159: 149 | B159: Automobile | C159: TATAMOTORS | D159: 2021-09-30 | E159: 284.90 | F159: 285.10 | G159: 281.85 | H159: 278.80 | I159: 275.55 | J159: 288.15 | K159: 291.40 | L159: 294.45 | M159: 288.35 | N159: 282.05 | O159: 105809100 | P159: -5.44%
A160: 150 | B160: Power | C160: TATAPOWER | D160: 2021-09-30 | E160: 125.85 | F160: 125.78 | G160: 124.82 | H160: 123.78 | I160: 122.82 | J160: 126.82 | K160: 127.78 | L160: 128.82 | M160: 126.75 | N160: 124.75 | O160: 122593500 | P160: -8.79%
A161: 151 | B161: Metals | C161: TATASTEEL | D161: 2021-09-30 | E161: 1377.50 | F161: 1380.57 | G161: 1364.13 | H161: 1350.77 | I161: 1334.33 | J161: 1393.93 | K161: 1410.37 | L161: 1423.73 | M161: 1397 | N161: 1367.2 | O161: 41698450 | P161: -4.18%
A162: 152 | B162: Technology | C162: TCS | D162: 2021-09-30 | E162: 3679.30 | F162: 3677.42 | G162: 3657.83 | H162: 3636.37 | I162: 3616.78 | J162: 3698.88 | K162: 3718.47 | L162: 3739.93 | M162: 3697 | N162: 3655.95 | O162: 8884200 | P162: -9.23%
A163: 153 | B163: Technology | C163: TECHM | D163: 2021-09-30 | E163: 1456.10 | F163: 1459.50 | G163: 1446.90 | H163: 1437.70 | I163: 1425.10 | J163: 1468.70 | K163: 1481.30 | L163: 1490.50 | M163: 1472.1 | N163: 1450.3 | O163: 9270000 | P163: -17.69%
A164: 154 | B164: FMCG | C164: TITAN | D164: 2021-09-30 | E164: 1823.30 | F164: 1826.10 | G164: 1810.35 | H164: 1797.40 | I164: 1781.65 | J164: 1839.05 | K164: 1854.80 | L164: 1867.75 | M164: 1841.85 | N164: 1813.15 | O164: 4616250 | P164: -0.03%
A165: 155 | B165: Pharma | C165: TORNTPHARM | D165: 2021-09-30 | E165: 3055.20 | F165: 3065.20 | G165: 3037.85 | H165: 3020.50 | I165: 2993.15 | J165: 3082.55 | K165: 3109.90 | L165: 3127.25 | M165: 3092.55 | N165: 3047.85 | O165: 721500 | P165: -2.00%
A166: 156 | B166: Power | C166: TORNTPOWER | D166: 2021-09-30 | E166: 475.15 | F166: 472.37 | G166: 467.83 | H166: 460.52 | I166: 455.98 | J166: 479.68 | K166: 484.22 | L166: 491.53 | M166: 476.9 | N166: 465.05 | O166: 2340000 | P166: -2.99%
A167: 157 | B167: Others | C167: TRENT | D167: 2021-09-30 | E167: 946.45 | F167: 945.82 | G167: 923.68 | H167: 900.92 | I167: 878.78 | J167: 968.58 | K167: 990.72 | L167: 1013.48 | M167: 967.95 | N167: 923.05 | O167: 1348500 | P167: 12.80%
A168: 158 | B168: Automobile | C168: TVSMOTOR | D168: 2021-09-30 | E168: 510.40 | F168: 513.52 | G168: 504.53 | H168: 498.67 | I168: 489.68 | J168: 519.38 | K168: 528.37 | L168: 534.23 | M168: 522.5 | N168: 507.65 | O168: 5394200 | P168: -10.29%
A169: 159 | B169: FMCG | C169: UBL | D169: 2021-09-30 | E169: 1439.55 | F169: 1440.18 | G169: 1426.37 | H169: 1413.18 | I169: 1399.37 | J169: 1453.37 | K169: 1467.18 | L169: 1480.37 | M169: 1454 | N169: 1427 | O169: 1438500 | P169: -23.80%
A170: 160 | B170: Cement | C170: ULTRACEMCO | D170: 2021-09-30 | E170: 7331.20 | F170: 7364.40 | G170: 7283.80 | H170: 7236.40 | I170: 7155.80 | J170: 7411.80 | K170: 7492.40 | L170: 7539.80 | M170: 7445 | N170: 7317 | O170: 1762100 | P170: -5.97%
A171: 161 | B171: Chemical | C171: UPL | D171: 2021-09-30 | E171: 722.25 | F171: 724.97 | G171: 717.33 | H171: 712.42 | I171: 704.78 | J171: 729.88 | K171: 737.52 | L171: 742.43 | M171: 732.6 | N171: 720.05 | O171: 24251500 | P171: -3.26%
A172: 162 | B172: Metals | C172: VEDL | D172: 2021-09-30 | E172: 288.95 | F172: 289.20 | G172: 283.95 | H172: 278.95 | I172: 273.70 | J172: 294.20 | K172: 299.45 | L172: 304.45 | M172: 294.45 | N172: 284.2 | O172: 126889200 | P172: -6.52%
A173: 163 | B173: Capital_Goods | C173: VOLTAS | D173: 2021-09-30 | E173: 959.75 | F173: 963.90 | G173: 952.15 | H173: 944.55 | I173: 932.80 | J173: 971.50 | K173: 983.25 | L173: 990.85 | M173: 975.65 | N173: 956.3 | O173: 3518500 | P173: -12.91%
A174: 164 | B174: Technology | C174: WIPRO | D174: 2021-09-30 | E174: 630.35 | F174: 632.67 | G174: 625.13 | H174: 619.92 | I174: 612.38 | J174: 637.88 | K174: 645.42 | L174: 650.63 | M174: 640.2 | N174: 627.45 | O174: 27240000 | P174: -7.48%
A175: 165 | B175: Media | C175: ZEEL | D175: 2021-09-30 | E175: 166.35 | F175: 167.17 | G175: 164.88 | H175: 163.42 | I175: 161.13 | J175: 168.63 | K175: 170.92 | L175: 172.38 | M175: 169.45 | N175: 165.7 | O175: 70401000 | P175: -3.95%
A184: Pivot Point: This is trigger point for intra day buy/sell based on the price range of the previous day
A185: As per the tool,the trader should take BUY position just above Pivot and keep the stop loss of pivot point and the first target would be Resistance 1(R1)
A186: If R1 is crossed then R2 becomes the next target with stop loss of at R1
A187: Similarly if price goes below pivot point then the trader should sell and keep a stop loss of pivot point and the first target would be S1
A188: If S1 is crossed then S2 becomes the next target with stop loss of at S1
A190: Disclaimer:
A191: This document has been prepared by the Retail Research Desk of Asit C Mehta
A192: Investment Intermediates Ltd. and is meant for use of the recipient only
A193: and is not for circulation. This document is not to be reported or
A194: copied or made available to others. It should not be considered to be
A195: taken as an offer to sell or a solicitation to buy any security. The
A196: information contained herein is from sources believed reliable. We do
A197: not represent that it is accurate or complete and it should not be
A198: relied upon as such. We may from time to time have positions in and buy
A199: and sell securities referred to herein

Sheet Cash Intra
M5: Back to Main Page
A6: FOR INTRA DAY TRADING | K6: =Main!B10 -> 2021-08-27
A8: Sr.no | C8: CLOSE RATE | D8: Pivot Point | E8: Supports | H8: Resistances
E9: S1 | F9: S2 | G9: S3 | H9: R1 | I9: R2 | J9: R3 | K9: HIGH | L9: LOW | M9: Total Trade Quanity in Lakhs
A10: 1 | B10: Nifty 50 | C10: 16636.9 | D10: 16641.33 | E10: 16598.97 | F10: 16561.03 | G10: 16518.67 | H10: 16679.27 | I10: 16721.63 | J10: 16759.57 | K10: 16683.7 | L10: 16603.4
A11: 2 | B11: Nifty Bank | C11: 35617.55 | D11: 35605.05 | E11: 35424.30 | F11: 35231.05 | G11: 35050.30 | H11: 35798.30 | I11: 35979.05 | J11: 36172.30 | K11: 35785.8 | L11: 35411.8
A12: 3 | B12: Nifty CPSE | C12: 1977.65 | D12: 1981.20 | E12: 1962.65 | F12: 1947.65 | G12: 1929.10 | H12: 1996.20 | I12: 2014.75 | J12: 2029.75 | K12: 1999.75 | L12: 1966.2
A13: 4 | B13: Nifty Infra | C13: 4509.5 | D13: 4512.25 | E13: 4490.50 | F13: 4471.50 | G13: 4449.75 | H13: 4531.25 | I13: 4553.00 | J13: 4572.00 | K13: 4534 | L13: 4493.25
A14: 5 | B14: Nifty IT | C14: 34041.1 | D14: 34115.58 | E14: 33855.22 | F14: 33669.33 | G14: 33408.97 | H14: 34301.47 | I14: 34561.83 | J14: 34747.72 | K14: 34375.95 | L14: 33929.7
A15: 6 | B15: Nifty PSE | C15: 3521.2 | D15: 3523.93 | E15: 3495.87 | F15: 3470.53 | G15: 3442.47 | H15: 3549.27 | I15: 3577.33 | J15: 3602.67 | K15: 3552 | L15: 3498.6
A16: 7 | B16: Nifty Midcap 50 | C16: 7291.55 | D16: 7304.37 | E16: 7253.28 | F16: 7215.02 | G16: 7163.93 | H16: 7342.63 | I16: 7393.72 | J16: 7431.98 | K16: 7355.45 | L16: 7266.1
A17: 8 | B17: ACC | C17: 2275.55 | D17: 2273.43 | E17: 2260.37 | F17: 2245.18 | G17: 2232.12 | H17: 2288.62 | I17: 2301.68 | J17: 2316.87 | K17: 2286.5 | L17: 2258.25 | M17: 3.73379
A18: 9 | B18: AUBANK | C18: 1353.3 | D18: 1356.75 | E18: 1331.55 | F18: 1309.80 | G18: 1284.60 | H18: 1378.50 | I18: 1403.70 | J18: 1425.45 | K18: 1381.95 | L18: 1335 | M18: 15.02243
A19: 10 | B19: AARTIIND | C19: 906.85 | D19: 910.50 | E19: 899.35 | F19: 891.85 | G19: 880.70 | H19: 918.00 | I19: 929.15 | J19: 936.65 | K19: 921.65 | L19: 903 | M19: 5.96477
A20: 11 | B20: ABBOTINDIA | C20: 18906.65 | D20: 19006.07 | E20: 18660.63 | F20: 18414.62 | G20: 18069.18 | H20: 19252.08 | I20: 19597.52 | J20: 19843.53 | K20: 19351.5 | L20: 18760.05 | M20: 0.11606
A21: 12 | B21: ADANIENT | C21: 1475.7 | D21: 1476.92 | E21: 1459.18 | F21: 1442.67 | G21: 1424.93 | H21: 1493.43 | I21: 1511.17 | J21: 1527.68 | K21: 1494.65 | L21: 1460.4 | M21: 46.78919
A22: 13 | B22: ADANIGREEN | C22: 1046.45 | D22: 1036.85 | E22: 1026.70 | F22: 1006.95 | G22: 996.80 | H22: 1056.60 | I22: 1066.75 | J22: 1086.50 | K22: 1047 | L22: 1017.1 | M22: 16.86596
A23: 14 | B23: ADANIPORTS | C23: 721.7 | D23: 724.13 | E23: 715.27 | F23: 708.83 | G23: 699.97 | H23: 730.57 | I23: 739.43 | J23: 745.87 | K23: 733 | L23: 717.7 | M23: 149.69643
A24: 15 | B24: ATGL | C24: 1303.9 | D24: 1291.50 | E24: 1279.10 | F24: 1254.30 | G24: 1241.90 | H24: 1316.30 | I24: 1328.70 | J24: 1353.50 | K24: 1303.9 | L24: 1266.7 | M24: 6.27956
A25: 16 | B25: ADANITRANS | C25: 1365.45 | D25: 1365.45 | E25: 1365.45 | F25: 1365.45 | G25: 1365.45 | H25: 1365.45 | I25: 1365.45 | J25: 1365.45 | K25: 1365.45 | L25: 1365.45 | M25: 7.9975
A26: 17 | B26: ABCAPITAL | C26: 106.3 | D26: 106.82 | E26: 104.88 | F26: 103.47 | G26: 101.53 | H26: 108.23 | I26: 110.17 | J26: 111.58 | K26: 108.75 | L26: 105.4 | M26: 32.60971
A27: 18 | B27: ABFRL | C27: 200.35 | D27: 199.90 | E27: 197.55 | F27: 194.75 | G27: 192.40 | H27: 202.70 | I27: 205.05 | J27: 207.85 | K27: 202.25 | L27: 197.1 | M27: 18.2713
A28: 19 | B28: AJANTPHARM | C28: 2234.25 | D28: 2239.57 | E28: 2210.53 | F28: 2186.82 | G28: 2157.78 | H28: 2263.28 | I28: 2292.32 | J28: 2316.03 | K28: 2268.6 | L28: 2215.85 | M28: 0.30001
A29: 20 | B29: APLLTD | C29: 735.85 | D29: 741.18 | E29: 728.07 | F29: 720.28 | G29: 707.17 | H29: 748.97 | I29: 762.08 | J29: 769.87 | K29: 754.3 | L29: 733.4 | M29: 2.15912
A30: 21 | B30: ALKEM | C30: 3862.8 | D30: 3844.83 | E30: 3809.67 | F30: 3756.53 | G30: 3721.37 | H30: 3897.97 | I30: 3933.13 | J30: 3986.27 | K30: 3880 | L30: 3791.7 | M30: 1.3826
A31: 22 | B31: AMARAJABAT | C31: 666.3 | D31: 670.43 | E31: 660.87 | F31: 655.43 | G31: 645.87 | H31: 675.87 | I31: 685.43 | J31: 690.87 | K31: 680 | L31: 665 | M31: 11.70802
A32: 23 | B32: AMBUJACEM | C32: 398.35 | D32: 396.80 | E32: 392.70 | F32: 387.05 | G32: 382.95 | H32: 402.45 | I32: 406.55 | J32: 412.20 | K32: 400.9 | L32: 391.15 | M32: 35.58058
A33: 24 | B33: APOLLOHOSP | C33: 4700.4 | D33: 4708.93 | E33: 4637.87 | F33: 4575.33 | G33: 4504.27 | H33: 4771.47 | I33: 4842.53 | J33: 4905.07 | K33: 4780 | L33: 4646.4 | M33: 8.00419
A34: 25 | B34: APOLLOTYRE | C34: 208.85 | D34: 208.32 | E34: 206.63 | F34: 204.42 | G34: 202.73 | H34: 210.53 | I34: 212.22 | J34: 214.43 | K34: 210 | L34: 206.1 | M34: 28.45221
A35: 26 | B35: ASHOKLEY | C35: 117.55 | D35: 118.10 | E35: 116.45 | F35: 115.35 | G35: 113.70 | H35: 119.20 | I35: 120.85 | J35: 121.95 | K35: 119.75 | L35: 117 | M35: 88.72781
A36: 27 | B36: ASIANPAINT | C36: 3039.65 | D36: 3050.12 | E36: 3015.73 | F36: 2991.82 | G36: 2957.43 | H36: 3074.03 | I36: 3108.42 | J36: 3132.33 | K36: 3084.5 | L36: 3026.2 | M36: 13.19516
A37: 28 | B37: AUROPHARMA | C37: 699.1 | D37: 700.20 | E37: 692.50 | F37: 685.90 | G37: 678.20 | H37: 706.80 | I37: 714.50 | J37: 721.10 | K37: 707.9 | L37: 693.6 | M37: 47.31473
A38: 29 | B38: DMART | C38: 3847.8 | D38: 3845.88 | E38: 3801.97 | F38: 3756.13 | G38: 3712.22 | H38: 3891.72 | I38: 3935.63 | J38: 3981.47 | K38: 3889.8 | L38: 3800.05 | M38: 5.32719
A39: 30 | B39: AXISBANK | C39: 746.35 | D39: 742.90 | E39: 735.80 | F39: 725.25 | G39: 718.15 | H39: 753.45 | I39: 760.55 | J39: 771.10 | K39: 750 | L39: 732.35 | M39: 64.92155
A40: 31 | B40: BAJAJ-AUTO | C40: 3691.4 | D40: 3693.68 | E40: 3667.72 | F40: 3644.03 | G40: 3618.07 | H40: 3717.37 | I40: 3743.33 | J40: 3767.02 | K40: 3719.65 | L40: 3670 | M40: 2.83891
A41: 32 | B41: BAJFINANCE | C41: 6931.95 | D41: 6926.73 | E41: 6860.22 | F41: 6788.48 | G41: 6721.97 | H41: 6998.47 | I41: 7064.98 | J41: 7136.72 | K41: 6993.25 | L41: 6855 | M41: 12.34588
A42: 33 | B42: BAJAJFINSV | C42: 15958.8 | D42: 15920.43 | E42: 15716.67 | F42: 15474.53 | G42: 15270.77 | H42: 16162.57 | I42: 16366.33 | J42: 16608.47 | K42: 16124.2 | L42: 15678.3 | M42: 6.06882
A43: 34 | B43: BAJAJHLDNG | C43: 4142.2 | D43: 4138.85 | E43: 4080.85 | F43: 4019.50 | G43: 3961.50 | H43: 4200.20 | I43: 4258.20 | J43: 4319.55 | K43: 4196.85 | L43: 4077.5 | M43: 0.36317
A44: 35 | B44: BALKRISIND | C44: 2272.3 | D44: 2270.35 | E44: 2247.55 | F44: 2222.80 | G44: 2200.00 | H44: 2295.10 | I44: 2317.90 | J44: 2342.65 | K44: 2293.15 | L44: 2245.6 | M44: 1.95573
A45: 36 | B45: BANDHANBNK | C45: 265.05 | D45: 266.10 | E45: 262.20 | F45: 259.35 | G45: 255.45 | H45: 268.95 | I45: 272.85 | J45: 275.70 | K45: 270 | L45: 263.25 | M45: 122.70555
A46: 37 | B46: BANKBARODA | C46: 74.1 | D46: 74.57 | E46: 73.48 | F46: 72.87 | G46: 71.78 | H46: 75.18 | I46: 76.27 | J46: 76.88 | K46: 75.65 | L46: 73.95 | M46: 167.3024
A47: 38 | B47: BANKINDIA | C47: 65.75 | D47: 65.73 | E47: 65.12 | F47: 64.48 | G47: 63.87 | H47: 66.37 | I47: 66.98 | J47: 67.62 | K47: 66.35 | L47: 65.1 | M47: 21.86113
A48: 39 | B48: BATAINDIA | C48: 1707.25 | D48: 1713.70 | E48: 1694.85 | F48: 1682.45 | G48: 1663.60 | H48: 1726.10 | I48: 1744.95 | J48: 1757.35 | K48: 1732.55 | L48: 1701.3 | M48: 2.88042
A49: 40 | B49: BERGEPAINT | C49: 786.55 | D49: 789.13 | E49: 780.27 | F49: 773.98 | G49: 765.12 | H49: 795.42 | I49: 804.28 | J49: 810.57 | K49: 798 | L49: 782.85 | M49: 10.96367
A50: 41 | B50: BEL | C50: 181.3 | D50: 180.97 | E50: 179.73 | F50: 178.17 | G50: 176.93 | H50: 182.53 | I50: 183.77 | J50: 185.33 | K50: 182.2 | L50: 179.4 | M50: 71.00495
A51: 42 | B51: BHARATFORG | C51: 727.1 | D51: 728.92 | E51: 722.18 | F51: 717.27 | G51: 710.53 | H51: 733.83 | I51: 740.57 | J51: 745.48 | K51: 735.65 | L51: 724 | M51: 8.78476
A52: 43 | B52: BHEL | C52: 52 | D52: 52.40 | E52: 51.40 | F52: 50.80 | G52: 49.80 | H52: 53.00 | I52: 54.00 | J52: 54.60 | K52: 53.4 | L52: 51.8 | M52: 222.09147
A53: 44 | B53: BPCL | C53: 466.75 | D53: 465.58 | E53: 459.77 | F53: 452.78 | G53: 446.97 | H53: 472.57 | I53: 478.38 | J53: 485.37 | K53: 471.4 | L53: 458.6 | M53: 74.23649
A54: 45 | B54: BHARTIARTL | C54: 586.9 | D54: 594.23 | E54: 576.97 | F54: 567.03 | G54: 549.77 | H54: 604.17 | I54: 621.43 | J54: 631.37 | K54: 611.5 | L54: 584.3 | M54: 258.31904
A55: 46 | B55: BIOCON | C55: 341 | D55: 343.50 | E55: 337.50 | F55: 334.00 | G55: 328.00 | H55: 347.00 | I55: 353.00 | J55: 356.50 | K55: 349.5 | L55: 340 | M55: 16.97599
A56: 47 | B56: BBTC | C56: 1206.2 | D56: 1200.68 | E56: 1178.37 | F56: 1150.53 | G56: 1128.22 | H56: 1228.52 | I56: 1250.83 | J56: 1278.67 | K56: 1223 | L56: 1172.85 | M56: 3.26441
A57: 48 | B57: BOSCHLTD | C57: 13648.4 | D57: 13713.25 | E57: 13535.15 | F57: 13421.90 | G57: 13243.80 | H57: 13826.50 | I57: 14004.60 | J57: 14117.85 | K57: 13891.35 | L57: 13600 | M57: 0.22624
A58: 49 | B58: BRITANNIA | C58: 3930.9 | D58: 3901.02 | E58: 3855.08 | F58: 3779.27 | G58: 3733.33 | H58: 3976.83 | I58: 4022.77 | J58: 4098.58 | K58: 3946.95 | L58: 3825.2 | M58: 11.14234
A59: 50 | B59: CESC | C59: 757.3 | D59: 756.13 | E59: 751.67 | F59: 746.03 | G59: 741.57 | H59: 761.77 | I59: 766.23 | J59: 771.87 | K59: 760.6 | L59: 750.5 | M59: 1.37605
A60: 51 | B60: CADILAHC | C60: 540.6 | D60: 542.08 | E60: 537.17 | F60: 533.73 | G60: 528.82 | H60: 545.52 | I60: 550.43 | J60: 553.87 | K60: 547 | L60: 538.65 | M60: 28.09344
A61: 52 | B61: CANBK | C61: 152.85 | D61: 153.12 | E61: 151.08 | F61: 149.32 | G61: 147.28 | H61: 154.88 | I61: 156.92 | J61: 158.68 | K61: 155.15 | L61: 151.35 | M61: 301.56307
A62: 53 | B62: CASTROLIND | C62: 135.15 | D62: 134.75 | E62: 133.30 | F62: 131.45 | G62: 130.00 | H62: 136.60 | I62: 138.05 | J62: 139.90 | K62: 136.2 | L62: 132.9 | M62: 7.62156
A63: 54 | B63: CHOLAFIN | C63: 530.75 | D63: 524.90 | E63: 516.20 | F63: 501.65 | G63: 492.95 | H63: 539.45 | I63: 548.15 | J63: 562.70 | K63: 533.6 | L63: 510.35 | M63: 63.74214
A64: 55 | B64: CIPLA | C64: 911.3 | D64: 911.45 | E64: 906.15 | F64: 901.00 | G64: 895.70 | H64: 916.60 | I64: 921.90 | J64: 927.05 | K64: 916.75 | L64: 906.3 | M64: 15.22032
A65: 56 | B65: CUB | C65: 144.55 | D65: 145.32 | E65: 143.43 | F65: 142.32 | G65: 140.43 | H65: 146.43 | I65: 148.32 | J65: 149.43 | K65: 147.2 | L65: 144.2 | M65: 11.13048
A66: 57 | B66: COALINDIA | C66: 137.3 | D66: 137.68 | E66: 135.97 | F66: 134.63 | G66: 132.92 | H66: 139.02 | I66: 140.73 | J66: 142.07 | K66: 139.4 | L66: 136.35 | M66: 68.45692
A67: 58 | B67: COFORGE | C67: 4968.75 | D67: 5002.92 | E67: 4880.83 | F67: 4792.92 | G67: 4670.83 | H67: 5090.83 | I67: 5212.92 | J67: 5300.83 | K67: 5125 | L67: 4915 | M67: 5.10288
A68: 59 | B68: COLPAL | C68: 1654.4 | D68: 1656.22 | E68: 1644.43 | F68: 1634.47 | G68: 1622.68 | H68: 1666.18 | I68: 1677.97 | J68: 1687.93 | K68: 1668 | L68: 1646.25 | M68: 3.3523
A69: 60 | B69: CONCOR | C69: 653.05 | D69: 654.00 | E69: 643.40 | F69: 633.75 | G69: 623.15 | H69: 663.65 | I69: 674.25 | J69: 683.90 | K69: 664.6 | L69: 644.35 | M69: 28.50012
A70: 61 | B70: COROMANDEL | C70: 767.8 | D70: 772.12 | E70: 760.63 | F70: 753.47 | G70: 741.98 | H70: 779.28 | I70: 790.77 | J70: 797.93 | K70: 783.6 | L70: 764.95 | M70: 4.68386
A71: 62 | B71: CROMPTON | C71: 460 | D71: 459.03 | E71: 451.07 | F71: 442.13 | G71: 434.17 | H71: 467.97 | I71: 475.93 | J71: 484.87 | K71: 467 | L71: 450.1 | M71: 9.84236
A72: 63 | B72: CUMMINSIND | C72: 981.1 | D72: 985.88 | E72: 974.22 | F72: 967.33 | G72: 955.67 | H72: 992.77 | I72: 1004.43 | J72: 1011.32 | K72: 997.55 | L72: 979 | M72: 9.97156
A73: 64 | B73: DLF | C73: 307.55 | D73: 308.10 | E73: 304.70 | F73: 301.85 | G73: 298.45 | H73: 310.95 | I73: 314.35 | J73: 317.20 | K73: 311.5 | L73: 305.25 | M73: 82.82325
A74: 65 | B74: DABUR | C74: 605.5 | D74: 604.55 | E74: 599.90 | F74: 594.30 | G74: 589.65 | H74: 610.15 | I74: 614.80 | J74: 620.40 | K74: 609.2 | L74: 598.95 | M74: 17.93401
A75: 66 | B75: DALBHARAT | C75: 2042.7 | D75: 2029.03 | E75: 2006.42 | F75: 1970.13 | G75: 1947.52 | H75: 2065.32 | I75: 2087.93 | J75: 2124.22 | K75: 2051.65 | L75: 1992.75 | M75: 3.70422
A76: 67 | B76: DEEPAKNTR | C76: 2086.35 | D76: 2084.35 | E76: 2070.90 | F76: 2055.45 | G76: 2042.00 | H76: 2099.80 | I76: 2113.25 | J76: 2128.70 | K76: 2097.8 | L76: 2068.9 | M76: 4.44663
A77: 68 | B77: DHANI | C77: 186.7 | D77: 187.97 | E77: 184.43 | F77: 182.17 | G77: 178.63 | H77: 190.23 | I77: 193.77 | J77: 196.03 | K77: 191.5 | L77: 185.7 | M77: 7.3119
A78: 69 | B78: DIVISLAB | C78: 4846.7 | D78: 4850.97 | E78: 4824.73 | F78: 4802.77 | G78: 4776.53 | H78: 4872.93 | I78: 4899.17 | J78: 4921.13 | K78: 4877.2 | L78: 4829 | M78: 2.8199
A79: 70 | B79: DIXON | C79: 4042.7 | D79: 3990.72 | E79: 3893.43 | F79: 3744.17 | G79: 3646.88 | H79: 4139.98 | I79: 4237.27 | J79: 4386.53 | K79: 4088 | L79: 3841.45 | M79: 5.30804
A80: 71 | B80: LALPATHLAB | C80: 3801.2 | D80: 3816.67 | E80: 3778.33 | F80: 3755.47 | G80: 3717.13 | H80: 3839.53 | I80: 3877.87 | J80: 3900.73 | K80: 3855 | L80: 3793.8 | M80: 1.75725
A81: 72 | B81: DRREDDY | C81: 4503.5 | D81: 4514.93 | E81: 4474.97 | F81: 4446.43 | G81: 4406.47 | H81: 4543.47 | I81: 4583.43 | J81: 4611.97 | K81: 4554.9 | L81: 4486.4 | M81: 4.81719
A82: 73 | B82: EICHERMOT | C82: 2578.75 | D82: 2570.08 | E82: 2555.17 | F82: 2531.58 | G82: 2516.67 | H82: 2593.67 | I82: 2608.58 | J82: 2632.17 | K82: 2585 | L82: 2546.5 | M82: 4.40543
A83: 74 | B83: EMAMILTD | C83: 593.15 | D83: 590.13 | E83: 583.02 | F83: 572.88 | G83: 565.77 | H83: 600.27 | I83: 607.38 | J83: 617.52 | K83: 597.25 | L83: 580 | M83: 2.64865
A84: 75 | B84: ENDURANCE | C84: 1691.5 | D84: 1678.17 | E84: 1639.33 | F84: 1587.17 | G84: 1548.33 | H84: 1730.33 | I84: 1769.17 | J84: 1821.33 | K84: 1717 | L84: 1626 | M84: 0.52473
A85: 76 | B85: ESCORTS | C85: 1343.15 | D85: 1341.25 | E85: 1330.40 | F85: 1317.65 | G85: 1306.80 | H85: 1354.00 | I85: 1364.85 | J85: 1377.60 | K85: 1352.1 | L85: 1328.5 | M85: 18.37948
A86: 77 | B86: EXIDEIND | C86: 157.3 | D86: 158.45 | E86: 155.90 | F86: 154.50 | G86: 151.95 | H86: 159.85 | I86: 162.40 | J86: 163.80 | K86: 161 | L86: 157.05 | M86: 36.05295
A87: 78 | B87: FEDERALBNK | C87: 78.2 | D87: 78.93 | E87: 77.27 | F87: 76.33 | G87: 74.67 | H87: 79.87 | I87: 81.53 | J87: 82.47 | K87: 80.6 | L87: 78 | M87: 105.75502
A88: 79 | B88: FORTIS | C88: 277.55 | D88: 278.52 | E88: 273.43 | F88: 269.32 | G88: 264.23 | H88: 282.63 | I88: 287.72 | J88: 291.83 | K88: 283.6 | L88: 274.4 | M88: 24.38316
A89: 80 | B89: GAIL | C89: 142.65 | D89: 143.12 | E89: 140.93 | F89: 139.22 | G89: 137.03 | H89: 144.83 | I89: 147.02 | J89: 148.73 | K89: 145.3 | L89: 141.4 | M89: 97.53061
A90: 81 | B90: GMRINFRA | C90: 28.75 | D90: 28.82 | E90: 28.53 | F90: 28.32 | G90: 28.03 | H90: 29.03 | I90: 29.32 | J90: 29.53 | K90: 29.1 | L90: 28.6 | M90: 60.55787
A91: 82 | B91: GLAND | C91: 3876.45 | D91: 3879.27 | E91: 3838.18 | F91: 3799.92 | G91: 3758.83 | H91: 3917.53 | I91: 3958.62 | J91: 3996.88 | K91: 3920.35 | L91: 3841 | M91: 4.54556
A92: 83 | B92: GLENMARK | C92: 512.85 | D92: 516.07 | E92: 507.83 | F92: 502.82 | G92: 494.58 | H92: 521.08 | I92: 529.32 | J92: 534.33 | K92: 524.3 | L92: 511.05 | M92: 10.79304
A93: 84 | B93: GODREJAGRO | C93: 625.65 | D93: 627.73 | E93: 621.67 | F93: 617.68 | G93: 611.62 | H93: 631.72 | I93: 637.78 | J93: 641.77 | K93: 633.8 | L93: 623.75 | M93: 0.98804
A94: 85 | B94: GODREJCP | C94: 1042.65 | D94: 1048.73 | E94: 1022.62 | F94: 1002.58 | G94: 976.47 | H94: 1068.77 | I94: 1094.88 | J94: 1114.92 | K94: 1074.85 | L94: 1028.7 | M94: 42.0122
A95: 86 | B95: GODREJIND | C95: 552.05 | D95: 550.90 | E95: 544.15 | F95: 536.25 | G95: 529.50 | H95: 558.80 | I95: 565.55 | J95: 573.45 | K95: 557.65 | L95: 543 | M95: 3.42821
A96: 87 | B96: GODREJPROP | C96: 1465.25 | D96: 1458.77 | E96: 1439.78 | F96: 1414.32 | G96: 1395.33 | H96: 1484.23 | I96: 1503.22 | J96: 1528.68 | K96: 1477.75 | L96: 1433.3 | M96: 7.56332
A97: 88 | B97: GRASIM | C97: 1439.05 | D97: 1442.95 | E97: 1426.15 | F97: 1413.25 | G97: 1396.45 | H97: 1455.85 | I97: 1472.65 | J97: 1485.55 | K97: 1459.75 | L97: 1430.05 | M97: 9.36935
A98: 89 | B98: GUJGASLTD | C98: 708.75 | D98: 710.52 | E98: 702.23 | F98: 695.72 | G98: 687.43 | H98: 717.03 | I98: 725.32 | J98: 731.83 | K98: 718.8 | L98: 704 | M98: 14.20984
A99: 90 | B99: GSPL | C99: 346.7 | D99: 346.23 | E99: 342.47 | F99: 338.23 | G99: 334.47 | H99: 350.47 | I99: 354.23 | J99: 358.47 | K99: 350 | L99: 342 | M99: 6.7764
A100: 91 | B100: HCLTECH | C100: 1167.45 | D100: 1164.82 | E100: 1157.63 | F100: 1147.82 | G100: 1140.63 | H100: 1174.63 | I100: 1181.82 | J100: 1191.63 | K100: 1172 | L100: 1155 | M100: 46.54833
A101: 92 | B101: HDFCAMC | C101: 2977.6 | D101: 2974.08 | E101: 2960.47 | F101: 2943.33 | G101: 2929.72 | H101: 2991.22 | I101: 3004.83 | J101: 3021.97 | K101: 2987.7 | L101: 2956.95 | M101: 1.88007
A102: 93 | B102: HDFCBANK | C102: 1554.8 | D102: 1556.42 | E102: 1541.83 | F102: 1528.87 | G102: 1514.28 | H102: 1569.38 | I102: 1583.97 | J102: 1596.93 | K102: 1571 | L102: 1543.45 | M102: 55.59501
A103: 94 | B103: HDFCLIFE | C103: 698.85 | D103: 696.95 | E103: 691.90 | F103: 684.95 | G103: 679.90 | H103: 703.90 | I103: 708.95 | J103: 715.90 | K103: 702 | L103: 690 | M103: 76.71524
A104: 95 | B104: HAVELLS | C104: 1215 | D104: 1208.95 | E104: 1197.05 | F104: 1179.10 | G104: 1167.20 | H104: 1226.90 | I104: 1238.80 | J104: 1256.75 | K104: 1220.85 | L104: 1191 | M104: 14.13269
A105: 96 | B105: HEROMOTOCO | C105: 2647.55 | D105: 2656.68 | E105: 2633.37 | F105: 2619.18 | G105: 2595.87 | H105: 2670.87 | I105: 2694.18 | J105: 2708.37 | K105: 2680 | L105: 2642.5 | M105: 4.45529
A106: 97 | B106: HINDALCO | C106: 424.1 | D106: 425.73 | E106: 419.17 | F106: 414.23 | G106: 407.67 | H106: 430.67 | I106: 437.23 | J106: 442.17 | K106: 432.3 | L106: 420.8 | M106: 76.95674
A107: 98 | B107: HAL | C107: 1289.6 | D107: 1283.87 | E107: 1256.73 | F107: 1223.87 | G107: 1196.73 | H107: 1316.73 | I107: 1343.87 | J107: 1376.73 | K107: 1311 | L107: 1251 | M107: 26.87137
A108: 99 | B108: HINDPETRO | C108: 255.5 | D108: 255.87 | E108: 253.28 | F108: 251.07 | G108: 248.48 | H108: 258.08 | I108: 260.67 | J108: 262.88 | K108: 258.45 | L108: 253.65 | M108: 20.31157
A109: 100 | B109: HINDUNILVR | C109: 2666.4 | D109: 2665.07 | E109: 2632.33 | F109: 2598.27 | G109: 2565.53 | H109: 2699.13 | I109: 2731.87 | J109: 2765.93 | K109: 2697.8 | L109: 2631 | M109: 21.17291
A110: 101 | B110: HINDZINC | C110: 315.3 | D110: 314.77 | E110: 312.53 | F110: 309.77 | G110: 307.53 | H110: 317.53 | I110: 319.77 | J110: 322.53 | K110: 317 | L110: 312 | M110: 6.41303
A111: 102 | B111: HDFC | C111: 2700.35 | D111: 2700.85 | E111: 2681.70 | F111: 2663.05 | G111: 2643.90 | H111: 2719.50 | I111: 2738.65 | J111: 2757.30 | K111: 2720 | L111: 2682.2 | M111: 18.55274
A112: 103 | B112: ICICIBANK | C112: 698.8 | D112: 696.78 | E112: 692.02 | F112: 685.23 | G112: 680.47 | H112: 703.57 | I112: 708.33 | J112: 715.12 | K112: 701.55 | L112: 690 | M112: 107.56731
A113: 104 | B113: ICICIGI | C113: 1471.15 | D113: 1468.05 | E113: 1451.10 | F113: 1431.05 | G113: 1414.10 | H113: 1488.10 | I113: 1505.05 | J113: 1525.10 | K113: 1485 | L113: 1448 | M113: 7.7772
A114: 105 | B114: ICICIPRULI | C114: 651.85 | D114: 651.30 | E114: 645.85 | F114: 639.85 | G114: 634.40 | H114: 657.30 | I114: 662.75 | J114: 668.75 | K114: 656.75 | L114: 645.3 | M114: 20.39779
A115: 106 | B115: ISEC | C115: 699.9 | D115: 696.92 | E115: 689.98 | F115: 680.07 | G115: 673.13 | H115: 706.83 | I115: 713.77 | J115: 723.68 | K115: 703.85 | L115: 687 | M115: 3.71503
A116: 107 | B116: IDFCFIRSTB | C116: 42.2 | D116: 42.32 | E116: 41.73 | F116: 41.27 | G116: 40.68 | H116: 42.78 | I116: 43.37 | J116: 43.83 | K116: 42.9 | L116: 41.85 | M116: 224.42384
A117: 108 | B117: ITC | C117: 204.6 | D117: 205.27 | E117: 203.68 | F117: 202.77 | G117: 201.18 | H117: 206.18 | I117: 207.77 | J117: 208.68 | K117: 206.85 | L117: 204.35 | M117: 148.36173
A118: 109 | B118: IBULHSGFIN | C118: 219 | D118: 220.67 | E118: 215.58 | F118: 212.17 | G118: 207.08 | H118: 224.08 | I118: 229.17 | J118: 232.58 | K118: 225.75 | L118: 217.25 | M118: 116.91183
A119: 110 | B119: INDIAMART | C119: 7077.95 | D119: 7079.38 | E119: 7018.77 | F119: 6959.58 | G119: 6898.97 | H119: 7138.57 | I119: 7199.18 | J119: 7258.37 | K119: 7140 | L119: 7020.2 | M119: 0.32923
A120: 111 | B120: INDHOTEL | C120: 137.65 | D120: 138.07 | E120: 136.58 | F120: 135.52 | G120: 134.03 | H120: 139.13 | I120: 140.62 | J120: 141.68 | K120: 139.55 | L120: 137 | M120: 10.1363
A121: 112 | B121: IOC | C121: 105.6 | D121: 105.45 | E121: 104.85 | F121: 104.10 | G121: 103.50 | H121: 106.20 | I121: 106.80 | J121: 107.55 | K121: 106.05 | L121: 104.7 | M121: 79.53133
A122: 113 | B122: IRCTC | C122: 2621.7 | D122: 2633.53 | E122: 2603.17 | F122: 2584.63 | G122: 2554.27 | H122: 2652.07 | I122: 2682.43 | J122: 2700.97 | K122: 2663.9 | L122: 2615 | M122: 14.01991
A123: 114 | B123: IGL | C123: 524.35 | D123: 524.78 | E123: 520.97 | F123: 517.58 | G123: 513.77 | H123: 528.17 | I123: 531.98 | J123: 535.37 | K123: 528.6 | L123: 521.4 | M123: 8.40207
A124: 115 | B124: INDUSTOWER | C124: 215.2 | D124: 216.58 | E124: 212.77 | F124: 210.33 | G124: 206.52 | H124: 219.02 | I124: 222.83 | J124: 225.27 | K124: 220.4 | L124: 214.15 | M124: 15.2907
A125: 116 | B125: INDUSINDBK | C125: 1001.5 | D125: 1004.08 | E125: 995.52 | F125: 989.53 | G125: 980.97 | H125: 1010.07 | I125: 1018.63 | J125: 1024.62 | K125: 1012.65 | L125: 998.1 | M125: 19.71408
A126: 117 | B126: NAUKRI | C126: 5796.55 | D126: 5804.48 | E126: 5734.07 | F126: 5671.58 | G126: 5601.17 | H126: 5866.97 | I126: 5937.38 | J126: 5999.87 | K126: 5874.9 | L126: 5742 | M126: 2.83878
A127: 118 | B127: INFY | C127: 1727.7 | D127: 1731.23 | E127: 1716.47 | F127: 1705.23 | G127: 1690.47 | H127: 1742.47 | I127: 1757.23 | J127: 1768.47 | K127: 1746 | L127: 1720 | M127: 53.02248
A128: 119 | B128: INDIGO | C128: 1747.8 | D128: 1742.27 | E128: 1723.53 | F128: 1699.27 | G128: 1680.53 | H128: 1766.53 | I128: 1785.27 | J128: 1809.53 | K128: 1761 | L128: 1718 | M128: 7.81715
A129: 120 | B129: IPCALAB | C129: 2512.95 | D129: 2512.85 | E129: 2483.10 | F129: 2453.25 | G129: 2423.50 | H129: 2542.70 | I129: 2572.45 | J129: 2602.30 | K129: 2542.6 | L129: 2483 | M129: 2.01459
A130: 121 | B130: JSWENERGY | C130: 237.95 | D130: 233.97 | E130: 229.98 | F130: 222.02 | G130: 218.03 | H130: 241.93 | I130: 245.92 | J130: 253.88 | K130: 237.95 | L130: 226 | M130: 16.4109
A131: 122 | B131: JSWSTEEL | C131: 672 | D131: 675.43 | E131: 665.87 | F131: 659.73 | G131: 650.17 | H131: 681.57 | I131: 691.13 | J131: 697.27 | K131: 685 | L131: 669.3 | M131: 56.59963
A132: 123 | B132: JINDALSTEL | C132: 371.25 | D132: 372.52 | E132: 367.73 | F132: 364.22 | G132: 359.43 | H132: 376.03 | I132: 380.82 | J132: 384.33 | K132: 377.3 | L132: 369 | M132: 78.90653
A133: 124 | B133: JUBLFOOD | C133: 3829.35 | D133: 3813.45 | E133: 3767.95 | F133: 3706.55 | G133: 3661.05 | H133: 3874.85 | I133: 3920.35 | J133: 3981.75 | K133: 3858.95 | L133: 3752.05 | M133: 4.65122
A134: 125 | B134: KOTAKBANK | C134: 1697.5 | D134: 1700.97 | E134: 1685.43 | F134: 1673.37 | G134: 1657.83 | H134: 1713.03 | I134: 1728.57 | J134: 1740.63 | K134: 1716.5 | L134: 1688.9 | M134: 43.82577
A135: 126 | B135: L&TFH | C135: 81.2 | D135: 81.00 | E135: 80.20 | F135: 79.20 | G135: 78.40 | H135: 82.00 | I135: 82.80 | J135: 83.80 | K135: 81.8 | L135: 80 | M135: 90.93421
A136: 127 | B136: LTTS | C136: 3854.8 | D136: 3878.92 | E136: 3783.58 | F136: 3712.37 | G136: 3617.03 | H136: 3950.13 | I136: 4045.47 | J136: 4116.68 | K136: 3974.25 | L136: 3807.7 | M136: 5.54552
A137: 128 | B137: LICHSGFIN | C137: 386.25 | D137: 386.75 | E137: 381.85 | F137: 377.45 | G137: 372.55 | H137: 391.15 | I137: 396.05 | J137: 400.45 | K137: 391.65 | L137: 382.35 | M137: 54.60351
A138: 129 | B138: LTI | C138: 5137.7 | D138: 5135.13 | E138: 5053.62 | F138: 4969.53 | G138: 4888.02 | H138: 5219.22 | I138: 5300.73 | J138: 5384.82 | K138: 5216.65 | L138: 5051.05 | M138: 5.13667
A139: 130 | B139: LT | C139: 1595.75 | D139: 1594.57 | E139: 1586.18 | F139: 1576.62 | G139: 1568.23 | H139: 1604.13 | I139: 1612.52 | J139: 1622.08 | K139: 1602.95 | L139: 1585 | M139: 20.51262
A140: 131 | B140: LAURUSLABS | C140: 667.55 | D140: 670.00 | E140: 661.55 | F140: 655.55 | G140: 647.10 | H140: 676.00 | I140: 684.45 | J140: 690.45 | K140: 678.45 | L140: 664 | M140: 19.9335
A141: 132 | B141: LUPIN | C141: 937.45 | D141: 938.75 | E141: 932.75 | F141: 928.05 | G141: 922.05 | H141: 943.45 | I141: 949.45 | J141: 954.15 | K141: 944.75 | L141: 934.05 | M141: 13.56807
A142: 133 | B142: MRF | C142: 76564.55 | D142: 76709.85 | E142: 76154.70 | F142: 75744.85 | G142: 75189.70 | H142: 77119.70 | I142: 77674.85 | J142: 78084.70 | K142: 77265 | L142: 76300 | M142: 0.08394
A143: 134 | B143: MGL | C143: 1118.05 | D143: 1120.77 | E143: 1109.53 | F143: 1101.02 | G143: 1089.78 | H143: 1129.28 | I143: 1140.52 | J143: 1149.03 | K143: 1132 | L143: 1112.25 | M143: 2.5837
A144: 135 | B144: M&MFIN | C144: 155.1 | D144: 152.90 | E144: 150.00 | F144: 144.90 | G144: 142.00 | H144: 158.00 | I144: 160.90 | J144: 166.00 | K144: 155.8 | L144: 147.8 | M144: 184.03721
A145: 136 | B145: M&M | C145: 781.4 | D145: 777.18 | E145: 771.47 | F145: 761.53 | G145: 755.82 | H145: 787.12 | I145: 792.83 | J145: 802.77 | K145: 782.9 | L145: 767.25 | M145: 25.76883
A146: 137 | B146: MANAPPURAM | C146: 161.4 | D146: 162.30 | E146: 159.85 | F146: 158.30 | G146: 155.85 | H146: 163.85 | I146: 166.30 | J146: 167.85 | K146: 164.75 | L146: 160.75 | M146: 44.13363
A147: 138 | B147: MARICO | C147: 522.1 | D147: 521.43 | E147: 514.17 | F147: 506.23 | G147: 498.97 | H147: 529.37 | I147: 536.63 | J147: 544.57 | K147: 528.7 | L147: 513.5 | M147: 51.09949
A148: 139 | B148: MARUTI | C148: 6608.6 | D148: 6633.65 | E148: 6565.95 | F148: 6523.30 | G148: 6455.60 | H148: 6676.30 | I148: 6744.00 | J148: 6786.65 | K148: 6701.35 | L148: 6591 | M148: 11.99429
A149: 140 | B149: MFSL | C149: 1024.45 | D149: 1025.50 | E149: 1012.30 | F149: 1000.15 | G149: 986.95 | H149: 1037.65 | I149: 1050.85 | J149: 1063.00 | K149: 1038.7 | L149: 1013.35 | M149: 4.90524
A150: 141 | B150: MINDTREE | C150: 3494.95 | D150: 3501.15 | E150: 3445.90 | F150: 3396.85 | G150: 3341.60 | H150: 3550.20 | I150: 3605.45 | J150: 3654.50 | K150: 3556.4 | L150: 3452.1 | M150: 10.27431
A151: 142 | B151: MPHASIS | C151: 2743.25 | D151: 2767.78 | E151: 2711.57 | F151: 2679.88 | G151: 2623.67 | H151: 2799.47 | I151: 2855.68 | J151: 2887.37 | K151: 2824 | L151: 2736.1 | M151: 6.50414
A152: 143 | B152: MUTHOOTFIN | C152: 1485.4 | D152: 1484.13 | E152: 1468.37 | F152: 1451.33 | G152: 1435.57 | H152: 1501.17 | I152: 1516.93 | J152: 1533.97 | K152: 1499.9 | L152: 1467.1 | M152: 5.951
A153: 144 | B153: NATCOPHARM | C153: 939.25 | D153: 934.67 | E153: 927.33 | F153: 915.42 | G153: 908.08 | H153: 946.58 | I153: 953.92 | J153: 965.83 | K153: 942 | L153: 922.75 | M153: 1.33833
A154: 145 | B154: NMDC | C154: 148.55 | D154: 151.30 | E154: 145.15 | F154: 141.75 | G154: 135.60 | H154: 154.70 | I154: 160.85 | J154: 164.25 | K154: 157.45 | L154: 147.9 | M154: 437.57434
A155: 146 | B155: NTPC | C155: 112.75 | D155: 113.07 | E155: 111.63 | F155: 110.52 | G155: 109.08 | H155: 114.18 | I155: 115.62 | J155: 116.73 | K155: 114.5 | L155: 111.95 | M155: 116.68986
A156: 147 | B156: NAVINFLUOR | C156: 3602.1 | D156: 3610.13 | E156: 3572.27 | F156: 3542.43 | G156: 3504.57 | H156: 3639.97 | I156: 3677.83 | J156: 3707.67 | K156: 3648 | L156: 3580.3 | M156: 0.93072
A157: 148 | B157: NESTLEIND | C157: 20052.7 | D157: 19992.65 | E157: 19865.60 | F157: 19678.50 | G157: 19551.45 | H157: 20179.75 | I157: 20306.80 | J157: 20493.90 | K157: 20119.7 | L157: 19805.55 | M157: 0.63204
A158: 149 | B158: NAM-INDIA | C158: 407.8 | D158: 409.55 | E158: 401.80 | F158: 395.80 | G158: 388.05 | H158: 415.55 | I158: 423.30 | J158: 429.30 | K158: 417.3 | L158: 403.55 | M158: 23.42375
A159: 150 | B159: OBEROIRLTY | C159: 665.75 | D159: 668.13 | E159: 659.72 | F159: 653.68 | G159: 645.27 | H159: 674.17 | I159: 682.58 | J159: 688.62 | K159: 676.55 | L159: 662.1 | M159: 1.69269
A160: 151 | B160: ONGC | C160: 115.55 | D160: 115.40 | E160: 114.55 | F160: 113.55 | G160: 112.70 | H160: 116.40 | I160: 117.25 | J160: 118.25 | K160: 116.25 | L160: 114.4 | M160: 87.79246
A161: 152 | B161: OIL | C161: 179.65 | D161: 179.12 | E161: 176.03 | F161: 172.42 | G161: 169.33 | H161: 182.73 | I161: 185.82 | J161: 189.43 | K161: 182.2 | L161: 175.5 | M161: 47.03587
A162: 153 | B162: PIIND | C162: 3138.65 | D162: 3133.02 | E162: 3097.73 | F162: 3056.82 | G162: 3021.53 | H162: 3173.93 | I162: 3209.22 | J162: 3250.13 | K162: 3168.3 | L162: 3092.1 | M162: 2.12501
A163: 154 | B163: PAGEIND | C163: 30471.75 | D163: 30654.22 | E163: 30130.18 | F163: 29788.62 | G163: 29264.58 | H163: 30995.78 | I163: 31519.82 | J163: 31861.38 | K163: 31178.25 | L163: 30312.65 | M163: 0.27379
A164: 155 | B164: PETRONET | C164: 227.6 | D164: 227.93 | E164: 225.12 | F164: 222.63 | G164: 219.82 | H164: 230.42 | I164: 233.23 | J164: 235.72 | K164: 230.75 | L164: 225.45 | M164: 33.86874
A165: 156 | B165: PFIZER | C165: 5694.7 | D165: 5719.20 | E165: 5658.50 | F165: 5622.30 | G165: 5561.60 | H165: 5755.40 | I165: 5816.10 | J165: 5852.30 | K165: 5779.9 | L165: 5683 | M165: 0.32901
A166: 157 | B166: PIDILITIND | C166: 2227.7 | D166: 2224.83 | E166: 2209.87 | F166: 2192.03 | G166: 2177.07 | H166: 2242.67 | I166: 2257.63 | J166: 2275.47 | K166: 2239.8 | L166: 2207 | M166: 3.37985
A167: 158 | B167: PEL | C167: 2567.05 | D167: 2580.02 | E167: 2537.13 | F167: 2507.22 | G167: 2464.33 | H167: 2609.93 | I167: 2652.82 | J167: 2682.73 | K167: 2622.9 | L167: 2550.1 | M167: 5.09589
A168: 159 | B168: POLYCAB | C168: 1857.25 | D168: 1857.23 | E168: 1832.07 | F168: 1806.88 | G168: 1781.72 | H168: 1882.42 | I168: 1907.58 | J168: 1932.77 | K168: 1882.4 | L168: 1832.05 | M168: 1.87893
A169: 160 | B169: PFC | C169: 124.65 | D169: 125.18 | E169: 123.57 | F169: 122.48 | G169: 120.87 | H169: 126.27 | I169: 127.88 | J169: 128.97 | K169: 126.8 | L169: 124.1 | M169: 26.57392
A170: 161 | B170: POWERGRID | C170: 173.1 | D170: 173.37 | E170: 171.33 | F170: 169.57 | G170: 167.53 | H170: 175.13 | I170: 177.17 | J170: 178.93 | K170: 175.4 | L170: 171.6 | M170: 90.86435
A171: 162 | B171: PRESTIGE | C171: 350.65 | D171: 347.37 | E171: 340.73 | F171: 330.82 | G171: 324.18 | H171: 357.28 | I171: 363.92 | J171: 373.83 | K171: 354 | L171: 337.45 | M171: 5.8403
A172: 163 | B172: PGHH | C172: 13589.95 | D172: 13476.28 | E172: 12864.67 | F172: 12139.38 | G172: 11527.77 | H172: 14201.57 | I172: 14813.18 | J172: 15538.47 | K172: 14087.9 | L172: 12751 | M172: 0.71955
A173: 164 | B173: PNB | C173: 35.8 | D173: 36.05 | E173: 35.45 | F173: 35.10 | G173: 34.50 | H173: 36.40 | I173: 37.00 | J173: 37.35 | K173: 36.65 | L173: 35.7 | M173: 355.09249
A174: 165 | B174: RBLBANK | C174: 162.55 | D174: 162.77 | E174: 160.33 | F174: 158.12 | G174: 155.68 | H174: 164.98 | I174: 167.42 | J174: 169.63 | K174: 165.2 | L174: 160.55 | M174: 90.71081
A175: 166 | B175: RECLTD | C175: 144.1 | D175: 144.55 | E175: 143.05 | F175: 142.00 | G175: 140.50 | H175: 145.60 | I175: 147.10 | J175: 148.15 | K175: 146.05 | L175: 143.5 | M175: 23.08357
A176: 167 | B176: RELIANCE | C176: 2230.45 | D176: 2226.78 | E176: 2208.67 | F176: 2186.88 | G176: 2168.77 | H176: 2248.57 | I176: 2266.68 | J176: 2288.47 | K176: 2244.9 | L176: 2205 | M176: 85.79105
A177: 168 | B177: SBICARD | C177: 1088.05 | D177: 1080.50 | E177: 1061.00 | F177: 1033.95 | G177: 1014.45 | H177: 1107.55 | I177: 1127.05 | J177: 1154.10 | K177: 1100 | L177: 1053.45 | M177: 19.71766
A178: 169 | B178: SBILIFE | C178: 1151.8 | D178: 1153.72 | E178: 1142.93 | F178: 1134.07 | G178: 1123.28 | H178: 1162.58 | I178: 1173.37 | J178: 1182.23 | K178: 1164.5 | L178: 1144.85 | M178: 8.23814
A179: 170 | B179: SRF | C179: 9063.15 | D179: 9034.42 | E179: 8918.83 | F179: 8774.52 | G179: 8658.93 | H179: 9178.73 | I179: 9294.32 | J179: 9438.63 | K179: 9150 | L179: 8890.1 | M179: 1.3295
A180: 171 | B180: SANOFI | C180: 8688.4 | D180: 8752.77 | E180: 8605.63 | F180: 8522.87 | G180: 8375.73 | H180: 8835.53 | I180: 8982.67 | J180: 9065.43 | K180: 8899.9 | L180: 8670 | M180: 0.10971
A181: 172 | B181: SHREECEM | C181: 26556.05 | D181: 26434.02 | E181: 26238.03 | F181: 25920.02 | G181: 25724.03 | H181: 26752.03 | I181: 26948.02 | J181: 27266.03 | K181: 26630 | L181: 26116 | M181: 0.49409
A182: 173 | B182: SRTRANSFIN | C182: 1265.45 | D182: 1273.18 | E182: 1249.22 | F182: 1232.98 | G182: 1209.02 | H182: 1289.42 | I182: 1313.38 | J182: 1329.62 | K182: 1297.15 | L182: 1256.95 | M182: 13.13532
A183: 174 | B183: SIEMENS | C183: 2211.05 | D183: 2204.67 | E183: 2187.38 | F183: 2163.72 | G183: 2146.43 | H183: 2228.33 | I183: 2245.62 | J183: 2269.28 | K183: 2221.95 | L183: 2181 | M183: 3.18002
A184: 175 | B184: SBIN | C184: 410.75 | D184: 412.18 | E184: 408.57 | F184: 406.38 | G184: 402.77 | H184: 414.37 | I184: 417.98 | J184: 420.17 | K184: 415.8 | L184: 410 | M184: 158.97679
A185: 176 | B185: SAIL | C185: 115.25 | D185: 116.18 | E185: 113.07 | F185: 110.88 | G185: 107.77 | H185: 118.37 | I185: 121.48 | J185: 123.67 | K185: 119.3 | L185: 114 | M185: 583.81363
A186: 177 | B186: SUNPHARMA | C186: 760.55 | D186: 763.63 | E186: 756.17 | F186: 751.78 | G186: 744.32 | H186: 768.02 | I186: 775.48 | J186: 779.87 | K186: 771.1 | L186: 759.25 | M186: 17.35864
A187: 178 | B187: SUNTV | C187: 475.55 | D187: 479.15 | E187: 469.55 | F187: 463.55 | G187: 453.95 | H187: 485.15 | I187: 494.75 | J187: 500.75 | K187: 488.75 | L187: 473.15 | M187: 16.77941
A188: 179 | B188: SYNGENE | C188: 615.25 | D188: 611.57 | E188: 599.23 | F188: 583.22 | G188: 570.88 | H188: 627.58 | I188: 639.92 | J188: 655.93 | K188: 623.9 | L188: 595.55 | M188: 7.43266
A189: 180 | B189: TVSMOTOR | C189: 509.2 | D189: 512.82 | E189: 502.88 | F189: 496.57 | G189: 486.63 | H189: 519.13 | I189: 529.07 | J189: 535.38 | K189: 522.75 | L189: 506.5 | M189: 11.87899
A190: 181 | B190: TATACHEM | C190: 826.6 | D190: 826.38 | E190: 818.32 | F190: 810.03 | G190: 801.97 | H190: 834.67 | I190: 842.73 | J190: 851.02 | K190: 834.45 | L190: 818.1 | M190: 22.92653
A191: 182 | B191: TCS | C191: 3671.85 | D191: 3669.12 | E191: 3650.63 | F191: 3629.42 | G191: 3610.93 | H191: 3690.33 | I191: 3708.82 | J191: 3730.03 | K191: 3687.6 | L191: 3647.9 | M191: 19.02533
A192: 183 | B192: TATACONSUM | C192: 853.3 | D192: 848.22 | E192: 839.63 | F192: 825.97 | G192: 817.38 | H192: 861.88 | I192: 870.47 | J192: 884.13 | K192: 856.8 | L192: 834.55 | M192: 24.6457
A193: 184 | B193: TATAELXSI | C193: 4861.6 | D193: 4865.58 | E193: 4807.17 | F193: 4752.73 | G193: 4694.32 | H193: 4920.02 | I193: 4978.43 | J193: 5032.87 | K193: 4924 | L193: 4811.15 | M193: 1.36051
A194: 185 | B194: TATAMOTORS | C194: 284.3 | D194: 284.43 | E194: 281.52 | F194: 278.73 | G194: 275.82 | H194: 287.22 | I194: 290.13 | J194: 292.92 | K194: 287.35 | L194: 281.65 | M194: 178.64053
A195: 186 | B195: TATAPOWER | C195: 125.65 | D195: 125.60 | E195: 124.60 | F195: 123.55 | G195: 122.55 | H195: 126.65 | I195: 127.65 | J195: 128.70 | K195: 126.6 | L195: 124.55 | M195: 169.68193
A196: 187 | B196: TATASTEEL | C196: 1375.05 | D196: 1378.27 | E196: 1361.78 | F196: 1348.52 | G196: 1332.03 | H196: 1391.53 | I196: 1408.02 | J196: 1421.28 | K196: 1394.75 | L196: 1365 | M196: 91.57898
A197: 188 | B197: TECHM | C197: 1449.5 | D197: 1453.42 | E197: 1440.08 | F197: 1430.67 | G197: 1417.33 | H197: 1462.83 | I197: 1476.17 | J197: 1485.58 | K197: 1466.75 | L197: 1444 | M197: 19.93944
A198: 189 | B198: RAMCOCEM | C198: 968.6 | D198: 968.62 | E198: 956.58 | F198: 944.57 | G198: 932.53 | H198: 980.63 | I198: 992.67 | J198: 1004.68 | K198: 980.65 | L198: 956.6 | M198: 5.11724
A199: 190 | B199: TITAN | C199: 1815.35 | D199: 1818.40 | E199: 1802.20 | F199: 1789.05 | G199: 1772.85 | H199: 1831.55 | I199: 1847.75 | J199: 1860.90 | K199: 1834.6 | L199: 1805.25 | M199: 10.5929
A200: 191 | B200: TORNTPHARM | C200: 3052.75 | D200: 3058.80 | E200: 3030.55 | F200: 3008.35 | G200: 2980.10 | H200: 3081.00 | I200: 3109.25 | J200: 3131.45 | K200: 3087.05 | L200: 3036.6 | M200: 1.20644
A201: 192 | B201: TORNTPOWER | C201: 473.15 | D201: 472.17 | E201: 466.68 | F201: 460.22 | G201: 454.73 | H201: 478.63 | I201: 484.12 | J201: 490.58 | K201: 477.65 | L201: 465.7 | M201: 30.57691
A202: 193 | B202: TRENT | C202: 941.35 | D202: 941.82 | E202: 919.48 | F202: 897.62 | G202: 875.28 | H202: 963.68 | I202: 986.02 | J202: 1007.88 | K202: 964.15 | L202: 919.95 | M202: 31.21784
A203: 194 | B203: UPL | C203: 719.65 | D203: 722.15 | E203: 714.50 | F203: 709.35 | G203: 701.70 | H203: 727.30 | I203: 734.95 | J203: 740.10 | K203: 729.8 | L203: 717 | M203: 15.38567
A204: 195 | B204: ULTRACEMCO | C204: 7307.1 | D204: 7342.33 | E204: 7265.77 | F204: 7224.43 | G204: 7147.87 | H204: 7383.67 | I204: 7460.23 | J204: 7501.57 | K204: 7418.9 | L204: 7301 | M204: 1.83243
A205: 196 | B205: UNIONBANK | C205: 33.55 | D205: 33.52 | E205: 33.33 | F205: 33.12 | G205: 32.93 | H205: 33.73 | I205: 33.92 | J205: 34.13 | K205: 33.7 | L205: 33.3 | M205: 28.50489
... 29 more rows

Sheet MidCap Intra
L5: Back To Main Page
A6: FOR INTRA DAY TRADING | K6: =Main!B10 -> 2021-08-27
A9: Sr.no | B9: Scrip | C9: CLOSE RATE | D9: Pivot Point | E9: Supports | H9: Resistances
E10: S1 | F10: S2 | G10: S3 | H10: R1 | I10: R2 | J10: R3 | K10: HIGH | L10: LOW | M10: Total Trade Quanity in Lakhs
A11: 1 | B11: 3MINDIA | C11: 22828.1 | D11: 22896.03 | E11: 22692.07 | F11: 22556.03 | G11: 22352.07 | H11: 23032.07 | I11: 23236.03 | J11: 23372.07 | K11: 23100 | L11: 22760 | M11: 0.01862
A12: 2 | B12: ABB | C12: 1736.35 | D12: 1744.82 | E12: 1713.93 | F12: 1691.52 | G12: 1660.63 | H12: 1767.23 | I12: 1798.12 | J12: 1820.53 | K12: 1775.7 | L12: 1722.4 | M12: 0.91908
A13: 3 | B13: POWERINDIA | C13: 2159.4 | D13: 2104.70 | E13: 1989.40 | F13: 1819.40 | G13: 1704.10 | H13: 2274.70 | I13: 2390.00 | J13: 2560.00 | K13: 2220 | L13: 1934.7 | M13: 5.52638
A14: 4 | B14: ACC | C14: 2275.55 | D14: 2273.43 | E14: 2260.37 | F14: 2245.18 | G14: 2232.12 | H14: 2288.62 | I14: 2301.68 | J14: 2316.87 | K14: 2286.5 | L14: 2258.25 | M14: 3.73379
A15: 5 | B15: AIAENG | C15: 1938.9 | D15: 1937.02 | E15: 1928.18 | F15: 1917.47 | G15: 1908.63 | H15: 1947.73 | I15: 1956.57 | J15: 1967.28 | K15: 1945.85 | L15: 1926.3 | M15: 0.31398
A16: 6 | B16: APLAPOLLO | C16: 1617.85 | D16: 1600.15 | E16: 1570.30 | F16: 1522.75 | G16: 1492.90 | H16: 1647.70 | I16: 1677.55 | J16: 1725.10 | K16: 1630 | L16: 1552.6 | M16: 2.08859
A17: 7 | B17: AUBANK | C17: 1353.3 | D17: 1356.75 | E17: 1331.55 | F17: 1309.80 | G17: 1284.60 | H17: 1378.50 | I17: 1403.70 | J17: 1425.45 | K17: 1381.95 | L17: 1335 | M17: 15.02243
A18: 8 | B18: AARTIDRUGS | C18: 613.85 | D18: 619.67 | E18: 605.43 | F18: 597.02 | G18: 582.78 | H18: 628.08 | I18: 642.32 | J18: 650.73 | K18: 633.9 | L18: 611.25 | M18: 1.62597
A19: 9 | B19: AARTIIND | C19: 906.85 | D19: 910.50 | E19: 899.35 | F19: 891.85 | G19: 880.70 | H19: 918.00 | I19: 929.15 | J19: 936.65 | K19: 921.65 | L19: 903 | M19: 5.96477
A20: 10 | B20: AAVAS | C20: 2389.7 | D20: 2401.80 | E20: 2359.60 | F20: 2329.50 | G20: 2287.30 | H20: 2431.90 | I20: 2474.10 | J20: 2504.20 | K20: 2444 | L20: 2371.7 | M20: 0.59718
A21: 11 | B21: ABBOTINDIA | C21: 18906.65 | D21: 19006.07 | E21: 18660.63 | F21: 18414.62 | G21: 18069.18 | H21: 19252.08 | I21: 19597.52 | J21: 19843.53 | K21: 19351.5 | L21: 18760.05 | M21: 0.11606
A22: 12 | B22: ADANIENT | C22: 1475.7 | D22: 1476.92 | E22: 1459.18 | F22: 1442.67 | G22: 1424.93 | H22: 1493.43 | I22: 1511.17 | J22: 1527.68 | K22: 1494.65 | L22: 1460.4 | M22: 46.78919
A23: 13 | B23: ADANIGREEN | C23: 1046.45 | D23: 1036.85 | E23: 1026.70 | F23: 1006.95 | G23: 996.80 | H23: 1056.60 | I23: 1066.75 | J23: 1086.50 | K23: 1047 | L23: 1017.1 | M23: 16.86596
A24: 14 | B24: ADANIPORTS | C24: 721.7 | D24: 724.13 | E24: 715.27 | F24: 708.83 | G24: 699.97 | H24: 730.57 | I24: 739.43 | J24: 745.87 | K24: 733 | L24: 717.7 | M24: 149.69643
A25: 15 | B25: ATGL | C25: 1303.9 | D25: 1291.50 | E25: 1279.10 | F25: 1254.30 | G25: 1241.90 | H25: 1316.30 | I25: 1328.70 | J25: 1353.50 | K25: 1303.9 | L25: 1266.7 | M25: 6.27956
A26: 16 | B26: ADANITRANS | C26: 1365.45 | D26: 1365.45 | E26: 1365.45 | F26: 1365.45 | G26: 1365.45 | H26: 1365.45 | I26: 1365.45 | J26: 1365.45 | K26: 1365.45 | L26: 1365.45 | M26: 7.9975
A27: 17 | B27: ABCAPITAL | C27: 106.3 | D27: 106.82 | E27: 104.88 | F27: 103.47 | G27: 101.53 | H27: 108.23 | I27: 110.17 | J27: 111.58 | K27: 108.75 | L27: 105.4 | M27: 32.60971
A28: 18 | B28: ABFRL | C28: 200.35 | D28: 199.90 | E28: 197.55 | F28: 194.75 | G28: 192.40 | H28: 202.70 | I28: 205.05 | J28: 207.85 | K28: 202.25 | L28: 197.1 | M28: 18.2713
A29: 19 | B29: ADVENZYMES | C29: 366.05 | D29: 367.12 | E29: 359.93 | F29: 353.82 | G29: 346.63 | H29: 373.23 | I29: 380.42 | J29: 386.53 | K29: 374.3 | L29: 361 | M29: 1.35501
A30: 20 | B30: AEGISCHEM | C30: 269.35 | D30: 269.10 | E30: 267.25 | F30: 265.15 | G30: 263.30 | H30: 271.20 | I30: 273.05 | J30: 275.15 | K30: 270.95 | L30: 267 | M30: 2.30035
A31: 21 | B31: AFFLE | C31: 4155.6 | D31: 4103.73 | E31: 4051.87 | F31: 3948.13 | G31: 3896.27 | H31: 4207.47 | I31: 4259.33 | J31: 4363.07 | K31: 4155.6 | L31: 4000 | M31: 0.95904
A32: 22 | B32: AJANTPHARM | C32: 2234.25 | D32: 2239.57 | E32: 2210.53 | F32: 2186.82 | G32: 2157.78 | H32: 2263.28 | I32: 2292.32 | J32: 2316.03 | K32: 2268.6 | L32: 2215.85 | M32: 0.30001
A33: 23 | B33: AKZOINDIA | C33: 2200.55 | D33: 2206.85 | E33: 2192.70 | F33: 2184.85 | G33: 2170.70 | H33: 2214.70 | I33: 2228.85 | J33: 2236.70 | K33: 2221 | L33: 2199 | M33: 0.0194
A34: 24 | B34: ALEMBICLTD | C34: 103.5 | D34: 104.13 | E34: 102.37 | F34: 101.23 | G34: 99.47 | H34: 105.27 | I34: 107.03 | J34: 108.17 | K34: 105.9 | L34: 103 | M34: 1.75052
A35: 25 | B35: APLLTD | C35: 735.85 | D35: 741.18 | E35: 728.07 | F35: 720.28 | G35: 707.17 | H35: 748.97 | I35: 762.08 | J35: 769.87 | K35: 754.3 | L35: 733.4 | M35: 2.15912
A36: 26 | B36: ALKEM | C36: 3862.8 | D36: 3844.83 | E36: 3809.67 | F36: 3756.53 | G36: 3721.37 | H36: 3897.97 | I36: 3933.13 | J36: 3986.27 | K36: 3880 | L36: 3791.7 | M36: 1.3826
A37: 27 | B37: ALKYLAMINE | C37: 3954.6 | D37: 3955.42 | E37: 3925.83 | F37: 3897.07 | G37: 3867.48 | H37: 3984.18 | I37: 4013.77 | J37: 4042.53 | K37: 3985 | L37: 3926.65 | M37: 1.3958
A38: 28 | B38: ALOKINDS | C38: 21.15 | D38: 21.20 | E38: 20.95 | F38: 20.75 | G38: 20.50 | H38: 21.40 | I38: 21.65 | J38: 21.85 | K38: 21.45 | L38: 21 | M38: 36.04603
A39: 29 | B39: AMARAJABAT | C39: 666.3 | D39: 670.43 | E39: 660.87 | F39: 655.43 | G39: 645.87 | H39: 675.87 | I39: 685.43 | J39: 690.87 | K39: 680 | L39: 665 | M39: 11.70802
A40: 30 | B40: AMBER | C40: 2876.8 | D40: 2898.93 | E40: 2827.87 | F40: 2778.93 | G40: 2707.87 | H40: 2947.87 | I40: 3018.93 | J40: 3067.87 | K40: 2970 | L40: 2850 | M40: 0.3989
A41: 31 | B41: AMBUJACEM | C41: 398.35 | D41: 396.80 | E41: 392.70 | F41: 387.05 | G41: 382.95 | H41: 402.45 | I41: 406.55 | J41: 412.20 | K41: 400.9 | L41: 391.15 | M41: 35.58058
A42: 32 | B42: ANGELBRKG | C42: 1110.3 | D42: 1115.85 | E42: 1090.70 | F42: 1071.10 | G42: 1045.95 | H42: 1135.45 | I42: 1160.60 | J42: 1180.20 | K42: 1141 | L42: 1096.25 | M42: 1.22061
A43: 33 | B43: APOLLOHOSP | C43: 4700.4 | D43: 4708.93 | E43: 4637.87 | F43: 4575.33 | G43: 4504.27 | H43: 4771.47 | I43: 4842.53 | J43: 4905.07 | K43: 4780 | L43: 4646.4 | M43: 8.00419
A44: 34 | B44: APOLLOTYRE | C44: 208.85 | D44: 208.32 | E44: 206.63 | F44: 204.42 | G44: 202.73 | H44: 210.53 | I44: 212.22 | J44: 214.43 | K44: 210 | L44: 206.1 | M44: 28.45221
A45: 35 | B45: ASAHIINDIA | C45: 352.3 | D45: 351.27 | E45: 347.58 | F45: 342.87 | G45: 339.18 | H45: 355.98 | I45: 359.67 | J45: 364.38 | K45: 354.95 | L45: 346.55 | M45: 0.77603
A46: 36 | B46: ASHOKLEY | C46: 117.55 | D46: 118.10 | E46: 116.45 | F46: 115.35 | G46: 113.70 | H46: 119.20 | I46: 120.85 | J46: 121.95 | K46: 119.75 | L46: 117 | M46: 88.72781
A47: 37 | B47: ASHOKA | C47: 98.4 | D47: 98.60 | E47: 97.30 | F47: 96.20 | G47: 94.90 | H47: 99.70 | I47: 101.00 | J47: 102.10 | K47: 99.9 | L47: 97.5 | M47: 5.15441
A48: 38 | B48: ASIANPAINT | C48: 3039.65 | D48: 3050.12 | E48: 3015.73 | F48: 2991.82 | G48: 2957.43 | H48: 3074.03 | I48: 3108.42 | J48: 3132.33 | K48: 3084.5 | L48: 3026.2 | M48: 13.19516
A49: 39 | B49: ASTERDM | C49: 194.25 | D49: 194.77 | E49: 191.53 | F49: 188.82 | G49: 185.58 | H49: 197.48 | I49: 200.72 | J49: 203.43 | K49: 198 | L49: 192.05 | M49: 21.88041
A50: 40 | B50: ASTRAZEN | C50: 3075.85 | D50: 3083.88 | E50: 3052.97 | F50: 3030.08 | G50: 2999.17 | H50: 3106.77 | I50: 3137.68 | J50: 3160.57 | K50: 3114.8 | L50: 3061 | M50: 0.08826
A51: 41 | B51: ASTRAL | C51: 1971.5 | D51: 1971.28 | E51: 1947.82 | F51: 1924.13 | G51: 1900.67 | H51: 1994.97 | I51: 2018.43 | J51: 2042.12 | K51: 1994.75 | L51: 1947.6 | M51: 2.10356
A52: 42 | B52: ATUL | C52: 8885.6 | D52: 8901.37 | E52: 8836.73 | F52: 8787.87 | G52: 8723.23 | H52: 8950.23 | I52: 9014.87 | J52: 9063.73 | K52: 8966 | L52: 8852.5 | M52: 0.09576
A53: 43 | B53: AUROPHARMA | C53: 699.1 | D53: 700.20 | E53: 692.50 | F53: 685.90 | G53: 678.20 | H53: 706.80 | I53: 714.50 | J53: 721.10 | K53: 707.9 | L53: 693.6 | M53: 47.31473
A54: 44 | B54: AVANTIFEED | C54: 564.1 | D54: 564.87 | E54: 560.23 | F54: 556.37 | G54: 551.73 | H54: 568.73 | I54: 573.37 | J54: 577.23 | K54: 569.5 | L54: 561 | M54: 1.45326
A55: 45 | B55: DMART | C55: 3847.8 | D55: 3845.88 | E55: 3801.97 | F55: 3756.13 | G55: 3712.22 | H55: 3891.72 | I55: 3935.63 | J55: 3981.47 | K55: 3889.8 | L55: 3800.05 | M55: 5.32719
A56: 46 | B56: AXISBANK | C56: 746.35 | D56: 742.90 | E56: 735.80 | F56: 725.25 | G56: 718.15 | H56: 753.45 | I56: 760.55 | J56: 771.10 | K56: 750 | L56: 732.35 | M56: 64.92155
A57: 47 | B57: BASF | C57: 3440 | D57: 3484.75 | E57: 3377.50 | F57: 3315.00 | G57: 3207.75 | H57: 3547.25 | I57: 3654.50 | J57: 3717.00 | K57: 3592 | L57: 3422.25 | M57: 0.91426
A58: 48 | B58: BEML | C58: 1297.95 | D58: 1302.28 | E58: 1286.77 | F58: 1275.58 | G58: 1260.07 | H58: 1313.47 | I58: 1328.98 | J58: 1340.17 | K58: 1317.8 | L58: 1291.1 | M58: 0.97562
A59: 49 | B59: BSE | C59: 1101.6 | D59: 1094.17 | E59: 1074.48 | F59: 1047.37 | G59: 1027.68 | H59: 1121.28 | I59: 1140.97 | J59: 1168.08 | K59: 1113.85 | L59: 1067.05 | M59: 4.78402
A60: 50 | B60: BAJAJ-AUTO | C60: 3691.4 | D60: 3693.68 | E60: 3667.72 | F60: 3644.03 | G60: 3618.07 | H60: 3717.37 | I60: 3743.33 | J60: 3767.02 | K60: 3719.65 | L60: 3670 | M60: 2.83891
A61: 51 | B61: BAJAJCON | C61: 249.25 | D61: 251.18 | E61: 245.07 | F61: 240.88 | G61: 234.77 | H61: 255.37 | I61: 261.48 | J61: 265.67 | K61: 257.3 | L61: 247 | M61: 7.74009
A62: 52 | B62: BAJAJELEC | C62: 1175.75 | D62: 1167.78 | E62: 1147.57 | F62: 1119.38 | G62: 1099.17 | H62: 1195.97 | I62: 1216.18 | J62: 1244.37 | K62: 1188 | L62: 1139.6 | M62: 3.79915
A63: 53 | B63: BAJFINANCE | C63: 6931.95 | D63: 6926.73 | E63: 6860.22 | F63: 6788.48 | G63: 6721.97 | H63: 6998.47 | I63: 7064.98 | J63: 7136.72 | K63: 6993.25 | L63: 6855 | M63: 12.34588
A64: 54 | B64: BAJAJFINSV | C64: 15958.8 | D64: 15920.43 | E64: 15716.67 | F64: 15474.53 | G64: 15270.77 | H64: 16162.57 | I64: 16366.33 | J64: 16608.47 | K64: 16124.2 | L64: 15678.3 | M64: 6.06882
A65: 55 | B65: BAJAJHLDNG | C65: 4142.2 | D65: 4138.85 | E65: 4080.85 | F65: 4019.50 | G65: 3961.50 | H65: 4200.20 | I65: 4258.20 | J65: 4319.55 | K65: 4196.85 | L65: 4077.5 | M65: 0.36317
A66: 56 | B66: BALAMINES | C66: 3740.7 | D66: 3666.83 | E66: 3548.97 | F66: 3357.23 | G66: 3239.37 | H66: 3858.57 | I66: 3976.43 | J66: 4168.17 | K66: 3784.7 | L66: 3475.1 | M66: 4.95369
A67: 57 | B67: BALKRISIND | C67: 2272.3 | D67: 2270.35 | E67: 2247.55 | F67: 2222.80 | G67: 2200.00 | H67: 2295.10 | I67: 2317.90 | J67: 2342.65 | K67: 2293.15 | L67: 2245.6 | M67: 1.95573
A68: 58 | B68: BALMLAWRIE | C68: 125.8 | D68: 126.25 | E68: 125.00 | F68: 124.20 | G68: 122.95 | H68: 127.05 | I68: 128.30 | J68: 129.10 | K68: 127.5 | L68: 125.45 | M68: 1.40017
A69: 59 | B69: BALRAMCHIN | C69: 367.9 | D69: 370.20 | E69: 361.45 | F69: 355.00 | G69: 346.25 | H69: 376.65 | I69: 385.40 | J69: 391.85 | K69: 378.95 | L69: 363.75 | M69: 21.61183
A70: 60 | B70: BANDHANBNK | C70: 265.05 | D70: 266.10 | E70: 262.20 | F70: 259.35 | G70: 255.45 | H70: 268.95 | I70: 272.85 | J70: 275.70 | K70: 270 | L70: 263.25 | M70: 122.70555
A71: 61 | B71: BANKBARODA | C71: 74.1 | D71: 74.57 | E71: 73.48 | F71: 72.87 | G71: 71.78 | H71: 75.18 | I71: 76.27 | J71: 76.88 | K71: 75.65 | L71: 73.95 | M71: 167.3024
A72: 62 | B72: BANKINDIA | C72: 65.75 | D72: 65.73 | E72: 65.12 | F72: 64.48 | G72: 63.87 | H72: 66.37 | I72: 66.98 | J72: 67.62 | K72: 66.35 | L72: 65.1 | M72: 21.86113
A73: 63 | B73: MAHABANK | C73: 17.85 | D73: 17.93 | E73: 17.72 | F73: 17.58 | G73: 17.37 | H73: 18.07 | I73: 18.28 | J73: 18.42 | K73: 18.15 | L73: 17.8 | M73: 37.15471
A74: 64 | B74: BATAINDIA | C74: 1707.25 | D74: 1713.70 | E74: 1694.85 | F74: 1682.45 | G74: 1663.60 | H74: 1726.10 | I74: 1744.95 | J74: 1757.35 | K74: 1732.55 | L74: 1701.3 | M74: 2.88042
A75: 65 | B75: BAYERCROP | C75: 5282.15 | D75: 5323.27 | E75: 5210.88 | F75: 5139.62 | G75: 5027.23 | H75: 5394.53 | I75: 5506.92 | J75: 5578.18 | K75: 5435.65 | L75: 5252 | M75: 0.25363
A76: 66 | B76: BERGEPAINT | C76: 786.55 | D76: 789.13 | E76: 780.27 | F76: 773.98 | G76: 765.12 | H76: 795.42 | I76: 804.28 | J76: 810.57 | K76: 798 | L76: 782.85 | M76: 10.96367
A77: 67 | B77: BDL | C77: 392.2 | D77: 394.20 | E77: 384.10 | F77: 376.00 | G77: 365.90 | H77: 402.30 | I77: 412.40 | J77: 420.50 | K77: 404.3 | L77: 386.1 | M77: 12.26257
A78: 68 | B78: BEL | C78: 181.3 | D78: 180.97 | E78: 179.73 | F78: 178.17 | G78: 176.93 | H78: 182.53 | I78: 183.77 | J78: 185.33 | K78: 182.2 | L78: 179.4 | M78: 71.00495
A79: 69 | B79: BHARATFORG | C79: 727.1 | D79: 728.92 | E79: 722.18 | F79: 717.27 | G79: 710.53 | H79: 733.83 | I79: 740.57 | J79: 745.48 | K79: 735.65 | L79: 724 | M79: 8.78476
A80: 70 | B80: BHEL | C80: 52 | D80: 52.40 | E80: 51.40 | F80: 50.80 | G80: 49.80 | H80: 53.00 | I80: 54.00 | J80: 54.60 | K80: 53.4 | L80: 51.8 | M80: 222.09147
A81: 71 | B81: BPCL | C81: 466.75 | D81: 465.58 | E81: 459.77 | F81: 452.78 | G81: 446.97 | H81: 472.57 | I81: 478.38 | J81: 485.37 | K81: 471.4 | L81: 458.6 | M81: 74.23649
A82: 72 | B82: BHARATRAS | C82: 12059.25 | D82: 12136.38 | E82: 11946.87 | F82: 11834.48 | G82: 11644.97 | H82: 12248.77 | I82: 12438.28 | J82: 12550.67 | K82: 12325.9 | L82: 12024 | M82: 0.01212
A83: 73 | B83: BHARTIARTL | C83: 586.9 | D83: 594.23 | E83: 576.97 | F83: 567.03 | G83: 549.77 | H83: 604.17 | I83: 621.43 | J83: 631.37 | K83: 611.5 | L83: 584.3 | M83: 258.31904
A84: 74 | B84: BIOCON | C84: 341 | D84: 343.50 | E84: 337.50 | F84: 334.00 | G84: 328.00 | H84: 347.00 | I84: 353.00 | J84: 356.50 | K84: 349.5 | L84: 340 | M84: 16.97599
A85: 75 | B85: BIRLACORPN | C85: 1282.75 | D85: 1278.92 | E85: 1263.83 | F85: 1244.92 | G85: 1229.83 | H85: 1297.83 | I85: 1312.92 | J85: 1331.83 | K85: 1294 | L85: 1260 | M85: 0.85292
A86: 76 | B86: BSOFT | C86: 405.1 | D86: 408.03 | E86: 400.07 | F86: 395.03 | G86: 387.07 | H86: 413.07 | I86: 421.03 | J86: 426.07 | K86: 416 | L86: 403 | M86: 12.87968
A87: 77 | B87: BLISSGVS | C87: 102.25 | D87: 102.28 | E87: 101.57 | F87: 100.88 | G87: 100.17 | H87: 102.97 | I87: 103.68 | J87: 104.37 | K87: 103 | L87: 101.6 | M87: 1.92502
A88: 78 | B88: BLUEDART | C88: 5694.35 | D88: 5725.30 | E88: 5575.60 | F88: 5456.85 | G88: 5307.15 | H88: 5844.05 | I88: 5993.75 | J88: 6112.50 | K88: 5875 | L88: 5606.55 | M88: 0.51129
A89: 79 | B89: BLUESTARCO | C89: 775.2 | D89: 776.93 | E89: 765.27 | F89: 755.33 | G89: 743.67 | H89: 786.87 | I89: 798.53 | J89: 808.47 | K89: 788.6 | L89: 767 | M89: 0.36529
A90: 80 | B90: BBTC | C90: 1206.2 | D90: 1200.68 | E90: 1178.37 | F90: 1150.53 | G90: 1128.22 | H90: 1228.52 | I90: 1250.83 | J90: 1278.67 | K90: 1223 | L90: 1172.85 | M90: 3.26441
A91: 81 | B91: BOSCHLTD | C91: 13648.4 | D91: 13713.25 | E91: 13535.15 | F91: 13421.90 | G91: 13243.80 | H91: 13826.50 | I91: 14004.60 | J91: 14117.85 | K91: 13891.35 | L91: 13600 | M91: 0.22624
A92: 82 | B92: BRIGADE | C92: 306.15 | D92: 306.68 | E92: 302.47 | F92: 298.78 | G92: 294.57 | H92: 310.37 | I92: 314.58 | J92: 318.27 | K92: 310.9 | L92: 303 | M92: 1.17061
A93: 83 | B93: BRITANNIA | C93: 3930.9 | D93: 3901.02 | E93: 3855.08 | F93: 3779.27 | G93: 3733.33 | H93: 3976.83 | I93: 4022.77 | J93: 4098.58 | K93: 3946.95 | L93: 3825.2 | M93: 11.14234
A94: 84 | B94: BURGERKING | C94: 170.05 | D94: 169.52 | E94: 167.73 | F94: 165.42 | G94: 163.63 | H94: 171.83 | I94: 173.62 | J94: 175.93 | K94: 171.3 | L94: 167.2 | M94: 16.25352
A95: 85 | B95: CCL | C95: 374.55 | D95: 378.63 | E95: 368.02 | F95: 361.48 | G95: 350.87 | H95: 385.17 | I95: 395.78 | J95: 402.32 | K95: 389.25 | L95: 372.1 | M95: 3.44563
A96: 86 | B96: CESC | C96: 757.3 | D96: 756.13 | E96: 751.67 | F96: 746.03 | G96: 741.57 | H96: 761.77 | I96: 766.23 | J96: 771.87 | K96: 760.6 | L96: 750.5 | M96: 1.37605
A97: 87 | B97: CRISIL | C97: 2736.5 | D97: 2765.93 | E97: 2671.87 | F97: 2607.23 | G97: 2513.17 | H97: 2830.57 | I97: 2924.63 | J97: 2989.27 | K97: 2860 | L97: 2701.3 | M97: 1.20651
A98: 88 | B98: CSBBANK | C98: 299.2 | D98: 300.35 | E98: 296.70 | F98: 294.20 | G98: 290.55 | H98: 302.85 | I98: 306.50 | J98: 309.00 | K98: 304 | L98: 297.85 | M98: 2.44245
A99: 89 | B99: CADILAHC | C99: 540.6 | D99: 542.08 | E99: 537.17 | F99: 533.73 | G99: 528.82 | H99: 545.52 | I99: 550.43 | J99: 553.87 | K99: 547 | L99: 538.65 | M99: 28.09344
A100: 90 | B100: CANFINHOME | C100: 516.45 | D100: 515.72 | E100: 508.38 | F100: 500.32 | G100: 492.98 | H100: 523.78 | I100: 531.12 | J100: 539.18 | K100: 523.05 | L100: 507.65 | M100: 13.92172
A101: 91 | B101: CANBK | C101: 152.85 | D101: 153.12 | E101: 151.08 | F101: 149.32 | G101: 147.28 | H101: 154.88 | I101: 156.92 | J101: 158.68 | K101: 155.15 | L101: 151.35 | M101: 301.56307
A102: 92 | B102: CAPLIPOINT | C102: 717.6 | D102: 725.73 | E102: 704.67 | F102: 691.73 | G102: 670.67 | H102: 738.67 | I102: 759.73 | J102: 772.67 | K102: 746.8 | L102: 712.8 | M102: 3.17555
A103: 93 | B103: CGCL | C103: 514.65 | D103: 516.53 | E103: 506.17 | F103: 497.68 | G103: 487.32 | H103: 525.02 | I103: 535.38 | J103: 543.87 | K103: 526.9 | L103: 508.05 | M103: 0.62477
A104: 94 | B104: CARBORUNIV | C104: 760.25 | D104: 757.40 | E104: 739.80 | F104: 719.35 | G104: 701.75 | H104: 777.85 | I104: 795.45 | J104: 815.90 | K104: 775 | L104: 736.95 | M104: 4.74674
A105: 95 | B105: CASTROLIND | C105: 135.15 | D105: 134.75 | E105: 133.30 | F105: 131.45 | G105: 130.00 | H105: 136.60 | I105: 138.05 | J105: 139.90 | K105: 136.2 | L105: 132.9 | M105: 7.62156
A106: 96 | B106: CEATLTD | C106: 1276.2 | D106: 1276.33 | E106: 1265.87 | F106: 1255.53 | G106: 1245.07 | H106: 1286.67 | I106: 1297.13 | J106: 1307.47 | K106: 1286.8 | L106: 1266 | M106: 1.11945
A107: 97 | B107: CENTRALBK | C107: 20.15 | D107: 20.27 | E107: 19.98 | F107: 19.82 | G107: 19.53 | H107: 20.43 | I107: 20.72 | J107: 20.88 | K107: 20.55 | L107: 20.1 | M107: 26.99449
A108: 98 | B108: CDSL | C108: 1162.6 | D108: 1157.87 | E108: 1145.73 | F108: 1128.87 | G108: 1116.73 | H108: 1174.73 | I108: 1186.87 | J108: 1203.73 | K108: 1170 | L108: 1141 | M108: 2.00825
A109: 99 | B109: CENTURYPLY | C109: 393.6 | D109: 392.82 | E109: 389.03 | F109: 384.47 | G109: 380.68 | H109: 397.38 | I109: 401.17 | J109: 405.73 | K109: 396.6 | L109: 388.25 | M109: 1.13828
A110: 100 | B110: CENTURYTEX | C110: 756.6 | D110: 759.85 | E110: 750.35 | F110: 744.10 | G110: 734.60 | H110: 766.10 | I110: 775.60 | J110: 781.85 | K110: 769.35 | L110: 753.6 | M110: 4.50417
A111: 101 | B111: CERA | C111: 4625.55 | D111: 4632.28 | E111: 4543.27 | F111: 4460.98 | G111: 4371.97 | H111: 4714.57 | I111: 4803.58 | J111: 4885.87 | K111: 4721.3 | L111: 4550 | M111: 0.36872
A112: 102 | B112: CHALET | C112: 165.65 | D112: 164.80 | E112: 161.60 | F112: 157.55 | G112: 154.35 | H112: 168.85 | I112: 172.05 | J112: 176.10 | K112: 168 | L112: 160.75 | M112: 0.89416
A113: 103 | B113: CHAMBLFERT | C113: 328.8 | D113: 329.02 | E113: 324.03 | F113: 319.27 | G113: 314.28 | H113: 333.78 | I113: 338.77 | J113: 343.53 | K113: 334 | L113: 324.25 | M113: 6.74676
A114: 104 | B114: CHOLAHLDNG | C114: 650.5 | D114: 649.33 | E114: 643.67 | F114: 636.83 | G114: 631.17 | H114: 656.17 | I114: 661.83 | J114: 668.67 | K114: 655 | L114: 642.5 | M114: 3.55154
A115: 105 | B115: CHOLAFIN | C115: 530.75 | D115: 524.90 | E115: 516.20 | F115: 501.65 | G115: 492.95 | H115: 539.45 | I115: 548.15 | J115: 562.70 | K115: 533.6 | L115: 510.35 | M115: 63.74214
A116: 106 | B116: CIPLA | C116: 911.3 | D116: 911.45 | E116: 906.15 | F116: 901.00 | G116: 895.70 | H116: 916.60 | I116: 921.90 | J116: 927.05 | K116: 916.75 | L116: 906.3 | M116: 15.22032
A117: 107 | B117: CUB | C117: 144.55 | D117: 145.32 | E117: 143.43 | F117: 142.32 | G117: 140.43 | H117: 146.43 | I117: 148.32 | J117: 149.43 | K117: 147.2 | L117: 144.2 | M117: 11.13048
A118: 108 | B118: COALINDIA | C118: 137.3 | D118: 137.68 | E118: 135.97 | F118: 134.63 | G118: 132.92 | H118: 139.02 | I118: 140.73 | J118: 142.07 | K118: 139.4 | L118: 136.35 | M118: 68.45692
A119: 109 | B119: COCHINSHIP | C119: 351.85 | D119: 352.72 | E119: 349.03 | F119: 346.22 | G119: 342.53 | H119: 355.53 | I119: 359.22 | J119: 362.03 | K119: 356.4 | L119: 349.9 | M119: 2.27465
A120: 110 | B120: COFORGE | C120: 4968.75 | D120: 5002.92 | E120: 4880.83 | F120: 4792.92 | G120: 4670.83 | H120: 5090.83 | I120: 5212.92 | J120: 5300.83 | K120: 5125 | L120: 4915 | M120: 5.10288
A121: 111 | B121: COLPAL | C121: 1654.4 | D121: 1656.22 | E121: 1644.43 | F121: 1634.47 | G121: 1622.68 | H121: 1666.18 | I121: 1677.97 | J121: 1687.93 | K121: 1668 | L121: 1646.25 | M121: 3.3523
A122: 112 | B122: CAMS | C122: 3243.3 | D122: 3224.42 | E122: 3178.83 | F122: 3114.37 | G122: 3068.78 | H122: 3288.88 | I122: 3334.47 | J122: 3398.93 | K122: 3270 | L122: 3159.95 | M122: 2.50563
A123: 113 | B123: CONCOR | C123: 653.05 | D123: 654.00 | E123: 643.40 | F123: 633.75 | G123: 623.15 | H123: 663.65 | I123: 674.25 | J123: 683.90 | K123: 664.6 | L123: 644.35 | M123: 28.50012
A124: 114 | B124: COROMANDEL | C124: 767.8 | D124: 772.12 | E124: 760.63 | F124: 753.47 | G124: 741.98 | H124: 779.28 | I124: 790.77 | J124: 797.93 | K124: 783.6 | L124: 764.95 | M124: 4.68386
A125: 115 | B125: CREDITACC | C125: 658.3 | D125: 639.23 | E125: 612.02 | F125: 565.73 | G125: 538.52 | H125: 685.52 | I125: 712.73 | J125: 759.02 | K125: 666.45 | L125: 592.95 | M125: 7.0558
A126: 116 | B126: CROMPTON | C126: 460 | D126: 459.03 | E126: 451.07 | F126: 442.13 | G126: 434.17 | H126: 467.97 | I126: 475.93 | J126: 484.87 | K126: 467 | L126: 450.1 | M126: 9.84236
A127: 117 | B127: CUMMINSIND | C127: 981.1 | D127: 985.88 | E127: 974.22 | F127: 967.33 | G127: 955.67 | H127: 992.77 | I127: 1004.43 | J127: 1011.32 | K127: 997.55 | L127: 979 | M127: 9.97156
A128: 118 | B128: CYIENT | C128: 942.7 | D128: 951.50 | E128: 929.20 | F128: 915.70 | G128: 893.40 | H128: 965.00 | I128: 987.30 | J128: 1000.80 | K128: 973.8 | L128: 938 | M128: 1.51853
A129: 119 | B129: DCBBANK | C129: 83.95 | D129: 85.02 | E129: 82.48 | F129: 81.02 | G129: 78.48 | H129: 86.48 | I129: 89.02 | J129: 90.48 | K129: 87.55 | L129: 83.55 | M129: 8.12032
A130: 120 | B130: DCMSHRIRAM | C130: 877.65 | D130: 882.10 | E130: 865.20 | F130: 852.75 | G130: 835.85 | H130: 894.55 | I130: 911.45 | J130: 923.90 | K130: 899 | L130: 869.65 | M130: 1.20653
A131: 121 | B131: DLF | C131: 307.55 | D131: 308.10 | E131: 304.70 | F131: 301.85 | G131: 298.45 | H131: 310.95 | I131: 314.35 | J131: 317.20 | K131: 311.5 | L131: 305.25 | M131: 82.82325
A132: 122 | B132: DABUR | C132: 605.5 | D132: 604.55 | E132: 599.90 | F132: 594.30 | G132: 589.65 | H132: 610.15 | I132: 614.80 | J132: 620.40 | K132: 609.2 | L132: 598.95 | M132: 17.93401
A133: 123 | B133: DALBHARAT | C133: 2042.7 | D133: 2029.03 | E133: 2006.42 | F133: 1970.13 | G133: 1947.52 | H133: 2065.32 | I133: 2087.93 | J133: 2124.22 | K133: 2051.65 | L133: 1992.75 | M133: 3.70422
A134: 124 | B134: DEEPAKNTR | C134: 2086.35 | D134: 2084.35 | E134: 2070.90 | F134: 2055.45 | G134: 2042.00 | H134: 2099.80 | I134: 2113.25 | J134: 2128.70 | K134: 2097.8 | L134: 2068.9 | M134: 4.44663
A135: 125 | B135: DELTACORP | C135: 173.85 | D135: 174.42 | E135: 171.98 | F135: 170.12 | G135: 167.68 | H135: 176.28 | I135: 178.72 | J135: 180.58 | K135: 176.85 | L135: 172.55 | M135: 12.40932
A136: 126 | B136: DHANI | C136: 186.7 | D136: 187.97 | E136: 184.43 | F136: 182.17 | G136: 178.63 | H136: 190.23 | I136: 193.77 | J136: 196.03 | K136: 191.5 | L136: 185.7 | M136: 7.3119
A137: 127 | B137: DHANUKA | C137: 855.2 | D137: 857.62 | E137: 840.08 | F137: 824.97 | G137: 807.43 | H137: 872.73 | I137: 890.27 | J137: 905.38 | K137: 875.15 | L137: 842.5 | M137: 0.47357
A138: 128 | B138: DBL | C138: 514.75 | D138: 512.60 | E138: 508.40 | F138: 502.05 | G138: 497.85 | H138: 518.95 | I138: 523.15 | J138: 529.50 | K138: 516.8 | L138: 506.25 | M138: 1.38098
A139: 129 | B139: DISHTV | C139: 12.75 | D139: 12.82 | E139: 12.48 | F139: 12.22 | G139: 11.88 | H139: 13.08 | I139: 13.42 | J139: 13.68 | K139: 13.15 | L139: 12.55 | M139: 60.13603
A140: 130 | B140: DCAL | C140: 183.15 | D140: 183.72 | E140: 180.83 | F140: 178.52 | G140: 175.63 | H140: 186.03 | I140: 188.92 | J140: 191.23 | K140: 186.6 | L140: 181.4 | M140: 1.75364
A141: 131 | B141: DIVISLAB | C141: 4846.7 | D141: 4850.97 | E141: 4824.73 | F141: 4802.77 | G141: 4776.53 | H141: 4872.93 | I141: 4899.17 | J141: 4921.13 | K141: 4877.2 | L141: 4829 | M141: 2.8199
A142: 132 | B142: DIXON | C142: 4042.7 | D142: 3990.72 | E142: 3893.43 | F142: 3744.17 | G142: 3646.88 | H142: 4139.98 | I142: 4237.27 | J142: 4386.53 | K142: 4088 | L142: 3841.45 | M142: 5.30804
A143: 133 | B143: LALPATHLAB | C143: 3801.2 | D143: 3816.67 | E143: 3778.33 | F143: 3755.47 | G143: 3717.13 | H143: 3839.53 | I143: 3877.87 | J143: 3900.73 | K143: 3855 | L143: 3793.8 | M143: 1.75725
A144: 134 | B144: DRREDDY | C144: 4503.5 | D144: 4514.93 | E144: 4474.97 | F144: 4446.43 | G144: 4406.47 | H144: 4543.47 | I144: 4583.43 | J144: 4611.97 | K144: 4554.9 | L144: 4486.4 | M144: 4.81719
A145: 135 | B145: EIDPARRY | C145: 414.55 | D145: 416.18 | E145: 408.62 | F145: 402.68 | G145: 395.12 | H145: 422.12 | I145: 429.68 | J145: 435.62 | K145: 423.75 | L145: 410.25 | M145: 3.56415
A146: 136 | B146: EIHOTEL | C146: 104.1 | D146: 104.38 | E146: 103.07 | F146: 102.03 | G146: 100.72 | H146: 105.42 | I146: 106.73 | J146: 107.77 | K146: 105.7 | L146: 103.35 | M146: 1.34295
A147: 137 | B147: EPL | C147: 230.05 | D147: 229.65 | E147: 227.90 | F147: 225.75 | G147: 224.00 | H147: 231.80 | I147: 233.55 | J147: 235.70 | K147: 231.4 | L147: 227.5 | M147: 4.11173
A148: 138 | B148: EDELWEISS | C148: 81.15 | D148: 80.48 | E148: 78.97 | F148: 76.78 | G148: 75.27 | H148: 82.67 | I148: 84.18 | J148: 86.37 | K148: 82 | L148: 78.3 | M148: 15.27436
A149: 139 | B149: EICHERMOT | C149: 2578.75 | D149: 2570.08 | E149: 2555.17 | F149: 2531.58 | G149: 2516.67 | H149: 2593.67 | I149: 2608.58 | J149: 2632.17 | K149: 2585 | L149: 2546.5 | M149: 4.40543
A150: 140 | B150: ELGIEQUIP | C150: 193.35 | D150: 195.13 | E150: 190.22 | F150: 187.08 | G150: 182.17 | H150: 198.27 | I150: 203.18 | J150: 206.32 | K150: 200.05 | L150: 192 | M150: 1.3134
A151: 141 | B151: EMAMILTD | C151: 593.15 | D151: 590.13 | E151: 583.02 | F151: 572.88 | G151: 565.77 | H151: 600.27 | I151: 607.38 | J151: 617.52 | K151: 597.25 | L151: 580 | M151: 2.64865
A152: 142 | B152: ENDURANCE | C152: 1691.5 | D152: 1678.17 | E152: 1639.33 | F152: 1587.17 | G152: 1548.33 | H152: 1730.33 | I152: 1769.17 | J152: 1821.33 | K152: 1717 | L152: 1626 | M152: 0.52473
A153: 143 | B153: ENGINERSIN | C153: 69.5 | D153: 69.52 | E153: 69.08 | F153: 68.67 | G153: 68.23 | H153: 69.93 | I153: 70.37 | J153: 70.78 | K153: 69.95 | L153: 69.1 | M153: 7.99944
A154: 144 | B154: EQUITAS | C154: 116.1 | D154: 117.03 | E154: 114.57 | F154: 113.03 | G154: 110.57 | H154: 118.57 | I154: 121.03 | J154: 122.57 | K154: 119.5 | L154: 115.5 | M154: 4.31159
A155: 145 | B155: ERIS | C155: 726.15 | D155: 728.38 | E155: 720.77 | F155: 715.38 | G155: 707.77 | H155: 733.77 | I155: 741.38 | J155: 746.77 | K155: 736 | L155: 723 | M155: 0.19248
A156: 146 | B156: ESCORTS | C156: 1343.15 | D156: 1341.25 | E156: 1330.40 | F156: 1317.65 | G156: 1306.80 | H156: 1354.00 | I156: 1364.85 | J156: 1377.60 | K156: 1352.1 | L156: 1328.5 | M156: 18.37948
A157: 147 | B157: EXIDEIND | C157: 157.3 | D157: 158.45 | E157: 155.90 | F157: 154.50 | G157: 151.95 | H157: 159.85 | I157: 162.40 | J157: 163.80 | K157: 161 | L157: 157.05 | M157: 36.05295
A158: 148 | B158: FDC | C158: 336.25 | D158: 334.93 | E158: 330.87 | F158: 325.48 | G158: 321.42 | H158: 340.32 | I158: 344.38 | J158: 349.77 | K158: 339 | L158: 329.55 | M158: 0.86201
A159: 149 | B159: FEDERALBNK | C159: 78.2 | D159: 78.93 | E159: 77.27 | F159: 76.33 | G159: 74.67 | H159: 79.87 | I159: 81.53 | J159: 82.47 | K159: 80.6 | L159: 78 | M159: 105.75502
A160: 150 | B160: FINEORG | C160: 2854.25 | D160: 2843.08 | E160: 2811.17 | F160: 2768.08 | G160: 2736.17 | H160: 2886.17 | I160: 2918.08 | J160: 2961.17 | K160: 2875 | L160: 2800 | M160: 0.28966
A161: 151 | B161: FINCABLES | C161: 454.65 | D161: 455.75 | E161: 451.05 | F161: 447.45 | G161: 442.75 | H161: 459.35 | I161: 464.05 | J161: 467.65 | K161: 460.45 | L161: 452.15 | M161: 1.7169
A162: 152 | B162: FINPIPE | C162: 169.15 | D162: 169.03 | E162: 167.92 | F162: 166.68 | G162: 165.57 | H162: 170.27 | I162: 171.38 | J162: 172.62 | K162: 170.15 | L162: 167.8 | M162: 5.75174
A163: 153 | B163: FSL | C163: 180.55 | D163: 181.33 | E163: 178.22 | F163: 175.88 | G163: 172.77 | H163: 183.67 | I163: 186.78 | J163: 189.12 | K163: 184.45 | L163: 179 | M163: 34.76598
A164: 154 | B164: FORTIS | C164: 277.55 | D164: 278.52 | E164: 273.43 | F164: 269.32 | G164: 264.23 | H164: 282.63 | I164: 287.72 | J164: 291.83 | K164: 283.6 | L164: 274.4 | M164: 24.38316
A165: 155 | B165: FCONSUMER | C165: 6.8 | D165: 6.85 | E165: 6.75 | F165: 6.70 | G165: 6.60 | H165: 6.90 | I165: 7.00 | J165: 7.05 | K165: 6.95 | L165: 6.8 | M165: 23.13862
A166: 156 | B166: FRETAIL | C166: 45.45 | D166: 45.45 | E166: 44.65 | F166: 43.85 | G166: 43.05 | H166: 46.25 | I166: 47.05 | J166: 47.85 | K166: 46.25 | L166: 44.65 | M166: 10.92162
A167: 157 | B167: GAIL | C167: 142.65 | D167: 143.12 | E167: 140.93 | F167: 139.22 | G167: 137.03 | H167: 144.83 | I167: 147.02 | J167: 148.73 | K167: 145.3 | L167: 141.4 | M167: 97.53061
A168: 158 | B168: GEPIL | C168: 316.8 | D168: 313.07 | E168: 304.73 | F168: 292.67 | G168: 284.33 | H168: 325.13 | I168: 333.47 | J168: 345.53 | K168: 321.4 | L168: 301 | M168: 1.41099
A169: 159 | B169: GMMPFAUDLR | C169: 4365.2 | D169: 4373.12 | E169: 4321.23 | F169: 4277.27 | G169: 4225.38 | H169: 4417.08 | I169: 4468.97 | J169: 4512.93 | K169: 4425 | L169: 4329.15 | M169: 0.34332
A170: 160 | B170: GMRINFRA | C170: 28.75 | D170: 28.82 | E170: 28.53 | F170: 28.32 | G170: 28.03 | H170: 29.03 | I170: 29.32 | J170: 29.53 | K170: 29.1 | L170: 28.6 | M170: 60.55787
A171: 161 | B171: GALAXYSURF | C171: 3093.65 | D171: 3093.03 | E171: 3066.07 | F171: 3038.48 | G171: 3011.52 | H171: 3120.62 | I171: 3147.58 | J171: 3175.17 | K171: 3120 | L171: 3065.45 | M171: 0.23455
A172: 162 | B172: GRSE | C172: 185.6 | D172: 185.93 | E172: 184.22 | F172: 182.83 | G172: 181.12 | H172: 187.32 | I172: 189.03 | J172: 190.42 | K172: 187.65 | L172: 184.55 | M172: 2.03003
A173: 163 | B173: GARFIBRES | C173: 3126.5 | D173: 3129.77 | E173: 3098.88 | F173: 3071.27 | G173: 3040.38 | H173: 3157.38 | I173: 3188.27 | J173: 3215.88 | K173: 3160.65 | L173: 3102.15 | M173: 0.12618
A174: 164 | B174: GICRE | C174: 160.9 | D174: 160.32 | E174: 155.68 | F174: 150.47 | G174: 145.83 | H174: 165.53 | I174: 170.17 | J174: 175.38 | K174: 164.95 | L174: 155.1 | M174: 79.69671
A175: 165 | B175: GILLETTE | C175: 5800.2 | D175: 5823.63 | E175: 5762.57 | F175: 5724.93 | G175: 5663.87 | H175: 5861.27 | I175: 5922.33 | J175: 5959.97 | K175: 5884.7 | L175: 5786 | M175: 0.10061
A176: 166 | B176: GLAND | C176: 3876.45 | D176: 3879.27 | E176: 3838.18 | F176: 3799.92 | G176: 3758.83 | H176: 3917.53 | I176: 3958.62 | J176: 3996.88 | K176: 3920.35 | L176: 3841 | M176: 4.54556
A177: 167 | B177: GLAXO | C177: 1516.6 | D177: 1521.37 | E177: 1507.73 | F177: 1498.87 | G177: 1485.23 | H177: 1530.23 | I177: 1543.87 | J177: 1552.73 | K177: 1535 | L177: 1512.5 | M177: 0.20132
A178: 168 | B178: GLENMARK | C178: 512.85 | D178: 516.07 | E178: 507.83 | F178: 502.82 | G178: 494.58 | H178: 521.08 | I178: 529.32 | J178: 534.33 | K178: 524.3 | L178: 511.05 | M178: 10.79304
A179: 169 | B179: GODFRYPHLP | C179: 984.45 | D179: 986.30 | E179: 975.15 | F179: 965.85 | G179: 954.70 | H179: 995.60 | I179: 1006.75 | J179: 1016.05 | K179: 997.45 | L179: 977 | M179: 0.16203
A180: 170 | B180: GODREJAGRO | C180: 625.65 | D180: 627.73 | E180: 621.67 | F180: 617.68 | G180: 611.62 | H180: 631.72 | I180: 637.78 | J180: 641.77 | K180: 633.8 | L180: 623.75 | M180: 0.98804
A181: 171 | B181: GODREJCP | C181: 1042.65 | D181: 1048.73 | E181: 1022.62 | F181: 1002.58 | G181: 976.47 | H181: 1068.77 | I181: 1094.88 | J181: 1114.92 | K181: 1074.85 | L181: 1028.7 | M181: 42.0122
A182: 172 | B182: GODREJIND | C182: 552.05 | D182: 550.90 | E182: 544.15 | F182: 536.25 | G182: 529.50 | H182: 558.80 | I182: 565.55 | J182: 573.45 | K182: 557.65 | L182: 543 | M182: 3.42821
A183: 173 | B183: GODREJPROP | C183: 1465.25 | D183: 1458.77 | E183: 1439.78 | F183: 1414.32 | G183: 1395.33 | H183: 1484.23 | I183: 1503.22 | J183: 1528.68 | K183: 1477.75 | L183: 1433.3 | M183: 7.56332
A184: 174 | B184: GRANULES | C184: 326.35 | D184: 328.08 | E184: 322.87 | F184: 319.38 | G184: 314.17 | H184: 331.57 | I184: 336.78 | J184: 340.27 | K184: 333.3 | L184: 324.6 | M184: 16.72407
A185: 175 | B185: GRAPHITE | C185: 614.8 | D185: 622.00 | E185: 598.00 | F185: 581.20 | G185: 557.20 | H185: 638.80 | I185: 662.80 | J185: 679.60 | K185: 646 | L185: 605.2 | M185: 5.33427
A186: 176 | B186: GRASIM | C186: 1439.05 | D186: 1442.95 | E186: 1426.15 | F186: 1413.25 | G186: 1396.45 | H186: 1455.85 | I186: 1472.65 | J186: 1485.55 | K186: 1459.75 | L186: 1430.05 | M186: 9.36935
A187: 177 | B187: GESHIP | C187: 346.95 | D187: 344.58 | E187: 337.17 | F187: 327.38 | G187: 319.97 | H187: 354.37 | I187: 361.78 | J187: 371.57 | K187: 352 | L187: 334.8 | M187: 17.0901
A188: 178 | B188: GREAVESCOT | C188: 131.2 | D188: 131.93 | E188: 129.97 | F188: 128.73 | G188: 126.77 | H188: 133.17 | I188: 135.13 | J188: 136.37 | K188: 133.9 | L188: 130.7 | M188: 8.48432
A189: 179 | B189: GRINDWELL | C189: 1251.85 | D189: 1250.70 | E189: 1227.40 | F189: 1202.95 | G189: 1179.65 | H189: 1275.15 | I189: 1298.45 | J189: 1322.90 | K189: 1274 | L189: 1226.25 | M189: 0.52443
A190: 180 | B190: GUJALKALI | C190: 437.3 | D190: 439.52 | E190: 433.33 | F190: 429.37 | G190: 423.18 | H190: 443.48 | I190: 449.67 | J190: 453.63 | K190: 445.7 | L190: 435.55 | M190: 0.9207
A191: 181 | B191: GAEL | C191: 166.45 | D191: 165.88 | E191: 162.97 | F191: 159.48 | G191: 156.57 | H191: 169.37 | I191: 172.28 | J191: 175.77 | K191: 168.8 | L191: 162.4 | M191: 3.88339
A192: 182 | B192: FLUOROCHEM | C192: 1699.25 | D192: 1709.48 | E192: 1675.02 | F192: 1650.78 | G192: 1616.32 | H192: 1733.72 | I192: 1768.18 | J192: 1792.42 | K192: 1743.95 | L192: 1685.25 | M192: 0.78582
A193: 183 | B193: GUJGASLTD | C193: 708.75 | D193: 710.52 | E193: 702.23 | F193: 695.72 | G193: 687.43 | H193: 717.03 | I193: 725.32 | J193: 731.83 | K193: 718.8 | L193: 704 | M193: 14.20984
A194: 184 | B194: GNFC | C194: 319.1 | D194: 321.53 | E194: 315.57 | F194: 312.03 | G194: 306.07 | H194: 325.07 | I194: 331.03 | J194: 334.57 | K194: 327.5 | L194: 318 | M194: 4.74574
A195: 185 | B195: GPPL | C195: 100.35 | D195: 100.98 | E195: 99.37 | F195: 98.38 | G195: 96.77 | H195: 101.97 | I195: 103.58 | J195: 104.57 | K195: 102.6 | L195: 100 | M195: 1.75371
A196: 186 | B196: GSFC | C196: 99.8 | D196: 100.22 | E196: 98.98 | F196: 98.17 | G196: 96.93 | H196: 101.03 | I196: 102.27 | J196: 103.08 | K196: 101.45 | L196: 99.4 | M196: 7.33585
A197: 187 | B197: GSPL | C197: 346.7 | D197: 346.23 | E197: 342.47 | F197: 338.23 | G197: 334.47 | H197: 350.47 | I197: 354.23 | J197: 358.47 | K197: 350 | L197: 342 | M197: 6.7764
A198: 188 | B198: GULFOILLUB | C198: 593.85 | D198: 593.00 | E198: 586.00 | F198: 578.15 | G198: 571.15 | H198: 600.85 | I198: 607.85 | J198: 615.70 | K198: 600 | L198: 585.15 | M198: 0.49782
A199: 189 | B199: HEG | C199: 2204.3 | D199: 2207.35 | E199: 2171.95 | F199: 2139.60 | G199: 2104.20 | H199: 2239.70 | I199: 2275.10 | J199: 2307.45 | K199: 2242.75 | L199: 2175 | M199: 1.1591
A200: 190 | B200: HCLTECH | C200: 1167.45 | D200: 1164.82 | E200: 1157.63 | F200: 1147.82 | G200: 1140.63 | H200: 1174.63 | I200: 1181.82 | J200: 1191.63 | K200: 1172 | L200: 1155 | M200: 46.54833
A201: 191 | B201: HDFCAMC | C201: 2977.6 | D201: 2974.08 | E201: 2960.47 | F201: 2943.33 | G201: 2929.72 | H201: 2991.22 | I201: 3004.83 | J201: 3021.97 | K201: 2987.7 | L201: 2956.95 | M201: 1.88007
A202: 192 | B202: HDFCBANK | C202: 1554.8 | D202: 1556.42 | E202: 1541.83 | F202: 1528.87 | G202: 1514.28 | H202: 1569.38 | I202: 1583.97 | J202: 1596.93 | K202: 1571 | L202: 1543.45 | M202: 55.59501
A203: 193 | B203: HDFCLIFE | C203: 698.85 | D203: 696.95 | E203: 691.90 | F203: 684.95 | G203: 679.90 | H203: 703.90 | I203: 708.95 | J203: 715.90 | K203: 702 | L203: 690 | M203: 76.71524
A204: 194 | B204: HFCL | C204: 68.1 | D204: 66.83 | E204: 65.57 | F204: 63.03 | G204: 61.77 | H204: 69.37 | I204: 70.63 | J204: 73.17 | K204: 68.1 | L204: 64.3 | M204: 46.12796
A205: 195 | B205: HAPPSTMNDS | C205: 1437.65 | D205: 1443.73 | E205: 1419.97 | F205: 1402.28 | G205: 1378.52 | H205: 1461.42 | I205: 1485.18 | J205: 1502.87 | K205: 1467.5 | L205: 1426.05 | M205: 10.08215
A206: 196 | B206: HATSUN | C206: 1033.45 | D206: 1026.68 | E206: 1015.37 | F206: 997.28 | G206: 985.97 | H206: 1044.77 | I206: 1056.08 | J206: 1074.17 | K206: 1038 | L206: 1008.6 | M206: 1.8023
... 321 more rows

Sheet Bulk Deals
E6: Back To Main Page
A7: Subject : | B7: BULK DEAL | D7: =Main!B10 -> 2021-08-27
A9: Date | B9: Scrip code | C9: Scrip Name | D9: Client Name | E9: Buy / Sell | F9: Quantity Traded | G9: Trade Price / Wt.Avg.trade price | H9: Exchange
A10: 2021-08-26 | B10: 539528 | C10: AAYUSH | D10: CLASSIC MERCANTILE LLP | E10: BUY | F10: 50,000 | G10: 31.05 | H10: BSE
A11: 2021-08-26 | B11: 539528 | C11: AAYUSH | D11: PALLAVI MITTAL | E11: SELL | F11: 41,176 | G11: 31.06 | H11: BSE
A12: 2021-08-26 | B12: 542865 | C12: ANUROOP | D12: LAXMI TRADING AND INVESTMENTS | E12: BUY | F12: 100,000 | G12: 13.99 | H12: BSE
A13: 2021-08-26 | B13: 542865 | C13: ANUROOP | D13: SHERWOOD SECURITIES PVT LTD | E13: SELL | F13: 120,000 | G13: 14.02 | H13: BSE
A14: 2021-08-26 | B14: 537766 | C14: BCP | D14: ROOPSINGHRATHORE | E14: BUY | F14: 321,906 | G14: 4.13 | H14: BSE
A15: 2021-08-26 | B15: 531752 | C15: BIOGEN | D15: ALPHA LEON ENTERPRISES LLP | E15: SELL | F15: 3,276,034 | G15: 0.64 | H15: BSE
A16: 2021-08-26 | B16: 526817 | C16: CHEVIOT | D16: HARSH INVESTMENTS PRIVATE LIMITED | E16: BUY | F16: 375,000 | G16: 1310 | H16: BSE
A17: 2021-08-26 | B17: 526817 | C17: CHEVIOT | D17: MALATI KANORIA | E17: SELL | F17: 375,000 | G17: 1310 | H17: BSE
A18: 2021-08-26 | B18: 541778 | C18: DEEP | D18: NNM SECURITIES PVT LTD | E18: BUY | F18: 65,906 | G18: 160.14 | H18: BSE
A19: 2021-08-26 | B19: 541778 | C19: DEEP | D19: NNM SECURITIES PVT LTD | E19: SELL | F19: 13,717 | G19: 159.68 | H19: BSE
A20: 2021-08-26 | B20: 541778 | C20: DEEP | D20: ANAND KUMAR NATHMAL GADODIA | E20: SELL | F20: 60,000 | G20: 160.24 | H20: BSE
A21: 2021-08-26 | B21: 539197 | C21: DEVHARI | D21: TOPGAIN FINANCE PRIVATE LIMITED | E21: BUY | F21: 1,600,000 | G21: 0.56 | H21: BSE
A22: 2021-08-26 | B22: 539197 | C22: DEVHARI | D22: ALPHA LEON ENTERPRISES LLP | E22: BUY | F22: 4 | G22: 0.58 | H22: BSE
A23: 2021-08-26 | B23: 539197 | C23: DEVHARI | D23: ALPHA LEON ENTERPRISES LLP | E23: SELL | F23: 592,367 | G23: 0.58 | H23: BSE
A24: 2021-08-26 | B24: 533275 | C24: GAL | D24: SOLEONE TRADELINKS PRIVATE LIMITED | E24: BUY | F24: 940,045 | G24: 3.11 | H24: BSE
A25: 2021-08-26 | B25: 526797 | C25: GREENPLY | D25: SHOWAN INVESTMENT PRIVATE LIMITED | E25: BUY | F25: 6,042,800 | G25: 182.25 | H25: BSE
A26: 2021-08-26 | B26: 526797 | C26: GREENPLY | D26: PRIME HOLDINGS PRIVATE LIMITED | E26: SELL | F26: 6,042,800 | G26: 182.25 | H26: BSE
A27: 2021-08-26 | B27: 541337 | C27: MILEFUR | D27: LILABEN DASHARATHBHAI PATEL | E27: BUY | F27: 54,000 | G27: 27.74 | H27: BSE
A28: 2021-08-26 | B28: 539767 | C28: MNIL | D28: KABIR SHRAN DAGAR | E28: BUY | F28: 39,175 | G28: 12.99 | H28: BSE
A29: 2021-08-26 | B29: 539767 | C29: MNIL | D29: KABIR SHRAN DAGAR | E29: SELL | F29: 30,855 | G29: 13 | H29: BSE
A30: 2021-08-26 | B30: 532911 | C30: PARLEIND | D30: PIL ENTERPRISE PRIVATE LIMITED | E30: SELL | F30: 100,000 | G30: 8.73 | H30: BSE
A31: 2021-08-26 | B31: 538646 | C31: QGO | D31: RAMESH KOMMURU | E31: BUY | F31: 100,000 | G31: 22.01 | H31: BSE
A32: 2021-08-26 | B32: 538646 | C32: QGO | D32: SINGI | E32: SELL | F32: 93,644 | G32: 21.9 | H32: BSE
A33: 2021-08-26 | B33: 533608 | C33: RDBRL | D33: FAITHFUL VANIJYA PRIVATE LIMITED | E33: BUY | F33: 90,000 | G33: 87.61 | H33: BSE
A34: 2021-08-26 | B34: 533608 | C34: RDBRL | D34: VINOD DUGAR | E34: SELL | F34: 90,000 | G34: 87.61 | H34: BSE
A35: 2021-08-26 | B35: 539760 | C35: RELICAB | D35: ARYAMAN BROKING LIMITED | E35: BUY | F35: 30,000 | G35: 26.73 | H35: BSE
A36: 2021-08-26 | B36: 539760 | C36: RELICAB | D36: ARYAMAN BROKING LIMITED | E36: SELL | F36: 3,000 | G36: 30 | H36: BSE
A37: 2021-08-26 | B37: 519191 | C37: RGRL | D37: GANESH MUKUND RAO BODAKHE | E37: BUY | F37: 26,795 | G37: 27.39 | H37: BSE
A38: 2021-08-26 | B38: 526544 | C38: SCANPGEOM | D38: MUKESHBHAI PURSHOTTAMDAS PATEL | E38: SELL | F38: 405,103 | G38: 13.7 | H38: BSE
A39: 2021-08-26 | B39: 570005 | C39: SCAPDVR | D39: SATYAVATHICHEKKA | E39: SELL | F39: 500,000 | G39: 5.4 | H39: BSE
A40: 2021-08-26 | B40: 570005 | C40: SCAPDVR | D40: GAYI ADI MANAGEMENT AND TRENDS PRIVATE LIMITED | E40: SELL | F40: 409,623 | G40: 5.4 | H40: BSE
A41: 2021-08-26 | B41: 530525 | C41: SHEETAL | D41: SACHIN GUPTA | E41: BUY | F41: 48,533 | G41: 4.68 | H41: BSE
A42: 2021-08-26 | B42: 539584 | C42: SIPTL | D42: KALPESHKUMAR RAJNIBHAI NAKRANI | E42: SELL | F42: 473,490 | G42: 2.18 | H42: BSE
A43: 2021-08-26 | B43: 532300 | C43: WOCKPHARMA | D43: KIRTAN MANEKLAL RUPARELIYA (HUF) | E43: BUY | F43: 603,850 | G43: 440.01 | H43: BSE
A44: 2021-08-26 | B44: 532300 | C44: WOCKPHARMA | D44: KIRTAN MANEKLAL RUPARELIYA (HUF) | E44: SELL | F44: 9,386 | G44: 447.02 | H44: BSE
A45: 2021-08-26 | B45: ALPHAGEO | C45: Alphageo (India) Limited | D45: ANKITA VISHAL SHAH | E45: BUY | F45: 33,672 | G45: 343.42 | H45: NSE
A46: 2021-08-26 | B46: ATALREAL | C46: Atal Realtech Limited | D46: MANISH NITIN THAKUR | E46: BUY | F46: 38,400 | G46: 93.09 | H46: NSE
A47: 2021-08-26 | B47: BCP | C47: B.C. Power Controls Ltd | D47: ROOP SINGH RATHORE | E47: BUY | F47: 524,754 | G47: 4.14 | H47: NSE
A48: 2021-08-26 | B48: DUDIGITAL | C48: DU Digital Technolog Ltd | D48: AVIATOR GLOBAL INVESTMENT FUND | E48: BUY | F48: 24,000 | G48: 62.54 | H48: NSE
A49: 2021-08-26 | B49: HIRECT | C49: Hind Rectifiers Limited | D49: XTX MARKETS LLP | E49: BUY | F49: 82,499 | G49: 202.71 | H49: NSE
A50: 2021-08-26 | B50: HIRECT | C50: Hind Rectifiers Limited | D50: GRAVITON RESEARCH CAPITAL LLP | E50: BUY | F50: 126,022 | G50: 202.94 | H50: NSE
A51: 2021-08-26 | B51: LIBAS | C51: Libas Consu Products Ltd | D51: PARESH THAKKER | E51: BUY | F51: 113,367 | G51: 64.99 | H51: NSE
A52: 2021-08-26 | B52: LIBAS | C52: Libas Consu Products Ltd | D52: B M TRADERS | E52: BUY | F52: 100,000 | G52: 63.3 | H52: NSE
A53: 2021-08-26 | B53: LIBAS | C53: Libas Consu Products Ltd | D53: B.W.TRADERS | E53: BUY | F53: 104,284 | G53: 63.96 | H53: NSE
A54: 2021-08-26 | B54: NBIFIN | C54: N.B.I. Ind. Fin. Co. Ltd | D54: I K AGENCIES PVT LTD | E54: BUY | F54: 40,837 | G54: 2949.02 | H54: NSE
A55: 2021-08-26 | B55: PRAKASHSTL | C55: Prakash Steelage Ltd | D55: ALPHA LEON ENTERPRISES LLP | E55: BUY | F55: 1,238,534 | G55: 1.9 | H55: NSE
A56: 2021-08-26 | B56: REFEX | C56: Refex Industries Limited | D56: MBL & CO. LIMITED | E56: BUY | F56: 116,773 | G56: 165.51 | H56: NSE
A57: 2021-08-26 | B57: REFEX | C57: Refex Industries Limited | D57: GRAVITON RESEARCH CAPITAL LLP | E57: BUY | F57: 291,467 | G57: 161.85 | H57: NSE
A58: 2021-08-26 | B58: REXPIPES | C58: Rex Pipes And Cables Ltd | D58: KANARAM | E58: BUY | F58: 48,000 | G58: 26.6 | H58: NSE
A59: 2021-08-26 | B59: SAKSOFT | C59: Saksoft Limited | D59: GRAVITON RESEARCH CAPITAL LLP | E59: BUY | F59: 53,138 | G59: 903.54 | H59: NSE
A60: 2021-08-26 | B60: STEL | C60: Sentinel Tea and Exp Ltd | D60: SECURA INDIA TRUST | E60: BUY | F60: 95,305 | G60: 137.43 | H60: NSE
A61: 2021-08-26 | B61: VERTOZ | C61: Vertoz Advertising Ltd | D61: SHREE SHIVSHAKTI PROJECT CONSULTANT PRIVATE LIMITE | E61: BUY | F61: 74,080 | G61: 107.87 | H61: NSE
A62: 2021-08-26 | B62: VERTOZ | C62: Vertoz Advertising Ltd | D62: GOENKA BUSINESS & FINANCE LIMITED | E62: BUY | F62: 126,430 | G62: 114.35 | H62: NSE
A63: 2021-08-26 | B63: VERTOZ | C63: Vertoz Advertising Ltd | D63: OLGA TRADING PRIVATE LIMITED | E63: BUY | F63: 113,928 | G63: 113.66 | H63: NSE
A64: 2021-08-26 | B64: VIKASECO | C64: Vikas EcoTech Limited | D64: ADROIT FINANCIAL SERVICES PVT LTD | E64: BUY | F64: 3,928,296 | G64: 2.1 | H64: NSE
A65: 2021-08-26 | B65: WOCKPHARMA | C65: Wockhardt Ltd. | D65: KIRTAN MANEKLAL RUPARELIYA (HUF) | E65: BUY | F65: 14,433 | G65: 423.9 | H65: NSE
A66: 2021-08-26 | B66: ALPHAGEO | C66: Alphageo (India) Limited | D66: ANKITA VISHAL SHAH | E66: SELL | F66: 33,672 | G66: 341.61 | H66: NSE
A67: 2021-08-26 | B67: ATALREAL | C67: Atal Realtech Limited | D67: MANISH NITIN THAKUR | E67: SELL | F67: 38,400 | G67: 95.1 | H67: NSE
A68: 2021-08-26 | B68: ATALREAL | C68: Atal Realtech Limited | D68: SHIELD FINANCE PRIVATE LIMITED | E68: SELL | F68: 120,000 | G68: 92.04 | H68: NSE
A69: 2021-08-26 | B69: BCP | C69: B.C. Power Controls Ltd | D69: LTD HARSHIT FINVEST PVT | E69: SELL | F69: 369,350 | G69: 3.98 | H69: NSE
A70: 2021-08-26 | B70: DUDIGITAL | C70: DU Digital Technolog Ltd | D70: RAJKUMAR DAMANI | E70: SELL | F70: 40,000 | G70: 60.3 | H70: NSE
A71: 2021-08-26 | B71: HIRECT | C71: Hind Rectifiers Limited | D71: XTX MARKETS LLP | E71: SELL | F71: 83,308 | G71: 203.08 | H71: NSE
A72: 2021-08-26 | B72: HIRECT | C72: Hind Rectifiers Limited | D72: GRAVITON RESEARCH CAPITAL LLP | E72: SELL | F72: 126,022 | G72: 203.11 | H72: NSE
A73: 2021-08-26 | B73: LIBAS | C73: Libas Consu Products Ltd | D73: PARESH THAKKER | E73: SELL | F73: 113,367 | G73: 65.02 | H73: NSE
A74: 2021-08-26 | B74: LIBAS | C74: Libas Consu Products Ltd | D74: B.W.TRADERS | E74: SELL | F74: 106,484 | G74: 63.36 | H74: NSE
A75: 2021-08-26 | B75: NBIFIN | C75: N.B.I. Ind. Fin. Co. Ltd | D75: MAHENDRA GIRDHARILAL WADHWANI | E75: SELL | F75: 38,672 | G75: 2950 | H75: NSE
A76: 2021-08-26 | B76: PRAKASHSTL | C76: Prakash Steelage Ltd | D76: ALPHA LEON ENTERPRISES LLP | E76: SELL | F76: 238,539 | G76: 2 | H76: NSE
A77: 2021-08-26 | B77: REFEX | C77: Refex Industries Limited | D77: MBL & CO. LIMITED | E77: SELL | F77: 116,773 | G77: 165.24 | H77: NSE
A78: 2021-08-26 | B78: REFEX | C78: Refex Industries Limited | D78: GRAVITON RESEARCH CAPITAL LLP | E78: SELL | F78: 291,467 | G78: 161.62 | H78: NSE
A79: 2021-08-26 | B79: REXPIPES | C79: Rex Pipes And Cables Ltd | D79: PIYUSHSUNDA | E79: SELL | F79: 60,000 | G79: 26.6 | H79: NSE
A80: 2021-08-26 | B80: SAKSOFT | C80: Saksoft Limited | D80: GRAVITON RESEARCH CAPITAL LLP | E80: SELL | F80: 53,138 | G80: 903.54 | H80: NSE
A81: 2021-08-26 | B81: TARMAT | C81: Tarmat Limited | D81: SUNITA SANJAY SURANA | E81: SELL | F81: 125,000 | G81: 62.16 | H81: NSE
A82: 2021-08-26 | B82: TARMAT | C82: Tarmat Limited | D82: SUNITA BABULAL SURANA | E82: SELL | F82: 75,000 | G82: 63.77 | H82: NSE
A83: 2021-08-26 | B83: VERTOZ | C83: Vertoz Advertising Ltd | D83: SHREE SHIVSHAKTI PROJECT CONSULTANT PRIVATE LIMITE | E83: SELL | F83: 74,080 | G83: 107.24 | H83: NSE
A84: 2021-08-26 | B84: VERTOZ | C84: Vertoz Advertising Ltd | D84: GOENKA BUSINESS & FINANCE LIMITED | E84: SELL | F84: 126,430 | G84: 116.49 | H84: NSE
A85: 2021-08-26 | B85: VERTOZ | C85: Vertoz Advertising Ltd | D85: OLGA TRADING PRIVATE LIMITED | E85: SELL | F85: 306,374 | G85: 112.82 | H85: NSE
A86: 2021-08-26 | B86: VIKASECO | C86: Vikas EcoTech Limited | D86: ADROIT FINANCIAL SERVICES PVT LTD | E86: SELL | F86: 1,502,926 | G86: 2.11 | H86: NSE
A87: 2021-08-26 | B87: VIKASECO | C87: Vikas EcoTech Limited | D87: SUNAYANA INVESTMENT COMPANY LIMITED | E87: SELL | F87: 3,487,573 | G87: 2.1 | H87: NSE
A88: 2021-08-26 | B88: VIVIDHA | C88: Visagar Polytex Ltd | D88: MULTIPLIER S AND S ADV PVT LTD | E88: SELL | F88: 2,349,989 | G88: 0.8 | H88: NSE
A89: 2021-08-26 | B89: WOCKPHARMA | C89: Wockhardt Ltd. | D89: KIRTAN MANEKLAL RUPARELIYA (HUF) | E89: SELL | F89: 608,897 | G89: 436.4 | H89: NSE

Sheet Call Tracker (Equity & F&O)
M5: Back To Main Page
A6: Retail Research Technical Calls & Fundamental Performance Report for the month of Aug-2021
M7: =Main!B10 -> 2021-08-27
B8: Positional Call
A9: Sr.no | B9: Date | D9: Company | E9: Rec | F9: Rec Price | G9: Stop Loss*** | H9: Call Closed At | I9: Target | J9: Remark | K9: Profit / Loss per Share | L9: All charges | M9: Net Gain / Loss % | N9: Status | O9: Closed Date
A10: 1 | B10: 2021-06-10 | D10: BRITANNIA | E10: Buy | F10: 3585 | G10: 3345 | H10: 3,730.00 | I10: 3900-4000 | J10: Profit of Rs.145/- | K10: =H10-F10 -> 145 | L10: =(F10*-0.8)/100 -> -28.68 | M10: =(K10+L10)/F10 -> 3.24% | N10: Successful | O10: 2021-08-18 | R10: H
A11: 2 | B11: 2021-06-16 | D11: ESCORTS | E11: Buy<> | F11: 1189.75 | G11: 1111.5 | H11: 1,252.00 | I11: 1300-1350 | J11: Profit of Rs.62.25/- | K11: =H11-F11 -> 62.25 | L11: =(F11*-0.8)/100 -> -9.52 | M11: =(K11+L11)/F11 -> 4.43% | N11: Successful | O11: 2021-08-10 | R11: H
A12: 3 | B12: 2021-07-08 | D12: ZYDUSWELL | E12: Buy | F12: 2200 | G12: 2060 | H12: 2,380.00 | I12: 2500 | J12: Profit of Rs.180/- | K12: 180 | L12: =(F12*-0.8)/100 -> -17.60 | M12: 7.38% | N12: Successful | O12: 2021-08-26 | R12: N
A13: 4 | B13: 2021-07-08 | D13: MARUTI | E13: Buy<> | F13: 7335 | G13: 6905 | H13: 6,905.00 | I13: 8000-8200 | J13: Loss of Rs.430/- | K13: =H13-F13 -> -430 | L13: =(F13*-0.8)/100 -> -58.68 | M13: =(K13+L13)/F13 -> -6.66% | N13: Unsuccessful | O13: 2021-08-16 | R13: H
A14: 5 | B14: 2021-07-19 | D14: IGL | E14: Buy | F14: 545-550 | G14: 510 | I14: 620-640 | J14: Open | R14: H
A15: 6 | B15: 2021-07-20 | D15: IOC | E15: Buy | F15: 104-105 | G15: 96.5 | I15: 120-122 | J15: Open | R15: H
A16: 7 | B16: 2021-07-22 | D16: LT | E16: Buy<> | F16: 1577 | G16: 1447 | H16: 1,673.00 | I16: 1800-1850 | J16: Profit of Rs.96/- | K16: =H16-F16 -> 96 | L16: =(F16*-0.8)/100 -> -12.62 | M16: =(K16+L16)/F16 -> 5.29% | N16: Successful | O16: 2021-08-13 | R16: H
A17: 8 | B17: 2021-07-30 | D17: AMARAJABAT | E17: Buy | F17: 715 | G17: 675 | H17: 740.00 | I17: 780-800 | J17: Part profit of Rs.25/- | K17: 25 | L17: =(F17*-0.7)/100 -> -5.01 | M17: 2.80% | N17: Successful | O17: 2021-08-16 | R17: H
A18: 9 | B18: 2021-08-02 | D18: MIRZAINT | E18: Buy | F18: 63.3 | G18: 59 | H18: 59.00 | I18: 70-72 | J18: Loss of Rs.4.3/- | K18: =H18-F18 -> -4.3 | L18: =(F18*-0.8)/100 -> -0.51 | M18: =(K18+L18)/F18 -> -7.59% | N18: Unsuccessful | O18: 2021-08-10 | R18: H
A19: 10 | B19: 2021-08-09 | D19: ENGINERSIN | E19: Buy | F19: 74 | G19: 69 | H19: 68.50 | I19: 80-83 | J19: Loss of Rs.5.5/- | K19: =H19-F19 -> -5.5 | L19: =(F19*-0.8)/100 -> -0.59 | M19: =(K19+L19)/F19 -> -8.23% | N19: Unsuccessful | O19: 2021-08-23 | R19: H
A20: 11 | B20: 2021-08-13 | D20: MCX | E20: Buy | F20: 1490-1510 | G20: 1415 | I20: 1650-1680 | J20: Open | R20: H
A21: 12 | B21: 2021-08-20 | D21: POLYCAB | E21: Buy | F21: 1860-1870 | G21: 1740 | I21: 2000-2050 | J21: Open | R21: H
A27: CLBS = Closing Basis ***
A28: Dividend adjusted <> | F28: Reinitiated $
A29: Part book {} | F29: Revised stoploss #
B31: Momentum Call
A32: Sr.no | B32: Date | D32: Company | E32: Rec | F32: Rec Price | G32: Stop Loss | H32: Call Closed At | I32: Target | J32: Remark | K32: Profit / Loss per Share/Lot | L32: All charges | M32: Net Gain / Loss % | N32: Status | O32: Closed Date
A33: 1 | B33: 2021-07-20 | D33: BLUESTARCO | E33: Buy | F33: 846 | G33: 821 | H33: 832.5 | I33: 895 | J33: Loss of Rs.13.5/- | K33: =H33-F33 -> -13.5 | L33: =(F33*-0.7)/100 -> -5.92 | M33: =(K33+L33)/F33 -> -2.30% | N33: Unsuccessful | O33: 2021-08-04 | R33: H
A34: 2 | B34: 2021-07-22 | D34: SUPREMEIND | E34: Buy | F34: 2097 | G34: 2040 | H34: 2147.5 | I34: 2180-2200 | J34: Profit of Rs.50.5/- | K34: =H34-F34 -> 50.5 | L34: =(F34*-0.7)/100 -> -14.68 | M34: =(K34+L34)/F34 -> 1.71% | N34: Successful | O34: 2021-08-02 | R34: H
A35: 2 | B35: 2021-07-29 | D35: BAJAJELEC | E35: Buy | F35: 1147.5 | G35: 1115 | H35: 1182.5 | I35: 1200-1210 | J35: Profit of Rs.35/- | K35: =H35-F35 -> 35 | L35: =(F35*-0.7)/100 -> -8.03 | M35: =(K35+L35)/F35 -> 2.35% | N35: Successful | O35: 2021-08-02 | R35: N
A36: 4 | B36: 2021-07-30 | D36: DELTACORP | E36: Buy | F36: 184.5 | G36: 179 | H36: 179 | I36: 195-197 | J36: Loss of Rs.5.5/- | K36: -5.5 | L36: =(F36*-0.7)/100 -> -1.29 | M36: -3.68% | N36: Unsuccessful | O36: 2021-08-03 | R36: N
A37: 5 | B37: 2021-08-02 | D37: MARICO | E37: Buy | F37: 551 | G37: 534 | H37: 534.5 | I37: 580 | J37: Loss of Rs.16.5/- | K37: =H37-F37 -> -16.5 | L37: =(F37*-0.07)/100 -> -0.39 | M37: =(K37+L37)/F37 -> -3.06% | N37: Unsuccessful | O37: 2021-08-02 | R37: N
A38: 6 | B38: 2021-08-02 | D38: SUNTV | E38: Buy | F38: 569.5 | G38: 554 | H38: 554 | I38: 595-605 | J38: Loss of Rs.16.5/- | K38: =H38-F38 -> -15.5 | L38: =(F38*-0.7)/100 -> -3.99 | M38: =(K38+L38)/F38 -> -3.42% | N38: Unsuccessful | O38: 2021-08-05 | R38: H
A39: 7 | B39: 2021-08-02 | D39: AEGISCHEM | E39: Buy | F39: 305.5 | G39: 297 | H39: 297 | I39: 320-322 | J39: Loss of Rs.8.5/- | K39: =H39-F39 -> -8.5 | L39: =(F39*-0.7)/100 -> -2.14 | M39: =(K39+L39)/F39 -> -3.48% | N39: Unsuccessful | O39: 2021-08-04 | R39: H
A40: 8 | B40: 2021-08-03 | D40: NMDC | E40: Buy | F40: 178.25 | G40: 173 | H40: 182.5 | I40: 188-190 | J40: Profit of Rs.4.25/- | K40: =H40-F40 -> 4.25 | L40: =(F40*-0.07)/100 -> -0.12 | M40: =(K40+L40)/F40 -> 2.31% | N40: Successful | O40: 2021-08-03 | R40: H
A41: 9 | B41: 2021-08-04 | D41: RATNAMANI | E41: Buy | F41: 2159 | G41: 2085 | H41: 2085 | I41: 2220-2250 | J41: Loss of Rs.74/- | K41: -74 | L41: =(F41*-0.7)/100 -> -15.11 | M41: -4.13% | N41: Unsuccessful | O41: 2021-08-05 | R41: H
A42: 10 | B42: 2021-08-04 | D42: MAXHEALTH | E42: Buy | F42: 284 | G42: 274 | H42: 275 | I42: 295-300 | J42: Loss of Rs.9/- | K42: -9 | L42: =(F42*-0.7)/100 -> -1.99 | M42: -3.87% | N42: Unsuccessful | O42: 2021-08-05 | R42: H
A43: 11 | B43: 2021-08-05 | D43: SAIL | E43: Buy | F43: 135.5 | G43: 131.8 | H43: 138.5 | I43: 140-142 | J43: Profit of Rs.3/- | K43: =H43-F43 -> 3 | L43: =(F43*-0.07)/100 -> -0.09 | M43: =(K43+L43)/F43 -> 2.14% | N43: Successful | O43: 2021-08-05 | R43: H
A44: 12 | B44: 2021-08-06 | D44: MUTHOOTFIN | E44: Buy | F44: 1515 | G44: 1470 | H44: 1550 | I44: 1600-1620 | J44: Profit of Rs.35/- | K44: =H44-F44 -> 35 | L44: =(F44*-0.07)/100 -> -1.06 | M44: =(K44+L44)/F44 -> 2.24% | N44: Successful | O44: 2021-08-06 | R44: H
A45: 13 | B45: 2021-08-09 | D45: INDUSINDBK | E45: Buy | F45: 1035 | G45: 1005 | H45: 1005 | I45: 1100 | J45: Loss of Rs.30/- | K45: -30 | L45: =(F45*-0.7)/100 -> -7.25 | M45: -3.60% | N45: Unsuccessful | O45: 2021-08-17 | R45: N
A46: 14 | B46: 2021-08-09 | D46: NMDC | E46: Buy | F46: 178 | G46: 173 | H46: 172.5 | I46: 187-190 | J46: Loss of Rs.5.5/- | K46: =H46-F46 -> -5.5 | L46: =(F46*-0.7)/100 -> -1.25 | M46: =(K46+L46)/F46 -> -3.79% | N46: Unsuccessful | O46: 2021-08-10 | R46: H
A47: 15 | B47: 2021-08-09 | D47: LAURUSLABS | E47: Buy | F47: 701 | G47: 685 | H47: 715 | I47: 720-730 | J47: Profit of Rs.14/- | K47: 14 | L47: =(F47*-0.7)/100 -> -4.91 | M47: 1.30% | N47: Successful | O47: 2021-08-10 | R47: H
A48: 16 | B48: 2021-08-10 | D48: TATACHEM | E48: Buy | F48: 854.5 | G48: 832 | H48: 876 | I48: 880-890 | J48: Profit of Rs.21.5/- | K48: =H48-F48 -> 21.5 | L48: =(F48*-0.7)/100 -> -5.98 | M48: =(K48+L48)/F48 -> 1.82% | N48: Successful | O48: 2021-08-12 | R48: N
A49: 17 | B49: 2021-08-11 | D49: IEX | E49: Buy | F49: 401 | G49: 388 | H49: 388 | I49: 415-425 | J49: Loss of Rs.13/- | K49: =H49-F49 -> -13 | L49: =(F49*-0.07)/100 -> -0.28 | M49: =(K49+L49)/F49 -> -3.31% | N49: Unsuccessful | O49: 2021-08-11 | R49: H
A50: 18 | B50: 2021-08-11 | D50: JBCHEPHARM | E50: Buy | F50: 1695 | G50: 1645 | H50: 1730 | I50: 1770-1800 | J50: Profit of Rs.35/- | K50: 35 | L50: =(F50*-0.07)/100 -> -1.19 | M50: 1.99% | N50: Successful | O50: 2021-08-11 | R50: H
A51: 19 | B51: 2021-08-13 | D51: INDIGO | E51: Buy | F51: 1672 | G51: 1615 | H51: 1717.5 | I51: 1740-1760 | J51: Profit of Rs.45.5/- | K51: 45.5 | L51: =(F51*-0.7)/100 -> -11.70 | M51: 2.02% | N51: Successful | O51: 2021-08-17 | R51: H
A52: 20 | B52: 2021-08-13 | D52: ICICIGI | E52: Buy | F52: 1446 | G52: 1395 | H52: 1486.5 | I52: 1550 | J52: Profit of Rs.40.5/- | K52: =H52-F52 -> 40.5 | L52: =(F52*-0.7)/100 -> -10.12 | M52: =(K52+L52)/F52 -> 2.10% | N52: Successful | O52: 2021-08-20 | R52: H
A53: 21 | B53: 2021-08-16 | D53: JYOTHYLAB | E53: Buy | F53: 168.5 | G53: 163 | H53: 163 | I53: 180 | J53: Loss of Rs.5.5/- | K53: -5.5 | L53: -1.18 | M53: -3.96% | N53: Unsuccessful | O53: 2021-08-20 | R53: H
A54: 22 | B54: 2021-08-17 | D54: ZYDUSWELL | E54: Buy | F54: 2215 | G54: 2170 | H54: 2170 | I54: 2280-2300 | J54: Loss of Rs.45/- | K54: -45 | L54: -15.51 | M54: -2.73% | N54: Unsuccessful | O54: 2021-08-20 | R54: N
A55: 23 | B55: 2021-08-18 | D55: GRANULES | E55: Buy | F55: 347.5 | G55: 337 | H55: 337 | I55: 360-365 | J55: Loss of Rs.10.5/- | K55: -10.5 | L55: -2.43 | M55: -3.72% | N55: Unsuccessful | O55: 2021-08-20 | R55: H
A56: 24 | B56: 2021-08-20 | D56: AARTIIND | E56: Buy | F56: 930-938 | G56: 899 | I56: 980-1000 | J56: Open | R56: H
A57: 25 | B57: 2021-08-23 | D57: BANKBARODA | E57: Sell | F57: 75.25 | G57: 77.5 | H57: 73.9 | I57: 72-70 | J57: Profit of Rs.1.35/- | K57: =F57-H57 -> 1.35 | L57: =(F57*-0.07)/100 -> -0.05 | M57: =(K57+L57)/F57 -> 1.72% | N57: Successful | O57: 2021-08-23 | R57: H
A58: 26 | B58: 2021-08-23 | D58: MCDOWELL-N | E58: Buy | F58: 700-703 | G58: 680 | I58: 735-745 | J58: Open | R58: H
A59: 27 | B59: 2021-08-24 | D59: TATAMOTORS | E59: Sell | F59: 278 | G59: 285.5 | H59: 273 | I59: 268-265 | J59: Profit of Rs.5/- | K59: =F59-H59 -> 5 | L59: =(F59*-0.07)/100 -> -0.19 | M59: =(K59+L59)/F59 -> 1.73% | N59: Successful | O59: 2021-08-24 | R59: H
A60: 28 | B60: 2021-08-24 | D60: SYNGENE | E60: Buy | F60: 598 | G60: 580 | H60: 615 | I60: 625-635 | J60: Profit of Rs.17/- | K60: =H60-F60 -> 17 | L60: =(F60*-0.7)/100 -> -4.19 | M60: 2.14% | N60: Successful | O60: 2021-08-20 | R60: H
A61: 29 | B61: 2021-08-25 | D61: BANKBARODA | E61: Sell | F61: 75.5 | G61: 77.5 | H61: 75 | I61: 72-70 | J61: Profit of Rs.0.5/- | K61: =F61-H61 -> 0.5 | L61: =(F61*-0.07)/100 -> -0.05 | M61: =(K61+L61)/F61 -> 0.59% | N61: Successful | O61: 2021-08-25 | R61: H
A62: 30 | B62: 2021-08-26 | D62: BANKBARODA | E62: Sell | F62: 75.65 | G62: 78 | H62: 74.6 | I62: 72-70 | J62: Profit of Rs.1.05/- | K62: =F62-H62 -> 1.05 | L62: =(F62*-0.07)/100 -> -0.05 | M62: =(K62+L62)/F62 -> 1.32% | N62: Successful | O62: 2021-08-26 | R62: H
A63: 31 | B63: 2021-08-26 | D63: INDIAMART | E63: Buy | F63: 7040-7070 | G63: 6900 | I63: 7300-7400 | J63: Open | R63: H
A64: 32 | B64: 2021-08-26 | D64: IPCALAB | E64: Buy | F64: 2505 | G64: 2430 | H64: 2542.5 | I64: 2600-2620 | J64: Profit of Rs.37.5/- | K64: =H64-F64 -> 37.5 | L64: =(F64*-0.07)/100 -> -1.75 | M64: =(K64+L64)/F64 -> 1.43% | N64: Successful | O64: 2021-08-26 | R64: H
A65: 33 | B65: 2021-08-26 | D65: OFSS | E65: Buy | F65: 4710-4730 | G65: 4610 | I65: 4900 | J65: Open | R65: N
A71: CLBS = Closing Basis *** | H71: *
A72: Dividend adjusted <> | F72: Reinitiated $
F73: Revised stoploss #
A75: Master Trade High Risk
A76: Sr.no | B76: Date | D76: Company | E76: Rec | F76: Rec Price | G76: Stop Loss | H76: Call Closed At | I76: Target | J76: Remark | K76: Profit / Loss per share | L76: All charges | M76: Gain / Loss per Lot | N76: Lot | O76: Status | P76: Closed Date
A77: 1 | B77: 2021-07-28 | D77: ICICIGI AUG FUT | E77: Buy | F77: 1501 | G77: 1470 | H77: 1470 | I77: 1550-1560 | J77: Loss of Rs.31/- | K77: =H77-F77 -> -31 | L77: =(H77*N77)*0.07% -> 437.33 | M77: =(K77*N77)-L77 -> -13612.3 | N77: 425 | O77: Unsuccessful | P77: 2021-08-02 | R77: N
A78: 2 | B78: 2021-07-29 | D78: HINDUNILVR AUG FUT | E78: Buy | F78: 2340 | G78: 2295 | H78: 2366.5 | I78: 2430-2450 | J78: Profit of Rs.26.5/- | K78: 26.5 | L78: 496.97 | M78: 7453.0 | N78: 300 | O78: Successful | P78: 2021-08-03 | R78: H
A79: 3 | B79: 2021-07-30 | D79: SBIN AUG FUT | E79: Buy | F79: 433 | G79: 425 | H79: 438.5 | I79: 445 | J79: Profit of Rs.5.5/- | K79: =H79-F79 -> 5.5 | L79: =(H79*N79)*0.07% -> 460.43 | M79: =(K79*N79)-L79 -> 7789.6 | N79: 1500 | O79: Successful | P79: 2021-08-02 | R79: H
A80: 4 | B80: 2021-07-30 | D80: LT AUG FUT | E80: Buy | F80: 1616.5 | G80: 1595 | H80: 1639 | I80: 1650-1660 | J80: Profit of Rs.22.5/- | K80: 22.5 | L80: 659.70 | M80: 12277.8 | N80: 575 | O80: Successful | P80: 2021-08-03 | R80: N
A81: 5 | B81: 2021-07-30 | D81: BERGEPAINT AUG FUT | E81: Buy | F81: 849 | G81: 836 | H81: 856 | I81: 870 | J81: Profit of Rs.7/- | K81: =H81-F81 -> 7 | L81: =(H81*N81)*0.07% -> 659.12 | M81: =(K81*N81)-L81 -> 7040.9 | N81: 1100 | O81: Successful | P81: 2021-08-03 | R81: N
A82: 6 | B82: 2021-08-03 | D82: COLPAL AUG FUT | E82: Buy | F82: 1692 | G82: 1655 | H82: 1655 | I82: 1750-1770 | J82: Loss of Rs.37/- | K82: -37 | L82: 405.48 | M82: -13355.5 | N82: 350 | O82: Unsuccessful | P82: 2021-08-06 | R82: N
A83: 7 | B83: 2021-08-03 | D83: TVSMOTOR AUG FUT | E83: Buy | F83: 571 | G83: 560 | H83: 577 | I83: 590 | J83: Profit of Rs.6/- | K83: =H83-F83 -> 6 | L83: =(H83*N83)*0.07% -> 565.46 | M83: =(K83*N83)-L83 -> 7834.5 | N83: 1400 | O83: Successful | P83: 2021-08-04 | R83: N
A84: 8 | B84: 2021-08-03 | D84: PEL AUG FUT | E84: Buy | F84: 2534 | G84: 2490 | H84: 2567.5 | I84: 2600-2630 | J84: Profit of Rs.33.5/- | K84: 33.5 | L84: 494.24 | M84: 8718.3 | N84: 275 | O84: Successful | P84: 2021-08-04 | R84: N
A85: 9 | B85: 2021-08-03 | D85: HDFCBANK AUG FUT | E85: Buy | F85: 1438 | G85: 1414 | H85: 1454 | I85: 1470-1480 | J85: Profit of Rs.16/- | K85: =H85-F85 -> 16 | L85: =(H85*N85)*0.07% -> 559.79 | M85: =(K85*N85)-L85 -> 8240.2 | N85: 550 | O85: Successful | P85: 2021-08-04 | R85: H
A86: 10 | B86: 2021-08-04 | D86: ACC AUG FUT | E86: Buy | F86: 2441 | G86: 2416 | H86: 2416 | I86: 2480-2490 | J86: Loss of Rs.25/- | K86: -25 | L86: 845.60 | M86: -13345.6 | N86: 500 | O86: Unsuccessful | P86: 2021-08-04 | R86: N
A87: 11 | B87: 2021-08-05 | D87: NAM-INDIA AUG FUT | E87: Buy | F87: 407 | G87: 397 | H87: 397 | I87: 425-430 | J87: Loss of Rs.10/- | K87: =H87-F87 -> -10 | L87: =(H87*N87)*0.07% -> 444.64 | M87: =(K87*N87)-L87 -> -16444.6 | N87: 1600 | O87: Unsuccessful | P87: 2021-08-09 | R87: N
A88: 12 | B88: 2021-08-05 | D88: HDFCLIFE AUG FUT | E88: Buy | F88: 671.5 | G88: 660 | H88: 679 | I88: 688-692 | J88: Profit of Rs.7.5/- | K88: 7.5 | L88: 522.83 | M88: 7727.2 | N88: 1100 | O88: Successful | P88: 2021-08-09 | R88: H
A89: 13 | B89: 2021-08-06 | D89: TVSMOTOR AUG FUT | E89: Buy | F89: 569.5 | G89: 560 | H89: 575.5 | I89: 590 | J89: Profit of Rs.6/- | K89: =H89-F89 -> 6 | L89: =(H89*N89)*0.07% -> 563.99 | M89: =(K89*N89)-L89 -> 7836.0 | N89: 1400 | O89: Successful | P89: 2021-08-06 | R89: N
A90: 14 | B90: 2021-08-06 | D90: ITC AUG FUT | E90: Buy | F90: 214.5 | G90: 210 | H90: 217.75 | I90: 222 | J90: Profit of Rs.3.25/- | K90: 3.25 | L90: 487.76 | M90: 9912.2 | N90: 3200 | O90: Successful | P90: 2021-08-09 | R90: H
A91: 15 | B91: 2021-08-06 | D91: CHOLAFIN AUG FUT | E91: Buy | F91: 538.5 | G91: 528 | H91: 528 | I91: 560 | J91: Loss of Rs.10.5/- | K91: =H91-F91 -> -10.5 | L91: =(H91*N91)*0.07% -> 462.00 | M91: =(K91*N91)-L91 -> -13587.0 | N91: 1250 | O91: Unsuccessful | P91: 2021-08-06 | R91: N
A92: 16 | B92: 2021-08-09 | D92: LUPIN AUG FUT | E92: Buy | F92: 1143 | G92: 1127 | H92: 1127 | I92: 1175 | J92: Loss of Rs.16/- | K92: =H92-F92 -> -16 | L92: =(H92*N92)*0.07% -> 670.57 | M92: =(K92*N92)-L92 -> -14270.6 | N92: 850 | O92: Unsuccessful | P92: 2021-08-09 | R92: N
A93: 17 | B93: 2021-08-09 | D93: HDFC AUG FUT | E93: Buy | F93: 2632 | G93: 2595 | H93: 2664 | I93: 2680-2700 | J93: Profit of Rs.13/- | K93: 32 | L93: 559.44 | M93: 9040.6 | N93: 300 | O93: Successful | P93: 2021-08-10 | R93: H
A94: 18 | B94: 2021-08-09 | D94: HDFCLIFE AUG FUT | E94: Buy | F94: 669 | G94: 658 | H94: 676 | I94: 685-690 | J94: Profit of Rs.8/- | K94: 7 | L94: 520.52 | M94: 7179.5 | N94: 1100 | O94: Successful | P94: 2021-08-12 | R94: H
A95: 19 | B95: 2021-08-09 | D95: AARTIIND AUG FUT | E95: Buy | F95: 941 | G95: 926 | H95: 952 | I95: 975 | J95: Profit of Rs.11/- | K95: =H95-F95 -> 11 | L95: =(H95*N95)*0.07% -> 566.44 | M95: =(K95*N95)-L95 -> 8783.6 | N95: 850 | O95: Successful | P95: 2021-08-09 | R95: N
A96: 20 | B96: 2021-08-10 | D96: AARTIIND AUG FUT | E96: Buy | F96: 941 | G96: 926 | H96: 954 | I96: 975 | J96: Profit of Rs.13/- | K96: =H96-F96 -> 13 | L96: =(H96*N96)*0.07% -> 567.63 | M96: =(K96*N96)-L96 -> 10482.4 | N96: 850 | O96: Successful | P96: 2021-08-10 | R96: N
A97: 21 | B97: 2021-08-10 | D97: ITC AUG FUT | E97: Buy | F97: 212.75 | G97: 208.5 | H97: 209.25 | I97: 220 | J97: Loss of Rs.3.5/- | K97: -3.5 | L97: 468.72 | M97: -11668.7 | N97: 3200 | O97: Unsuccessful | P97: 2021-08-10 | R97: H
A98: 22 | B98: 2021-08-11 | D98: IGL AUG FUT | E98: Buy | F98: 519 | G98: 509.5 | H98: 527 | I98: 535 | J98: Profit of Rs.8/- | K98: =H98-F98 -> 8 | L98: =(H98*N98)*0.07% -> 516.46 | M98: =(K98*N98)-L98 -> 10683.5 | N98: 1400 | O98: Successful | P98: 2021-08-12 | R98: H
A99: 23 | B99: 2021-08-11 | D99: AARTIIND AUG FUT | E99: Buy | F99: 911 | G99: 896 | H99: 921 | I99: 930-935 | J99: Profit of Rs.10/- | K99: =H99-F99 -> 10 | L99: =(H99*N99)*0.07% -> 548.00 | M99: =(K99*N99)-L99 -> 7952.0 | N99: 850 | O99: Successful | P99: 2021-08-11 | R99: N
A100: 24 | B100: 2021-08-12 | D100: TATASTEEL AUG FUT | E100: Buy | F100: 1440 | G100: 1424 | H100: 1424 | I100: 1465-1475 | J100: Loss of Rs.16/- | K100: -16 | L100: 847.28 | M100: -14447.3 | N100: 850 | O100: Unsuccessful | P100: 2021-08-13 | R100: H
A101: 25 | B101: 2021-08-13 | D101: HDFCLIFE AUG FUT | E101: Buy | F101: 672.5 | G101: 657 | H101: 657 | I101: 690 | J101: Loss of Rs.11.9/- | K101: -15.50 | L101: 505.89 | M101: =(-1100*11.9)-606 -> -13696 | N101: 1100 | O101: Unsuccessful | P101: 2021-08-20 | R101: H
D102: HDFCLIFE AUG 690 CE | E102: Sell | F102: 4.5 | H102: 0.9 | K102: 3.60 | R102: H
A103: 26 | B103: 2021-08-16 | D103: HCLTECH AUG FUT | E103: Buy | F103: 1115.5 | G103: 1100 | H103: 1128 | I103: 1150 | J103: Profit of Rs.12.5/- | K103: =H103-F103 -> 12.5 | L103: =(H103*N103)*0.07% -> 552.72 | M103: =(K103*N103)-L103 -> 8197.3 | N103: 700 | O103: Successful | P103: 2021-08-16 | R103: N
A104: 27 | B104: 2021-08-16 | D104: HDFCAMC AUG FUT | E104: Buy | F104: 2925 | G104: 2885 | H104: 2960 | I104: 3000 | J104: Profit of Rs.35/- | K104: =H104-F104 -> 35 | L104: =(H104*N104)*0.07% -> 414.40 | M104: =(K104*N104)-L104 -> 6585.6 | N104: 200 | O104: Successful | P104: 2021-08-16 | R104: N
A105: 28 | B105: 2021-08-16 | D105: SBIN AUG FUT | E105: Buy | F105: 429 | G105: 419.5 | H105: 421 | I105: 445-450 | J105: Loss of Rs.8/- | K105: -8 | L105: 442.05 | M105: -12442.1 | N105: 1500 | O105: Unsuccessful | P105: 2021-08-17 | R105: H
A106: 29 | B106: 2021-08-17 | D106: PEL AUG FUT | E106: Buy | F106: 2775 | G106: 2730 | H106: 2730 | I106: 2850-2875 | J106: Loss of Rs.45/- | K106: =H106-F106 -> -45 | L106: =(H106*N106)*0.07% -> 525.53 | M106: =(K106*N106)-L106 -> -12900.5 | N106: 275 | O106: Unsuccessful | P106: 2021-08-17 | R106: N
A107: 30 | B107: 2021-08-17 | D107: LT AUG FUT | E107: Buy | F107: 1642 | G107: 1618 | H107: 1659 | I107: 1680-1700 | J107: Profit of Rs.17/- | K107: 17 | L107: 667.75 | M107: 9107.3 | N107: 575 | O107: Successful | P107: 2021-08-17 | R107: H
A108: 31 | B108: 2021-08-17 | D108: M&M AUG FUT | E108: Buy | F108: 789 | G108: 770 | H108: 789.5 | I108: 820-830 | J108: Profit of Rs.0.5/- | K108: =H108-F108 -> 0.5 | L108: =(H108*N108)*0.07% -> 386.86 | M108: =(K108*N108)-L108 -> -36.9 | N108: 700 | O108: Successful | P108: 2021-08-23 | R108: H
A109: 32 | B109: 2021-08-18 | D109: ESCORTS AUG FUT | E109: Buy | F109: 1236 | G109: 1214 | H109: 1216 | I109: 1270-1275 | J109: Loss of Rs.20/- | K109: -20 | L109: 468.16 | M109: -11468.2 | N109: 550 | O109: Unsuccessful | P109: 2021-08-23 | R109: H
A110: 33 | B110: 2021-08-20 | D110: GODREJCP AUG FUT | E110: Buy | F110: 1037 | G110: 1025 | H110: 1045.5 | I110: 1065-1070 | J110: Profit of Rs.8.5/- | K110: =H110-F110 -> 8.5 | L110: =(H110*N110)*0.07% -> 731.85 | M110: =(K110*N110)-L110 -> 7768.2 | N110: 1000 | O110: Successful | P110: 2021-08-20 | R110: N
A111: 34 | B111: 2021-08-20 | D111: IRCTC AUG FUT | E111: Buy | F111: 2652 | G111: 2610 | H111: 2680 | I111: 2700-2730 | J111: Profit of Rs.28/- | K111: 28 | L111: 609.70 | M111: 8490.3 | N111: 325 | O111: Successful | P111: 2021-08-23 | R111: N
A112: 35 | B112: 2021-08-23 | D112: HDFCAMC AUG FUT | E112: Buy | F112: 2895 | G112: 2835 | H112: 2937.5 | I112: 3000-3010 | J112: Profit of Rs.42.5/- | K112: =H112-F112 -> 42.5 | L112: =(H112*N112)*0.07% -> 411.25 | M112: =(K112*N112)-L112 -> 8088.8 | N112: 200 | O112: Successful | P112: 2021-08-25 | R112: N
A113: 36 | B113: 2021-08-23 | D113: COLPAL SEP FUT | E113: Buy | F113: 1680-1684 | G113: 1645 | I113: 1750-1760 | J113: Open | R113: N
A114: 37 | B114: 2021-08-24 | D114: INFY SEP FUT | E114: Sell | F114: 1735-1738 | G114: 1770 | I114: 1690 | J114: Open | R114: H
D115: INFY 1720 PE AUG | E115: Sell | F115: 10 | G115: 0 | R115: H
A116: 38 | B116: 2021-08-24 | D116: LICHSGFIN SEP FUT | E116: Buy | F116: 369.5 | G116: 359.75 | H116: 374.5 | I116: 385 | J116: Profit of Rs.4.70/- | K116: =H116-F116 -> 5.00 | L116: =(H116*N116)*0.07% -> 524.30 | M116: =(2000*4.7)-625 -> 8775 | N116: 2000 | O116: Successful | P116: 2021-08-25 | R116: H
D117: LICHSGFIN 380 CE AUG | E117: Sell | F117: 3.5 | H117: 3.8 | K117: =F117-H117 -> -0.30 | L117: 100.00 | R117: H
A118: 39 | B118: 2021-08-25 | D118: IRCTC SEP FUT | E118: Buy | F118: 2595 | G118: 2555 | H118: 2627.5 | I118: 2680 | J118: Profit of Rs.32.5/- | K118: =H118-F118 -> 32.5 | L118: =(H118*N118)*0.07% -> 597.76 | M118: =(K118*N118)-L118 -> 9964.7 | N118: 325 | O118: Successful | P118: 2021-08-25 | R118: N
A119: 40 | B119: 2021-08-25 | D119: HDFCBANK SEP FUT | E119: Buy | F119: 1551.5 | G119: 1525 | H119: 1569 | I119: 1600 | J119: Profit of Rs.31/- | K119: 17.5 | L119: 604.07 | M119: 9020.9 | N119: 550 | O119: Successful | P119: 2021-08-26 | R119: H
A120: 41 | B120: 2021-08-25 | D120: RELIANCE SEP FUT | E120: Buy | F120: 2217.5 | G120: 2175 | H120: 2248.5 | I120: 2270-2280 | J120: Profit of Rs.31/- | K120: =H120-F120 -> 31 | L120: =(H120*N120)*0.07% -> 393.49 | M120: =(K120*N120)-L120 -> 7356.5 | N120: 250 | O120: Successful | P120: 2021-08-26 | R120: H
A121: 42 | B121: 2021-08-26 | D121: GODREJCP SEP FUT | E121: Buy | F121: 1054 | G121: 1041 | H121: 1065 | I121: 1080 | J121: Profit of Rs.11/- | K121: =H121-F121 -> 11 | L121: =(H121*N121)*0.07% -> 745.50 | M121: =(K121*N121)-L121 -> 10254.5 | N121: 1000 | O121: Successful | P121: 2021-08-26 | R121: N
A122: 43 | B122: 2021-08-26 | D122: ASIANPAINT SEP FUT | E122: Buy | F122: 3058-3062 | G122: 3020 | I122: 3120-3140 | J122: Open | R122: N
A131: Master Trade Medium Risk
A132: Sr.no | B132: Date | D132: Company | E132: Rec | F132: Rec Price | G132: Stop Loss | H132: Call Closed At | I132: Target | J132: Remark | K132: Profit/ Loss per lot | L132: All charges | M132: Gain / Loss per Lot | N132: Lot | O132: Status | P132: Closed Date
A133: 1 | B133: 2021-07-26 | D133: ITC 225 CE AUG | E133: Buy | F133: 2.1 | G133: 0.75 | H133: 0.75 | I133: 4-4.50 | J133: Loss of Rs.1.35/- | K133: =H133-F133 -> -1.35 | L133: 100.00 | M133: =(K133*N133)-100 -> -4420 | N133: 3200 | O133: Unsuccessful | P133: 2021-08-13 | R133: H
A134: 2 | B134: 2021-08-03 | D134: NIFTY 15900 PE 5-AUG | E134: Buy | F134: 66.5 | G134: 19 | H134: 26 | I134: 110-120 | J134: Loss of Rs.40.5/- | K134: =H134-F134 -> -40.50 | L134: 100.00 | M134: =(K134*N134)-100 -> -2125 | N134: 50 | O134: Unsuccessful | P134: 2021-08-03 | R134: H
A135: 3 | B135: 2021-08-03 | D135: BANKNIFTY 34700 PE 5-AUG | E135: Buy | F135: 150 | G135: 35 | H135: 35 | I135: 250-300 | J135: Loss of Rs.115/- | K135: =H135-F135 -> -115.00 | L135: 100.00 | M135: =(K135*N135)-100 -> -2975 | N135: 25 | O135: Unsuccessful | P135: 2021-08-04 | R135: N
A136: 4 | B136: 2021-08-04 | D136: COLPAL 1700 CE AUG | E136: Buy | F136: 26.5 | G136: 14 | H136: 14 | I136: 45-50 | J136: Loss of Rs.12.5/- | K136: -12.50 | L136: 100.00 | M136: -4475 | N136: 350 | O136: Unsuccessful | P136: 2021-08-13 | R136: H
A137: 5 | B137: 2021-08-04 | D137: NIFTY 16250 PE 5-AUG | E137: Buy | F137: 51 | G137: 8 | H137: 8 | I137: 100-120 | J137: Loss of Rs.43/- | K137: =H137-F137 -> -43.00 | L137: 100.00 | M137: =(K137*N137)-100 -> -2250 | N137: 50 | O137: Unsuccessful | P137: 2021-08-05 | R137: N
A138: 6 | B138: 2021-08-10 | D138: EXIDEIND 175 CE AUG | E138: Buy | F138: 2.75 | G138: 1.3 | H138: 1.3 | I138: 4.5-5 | J138: Loss of Rs.1.45/- | K138: -1.45 | L138: 100.00 | M138: -3870 | N138: 2600 | O138: Unsuccessful | P138: 2021-08-13 | R138: H
A139: 7 | B139: 2021-08-10 | D139: NIFTY 16500 CE AUG | E139: Sell | F139: 80 | G139: 140 | H139: 62 | I139: 0.1 | J139: Profit of Rs.18/- | K139: =F139-H139 -> 18.00 | L139: 100.00 | M139: =(K139*N139)-100 -> 800 | N139: 50 | O139: Successful | P139: 2021-08-10 | R139: H
A140: 8 | B140: 2021-08-11 | D140: HDFC 2700 CE AUG | E140: Buy | F140: 23 | G140: 10 | H140: 33.5 | I140: 45-50 | J140: Profit of Rs.10.5/- | K140: =H140-F140 -> 10.50 | L140: 100.00 | M140: 3050 | N140: 300 | O140: Successful | P140: 2021-08-13 | R140: N
A141: 9 | B141: 2021-08-11 | D141: ASIANPAINT 3000 CE AUG | E141: Buy | F141: 47 | G141: 34 | H141: 53.5 | I141: 80 | J141: Profit of Rs.6.5/- | K141: =H141-F141 -> 6.50 | L141: 100.00 | M141: =(K141*N141)-100 -> 1850 | N141: 300 | O141: Successful | P141: 2021-08-13 | R141: N
A142: 10 | B142: 2021-08-12 | D142: IGL 500 PE AUG | E142: Sell | F142: 5.75 | G142: 9 | H142: 3.75 | I142: 0.1 | J142: Profit of Rs.2/- | K142: =F142-H142 -> 2.00 | L142: 100.00 | M142: =(K142*N142)-100 -> 2700 | N142: 1400 | O142: Successful | P142: 2021-08-12 | R142: H
A143: 11 | B143: 2021-08-12 | D143: BANKNIFTY 35900 CE 12-AUG | E143: Buy | F143: 62 | H143: 22.5 | I143: 120-150 | J143: Loss of Rs.39.5/- | K143: =H143-F143 -> -39.50 | L143: 100.00 | M143: -1087.5 | N143: 25 | O143: Unsuccessful | P143: 2021-08-12 | R143: N
A144: 12 | B144: 2021-08-12 | D144: NIFTY 16500 CE 26-AUG | E144: Sell | F144: 72 | G144: 130 | H144: 125 | I144: 0.1 | J144: Loss of Rs.53/- | K144: =F144-H144 -> -53.00 | L144: 100.00 | M144: -2750 | N144: 50 | O144: Unsuccessful | P144: 2021-08-13 | R144: H
A145: 13 | B145: 2021-08-12 | D145: HINDUNILVR 2400 CE AUG | E145: Buy | F145: 31 | G145: 15 | H145: 38 | I145: 50-60 | J145: Profit of Rs.7/- | K145: =H145-F145 -> 7.00 | L145: 100.00 | M145: =(K145*N145)-100 -> 2000 | N145: 300 | O145: Successful | P145: 2021-08-13 | R145: N
A146: 14 | B146: 2021-08-13 | D146: LT 1640 CE AUG | E146: Buy | F146: 26.5 | G146: 18 | H146: 31.5 | I146: 45-50 | J146: Profit of Rs.5/- | K146: 5.00 | L146: 100.00 | M146: 2775 | N146: 575 | O146: Successful | P146: 2021-08-13 | R146: N
A147: 15 | B147: 2021-08-13 | D147: TATASTEEL 1600 CE AUG | E147: Sell | F147: 6.1 | G147: 10.1 | H147: 10.1 | I147: 0.1 | J147: Loss of Rs.4/- | K147: =F147-H147 -> -4.00 | L147: 100.00 | M147: -3300 | N147: 800 | O147: Unsuccessful | P147: 2021-08-13 | R147: N
A148: 16 | B148: 2021-08-13 | D148: ASIANPAINT 3000 CE AUG | E148: Buy | F148: 44.5 | G148: 30 | H148: 53.5 | I148: 70-75 | J148: Profit of Rs.9/- | K148: =H148-F148 -> 9.00 | L148: 100.00 | M148: 2600 | N148: 300 | O148: Successful | P148: 2021-08-17 | R148: N
A149: 17 | B149: 2021-08-16 | D149: PFC 135 CE AUG | E149: Sell | F149: 1.2 | G149: 2.05 | H149: 1.2 | I149: 0.1 | J149: Nuetral | K149: =H149-F149 -> 0.00 | L149: 100.00 | M149: =(K149*N149)-100 -> -100 | N149: 6200 | O149: Neutral | P149: 2021-08-17 | R149: H
A150: 18 | B150: 2021-08-16 | D150: LT 1660 CE AUG | E150: Buy | F150: 25.5 | G150: 17 | H150: 17 | I150: 45 | J150: Loss of Rs.8.5/- | K150: =H150-F150 -> -8.50 | L150: 100.00 | M150: =(K150*N150)-100 -> -4987.5 | N150: 575 | O150: Unsuccessful | P150: 2021-08-17 | R150: N
A151: 19 | B151: 2021-08-17 | D151: LT 1640 CE AUG | E151: Buy | F151: 21.5 | G151: 14 | H151: 25.5 | I151: 30-35 | J151: Profit of Rs.4/- | K151: 4.00 | L151: 100.00 | M151: 2200 | N151: 575 | O151: Successful | P151: 2021-08-18 | R151: H
A152: 20 | B152: 2021-08-18 | D152: RELIANCE 2180 CE AUG | E152: Buy | F152: 25 | G152: 7 | H152: 26 | I152: 45-50 | J152: Profit of Rs.1/- | K152: 1.00 | L152: 100.00 | M152: 150 | N152: 250 | O152: Neutral | P152: 2021-08-25 | R152: H
A153: 21 | B153: 2021-08-18 | D153: ASIANPAINT 3020 CE AUG | E153: Buy | F153: 41 | G153: 28 | H153: 48 | I153: 70-75 | J153: Profit of Rs.7/- | K153: =H153-F153 -> 7.00 | L153: 100.00 | M153: =(K153*N153)-100 -> 2000 | N153: 300 | O153: Successful | P153: 2021-08-20 | R153: N
A154: 22 | B154: 2021-08-20 | D154: NIFTY 16600 CE AUG | E154: Sell | F154: 52 | G154: 85 | H154: 31 | I154: 0.1 | J154: Profit of Rs.21/- | K154: =F154-H154 -> 21.00 | L154: 100.00 | M154: =(K154*N154)-100 -> 950 | N154: 50 | O154: Successful | P154: 2021-08-20 | R154: H
A155: 23 | B155: 2021-08-20 | D155: M&M 790 CE AUG | E155: Buy | F155: 9.5 | G155: 4 | H155: 4 | I155: 20-22 | J155: Loss of Rs.5.5/- | K155: =H155-F155 -> -5.50 | L155: 100.00 | M155: -3950 | N155: 700 | O155: Successful | P155: 2021-08-20 | R155: H
A156: 24 | B156: 2021-08-20 | D156: BATAINDIA 1760 CE AUG | E156: Buy | F156: 27.5 | G156: 17 | H156: 32.5 | I156: 45 | J156: Profit of Rs.5/- | K156: =H156-F156 -> 5.00 | L156: 100.00 | M156: =(K156*N156)-100 -> 2650 | N156: 550 | O156: Successful | P156: 2021-08-20 | R156: N
A157: 25 | B157: 2021-08-20 | D157: HDFC 2700 PE AUG | E157: Buy | F157: 17 | H157: 21.5 | I157: 40-45 | J157: Profit of Rs.4.5/- | K157: 4.50 | L157: 100.00 | M157: 1250 | N157: 300 | O157: Successful | P157: 2021-08-20 | R157: H
A158: 26 | B158: 2021-08-20 | D158: HINDUNILVR 2620 CE AUG | E158: Sell | F158: 15 | G158: 26 | H158: 26 | I158: 0.1 | J158: Loss of Rs.11/- | K158: 11.00 | L158: 100.00 | M158: 3200 | N158: 300 | O158: Unsuccessful | P158: 2021-08-20 | R158: H
A159: 27 | B159: 2021-08-20 | D159: HDFC 2700 PE AUG | E159: Buy | F159: 15.5 | H159: 15.5 | I159: 40-45 | J159: Nuetral | K159: =H159-F159 -> 0.00 | L159: 100.00 | M159: =(K159*N159)-100 -> -100 | N159: 300 | O159: Neutral | P159: 2021-08-20 | R159: H
A160: 28 | B160: 2021-08-20 | D160: LT 1600 CE AUG | E160: Buy | F160: 19 | G160: 10 | H160: 24.5 | I160: 30-35 | J160: Profit of Rs.5.5/- | K160: 5.50 | L160: 100.00 | M160: 2925 | N160: 550 | O160: Successful | P160: 2021-08-23 | R160: N
A161: 29 | B161: 2021-08-20 | D161: NIFTY 16400 PE AUG | E161: Buy | F161: 62 | G161: 14 | H161: 77.5 | I161: 120 | J161: Profit of Rs.15.5/- | K161: =H161-F161 -> 15.50 | L161: 100.00 | M161: =(K161*N161)-100 -> 675 | N161: 50 | O161: Successful | P161: 2021-08-20 | R161: H
A162: 30 | B162: 2021-08-20 | D162: HDFC 2700 PE AUG | E162: Buy | F162: 13.5 | H162: 16.5 | I162: 40 | J162: Profit of Rs.3/- | K162: 3.00 | L162: 100.00 | M162: 800 | N162: 300 | O162: Successful | P162: 2021-08-24 | R162: H
A163: 31 | B163: 2021-08-23 | D163: NIFTY 16500 PE AUG | E163: Buy | F163: 62 | G163: 14 | H163: 80 | I163: 120 | J163: Profit of Rs.18/- | K163: =H163-F163 -> 18.00 | L163: 100.00 | M163: =(K163*N163)-100 -> 800 | N163: 50 | O163: Successful | P163: 2021-08-23 | R163: H
A164: 32 | B164: 2021-08-23 | D164: TVSMOTOR 510 CE AUG | E164: Buy | F164: 5.75 | G164: 2.5 | H164: 7.75 | I164: 14 | J164: Profit of Rs.2/- | K164: =H164-F164 -> 2.00 | L164: 100.00 | M164: =(K164*N164)-100 -> 2700 | N164: 1400 | O164: Successful | P164: 2021-08-23 | R164: N
A165: 33 | B165: 2021-08-23 | D165: LT 1600 CE AUG | E165: Buy | F165: 14 | G165: 5 | H165: 18 | I165: 25 | J165: Profit of Rs.4/- | K165: =H165-F165 -> 4.00 | L165: 100.00 | M165: =(K165*N165)-100 -> 2100 | N165: 550 | O165: Successful | P165: 2021-08-23 | R165: N
A166: 34 | B166: 2021-08-23 | D166: BATAINDIA 1760 CE AUG | E166: Buy | F166: 17 | G166: 8.5 | H166: 8.5 | I166: 30-35 | J166: Loss of Rs.8.5/- | K166: -8.50 | L166: 100.00 | M166: -4775 | N166: 550 | O166: Successful | P166: 2021-08-24 | R166: N
A167: 35 | B167: 2021-08-23 | D167: PIDILITIND 2200 PE AUG | E167: Sell | F167: 12 | G167: 20 | H167: 20 | I167: 0.1 | J167: Loss of Rs.8/- | K167: =F167-H167 -> -8.00 | L167: 100.00 | M167: =(K167*N167)-100 -> -4100 | N167: 500 | O167: Unsuccessful | P167: 2021-08-24 | R167: H
A168: 36 | B168: 2021-08-24 | D168: LT 1600 CE AUG | E168: Buy | F168: 9.5 | G168: 1 | H168: 14 | I168: 25 | J168: Profit of Rs.4.50/- | K168: =H168-F168 -> 4.50 | L168: 100.00 | M168: 2375 | N168: 550 | O168: Successful | P168: 2021-08-24 | R168: H
A169: 37 | B169: 2021-08-24 | D169: TVSMOTOR 500 PE AUG | E169: Buy | F169: 3.5 | H169: 0.7 | I169: 8-10.0 | J169: Loss of Rs.2.80/- | K169: -2.80 | L169: 100.00 | M169: -4020 | N169: 1400 | O169: Successful | P169: 2021-08-25 | R169: N
A170: 38 | B170: 2021-08-24 | D170: LT 1600 CE AUG | E170: Buy | F170: 14 | G170: 5 | H170: 21 | I170: 25 | J170: Profit of Rs.7.0/- | K170: =H170-F170 -> 7.00 | L170: 100.00 | M170: =(K170*N170)-100 -> 3750 | N170: 550 | O170: Successful | P170: 2021-08-25 | R170: H
A171: 39 | B171: 2021-08-24 | D171: NIFTY 16600 PE AUG | E171: Buy | F171: 72 | G171: 17 | H171: 22 | I171: 120-140 | J171: Loss of Rs.50/- | K171: =H171-F171 -> -50.00 | L171: 100.00 | M171: =(K171*N171)-100 -> -3850 | N171: 75 | O171: Successful | P171: 2021-08-25 | R171: H
A172: 40 | B172: 2021-08-25 | D172: HDFCBANK 1560 CE AUG | E172: Buy | F172: 7.75 | H172: 8.75 | I172: 20 | J172: Profit of Rs.1/- | K172: 1.00 | L172: 100.00 | M172: 450 | N172: 550 | O172: Neutral | P172: 2021-08-26 | R172: N
A173: 41 | B173: 2021-08-25 | D173: ASIANPAINT 3060 CE AUG | E173: Buy | F173: 14 | H173: 16 | I173: 25 | J173: Profit of Rs.2/- | K173: 2.00 | L173: 100.00 | M173: 500 | N173: 300 | O173: Neutral | P173: 2021-08-26 | R173: N
A174: 42 | B174: 2021-08-25 | D174: LT 1600 CE AUG | E174: Buy | F174: 7 | H174: 7 | I174: 15-17 | J174: Nuetral | K174: 0.00 | L174: 100.00 | M174: -100 | N174: 550 | O174: Neutral | P174: 2021-08-26 | R174: H
A175: 43 | B175: 2021-08-26 | D175: ASIANPAINT 3150 CE SEP | E175: Buy | F175: 48-50 | G175: 36 | I175: 65-70 | J175: Open | R175: H
A176: 44 | B176: 2021-08-26 | D176: RELIANCE 2260 CE SEP | E176: Buy | F176: 46-48 | G176: 29 | I176: 70-75 | J176: Open | R176: H
A177: 45 | B177: 2021-08-26 | D177: NIFTY 16700 CE 2-SEP | E177: Buy | F177: 55-59 | G177: 17 | I177: 120 | J177: Open | R177: H
A183: Techno -Funda (positional)
A184: Sr.no | B184: Date | D184: Company | E184: Rec | F184: Rec Price | G184: Stop Loss*** | H184: Call Closed At | I184: Target | J184: Remark | K184: Profit / Loss per Share/Lot | L184: All charges | M184: Net Gain / Loss % | N184: Status | O184: Closed Date
A185: 1 | B185: 2021-06-16 | D185: WHIRLPOOL | E185: Buy<> | F185: 2275 | G185: 2070 | H185: 2,070.00 | I185: 2600-2700 | J185: Loss of Rs.205/- | K185: =H185-F185 -> -205 | L185: =(F185*-0.8)/100 -> -18.20 | M185: =(K185+L185)/F185 -> -9.81% | N185: Unsuccessful | O185: 2021-08-11 | R185: H
A186: 2 | B186: 2021-08-12 | D186: SHARDACROP | E186: Buy | F186: 310-318 | G186: 284 | I186: 380-390 | J186: Open | R186: H
A188: CLBS = Closing Basis *** | F188: Reinitiated $
A189: Dividend adjusted <> | F189: Revised stoploss # | H189: .................
B191: Intrday Call
A192: Sr.no | B192: Date | D192: Company | E192: Rec | F192: Rec Price | G192: Stop Loss | H192: Call Closed At | I192: Target | J192: Remark | K192: Profit / Loss per Share/Lot | L192: Gain / Loss per Lot | M192: Lot | N192: All charges | O192: Net Gain / Loss % | P192: Status | Q192: Closed Date
B205: Investment Idea
A206: Sr.no | B206: Date | D206: Company | E206: Rec | F206: Rec Price | G206: Point of Review | H206: Close Rate | I206: Target | J206: Remark | K206: Profit / Loss per Share | L206: Gain / Loss % | M206: Status | N206: Closed Date
A207: 1 | B207: 2013-11-01 | D207: L&T Finance Holding | E207: Accu | F207: 82.00 | G207: - | H207: 100 | I207: 100.00 | J207: Target Achieved | K207: =H207-F207 -> 18.00 | L207: =K207/F207 -> 21.95% | M207: Successful | N207: 2016-10-14
A208: 2 | B208: 2014-06-04 | D208: Finolex Inds | E208: Buy | F208: 257.00 | G208: - | H208: 300 | I208: 300.00 | J208: Target Achieved | K208: 43.00 | L208: 16.73% | M208: Successful | N208: 2014-07-02
A209: 3 | B209: 2014-07-08 | D209: JK Cement | E209: Buy | F209: 393.00 | G209: - | H209: 468 | I209: 468.00 | J209: Target Achieved | K209: 75.00 | L209: 19.08% | M209: Successful | N209: 2014-08-12
A210: 4 | B210: 2014-08-06 | D210: Finolex Cables | E210: Buy | F210: 205.00 | G210: - | H210: 275 | I210: 250.00 | J210: Target Achieved | K210: 70.00 | L210: 34.15% | M210: Successful | N210: 2014-11-19
A211: 5 | B211: 2014-09-04 | D211: Exide Inds | E211: Buy | F211: 162.00 | G211: - | H211: 190 | I211: 190.00 | J211: Target Achieved | K211: 28.00 | L211: 17.28% | M211: Successful | N211: 2015-01-02
A212: 6 | B212: 2014-09-04 | D212: Deepak Nitrite | E212: Buy | F212: 75.00 | G212: - | H212: 91.5 | I212: 95-100 | J212: Profit of Rs.16.50/- | K212: 16.50 | L212: 22.00% | M212: Successful | N212: 2014-11-11
A213: 7 | B213: 2014-10-01 | D213: Mercks | E213: Buy | F213: 850.00 | G213: - | H213: 982.5 | I213: 1050.00 | J213: Profit of Rs.132.50/- | K213: 132.50 | L213: 15.59% | M213: Successful | N213: 2015-02-04
A214: 8 | B214: 2014-10-01 | D214: Grindwell Norton | E214: Buy | F214: 475.00 | G214: - | H214: 515 | I214: 600.00 | J214: Profit of Rs.40/- | K214: 40.00 | L214: 8.42% | M214: Successful | N214: 2014-10-27
A215: 9 | B215: 2014-10-01 | D215: Snowman Logistics | E215: Buy | F215: 86.00 | G215: - | H215: 99 | I215: 140.00 | J215: Profit of Rs.13.00/- | K215: 13.00 | L215: 15.12% | M215: Successful | N215: 2014-10-27
A216: 10 | B216: 2014-10-14 | D216: Birla Corp | E216: Buy | F216: 496.60 | G216: - | H216: 621 | I216: 580.00 | J216: Target Achieved | K216: 124.40 | L216: 25.05% | M216: Successful | N216: 2016-08-23
A217: 11 | B217: 2014-10-14 | D217: Ultratech Cem | E217: Buy | F217: 2481.90 | G217: - | H217: 2840 | I217: 2870.00 | J217: Profit of Rs.358.10/- | K217: 358.10 | L217: 14.43% | M217: Successful | N217: 2015-01-13
A218: 12 | B218: 2014-10-16 | D218: Sintex Inds | E218: Buy | F218: 84.50 | G218: - | H218: 93 | I218: 110.00 | J218: Profit of Rs.8.50/- | K218: 8.50 | L218: 10.06% | M218: Successful | N218: 2014-10-27
A219: 13 | B219: 2014-10-16 | D219: HSIL | E219: Buy | F219: 401.00 | G219: - | H219: 428 | I219: 450.00 | J219: Profit of Rs.27.00/- | K219: 27.00 | L219: 6.73% | M219: Successful | N219: 2015-01-16
A220: 14 | B220: 2014-10-16 | D220: Eveready Inds | E220: Buy | F220: 101.00 | G220: - | H220: 112 | I220: 120.00 | J220: Profit of Rs.11.00/- | K220: 11.00 | L220: 10.89% | M220: Successful | N220: 2014-10-27
A221: 15 | B221: 2014-11-11 | D221: Pennar Inds | E221: Buy | F221: 59.00 | G221: - | H221: 76 | I221: 76.00 | J221: Target Achieved | K221: 17.00 | L221: 28.81% | M221: Successful | N221: 2017-10-24
A222: 16 | B222: 2014-11-11 | D222: Snowman Logistics | E222: Buy | F222: 99.00 | G222: - | H222: 120 | I222: 120.00 | J222: Profit of Rs.21/- | K222: 21.00 | L222: 21.21% | M222: Successful | N222: 2014-11-17
A223: 17 | B223: 2014-11-13 | D223: Dharamsi Morarji Chem | E223: Buy | F223: 22.00 | G223: - | H223: 33.55 | I223: 32.00 | J223: Profit of Rs 11.55/- | K223: 11.55 | L223: 52.50% | M223: Successful | N223: 2015-07-03
A224: 18 | B224: 2014-12-03 | D224: Tatachem | E224: Buy | F224: 440.00 | G224: - | H224: 520 | I224: 520.00 | J224: Profit of Rs 80.00/- | K224: 80.00 | L224: 18.18% | M224: Successful | N224: 2015-07-23
A225: 19 | B225: 2014-12-03 | D225: Advanta | E225: Buy | F225: 360.00 | G225: - | H225: 427 | I225: 425.00 | J225: Profit of Rs.67.00/- | K225: 67.00 | L225: 18.61% | M225: Successful | N225: 2015-02-23
A226: 20 | B226: 2015-01-08 | D226: GDL | E226: Buy | F226: 360.00 | G226: - | H226: 455 | I226: 420.00 | J226: Profit of Rs.95.00/- | K226: 95.00 | L226: 26.39% | M226: Successful | N226: 2015-01-20
A227: 21 | B227: 2015-01-08 | D227: NRB Bearing | E227: Buy | F227: 130.00 | H227: 175.5 | I227: 165.00 | J227: Profit of Rs 45.50/- | K227: 45.50 | L227: 35.00% | M227: Successful | N227: 2017-12-19
A228: 22 | B228: 2015-02-05 | D228: GSFC | E228: Accu | F228: 98.00 | H228: 120 | I228: 120.00 | J228: Target Achieved | K228: 22.00 | L228: 22.45% | M228: Successful | N228: 2017-01-18
A229: 23 | B229: 2015-02-05 | D229: Sundrmfast | E229: Accu | F229: 196.00 | H229: 262 | I229: 255.00 | J229: Target Achieved | K229: 66.00 | L229: 33.67% | M229: Successful | N229: 2016-08-17
A230: 24 | B230: 2015-03-04 | D230: GPPL | E230: Accu | F230: 235 | H230: 77.00 | I230: 280-285 | J230: Loss of Rs.158/- | K230: -158.00 | L230: -67.23% | M230: Unsuccessful | N230: 2019-02-26
A231: 25 | B231: 2015-03-04 | D231: ORIENTCEM | E231: Accu | F231: 185.00 | H231: 224 | I231: 220-225 | J231: Target Achieved | K231: 39.00 | L231: 21.08% | M231: Successful | N231: 2016-10-04
A232: 26 | B232: 2015-03-27 | D232: PFS | E232: Accu | F232: 49.5 | H232: 15.85 | I232: 67.00 | J232: Loss of Rs.33.65/- | K232: -33.65 | L232: -68% | M232: Unsuccessful | N232: 2019-06-11
A233: 27 | B233: 2015-03-30 | D233: Walchandnagar Ind Ltd | E233: Accu | F233: 183.50 | H233: 219 | I233: 218.00 | J233: Profit of Rs.35.50/- | K233: 35.50 | L233: 19.35% | M233: Successful | N233: 2015-04-09
A234: 28 | B234: 2015-04-20 | D234: Kalpataru Power Transmission Ltd | E234: Accu | F234: =(227+237)/2 -> 232.00 | H234: 298 | I234: 298.00 | J234: Target Achieved | K234: 66.00 | L234: 28.45% | M234: Successful | N234: 2017-03-29
A235: 29 | B235: 2015-05-04 | D235: Mastek Ltd | E235: Buy | F235: 385.00 | H235: =212.5+331 -> 543.5 | I235: 510.00 | J235: Profit of Rs 158.50/- | K235: 158.50 | L235: 41.17% | M235: Successful | N235: 2015-08-19
A236: 30 | B236: 2015-05-04 | D236: Suprajit Eng | E236: Buy | F236: 115.50 | H236: 146 | I236: 142.00 | J236: Profit of Rs 30.50/- | K236: 30.50 | L236: 26.41% | M236: Successful | N236: 2015-07-17
A237: 31 | B237: 2015-05-27 | D237: TCI | E237: Buy | F237: 237.50 | H237: 279.5 | I237: 278.00 | J237: Target Achieved | K237: 42.00 | L237: 17.68% | M237: Successful | N237: 2015-08-06
A238: 32 | B238: 2015-06-19 | D238: HSIL | E238: Accu | F238: 340.00 | H238: 448 | I238: 448.00 | J238: Target Achieved | K238: 108.00 | L238: 31.76% | M238: Successful | N238: 2017-10-10
A239: 33 | B239: 2015-07-06 | D239: Capital First | E239: Accu | F239: 390.00 | H239: 460 | I239: 460.00 | J239: Target Achieved | K239: 70.00 | L239: 17.95% | M239: Successful | N239: 2016-04-18
A240: 34 | B240: 2015-07-10 | D240: Dolphin OffShore | E240: Accu | F240: 122.5 | H240: 61.00 | I240: 172.00 | J240: Loss of Rs.61.50/- | K240: -61.50 | L240: -50.20% | M240: Unsuccessful | N240: 2018-08-21
A241: 35 | B241: 2015-08-03 | D241: Allcargo logistics | E241: Accu | F241: 297.50 | H241: 350 | I241: 360.00 | J241: Profit of Rs 52.50/- | K241: 52.50 | L241: 17.65% | M241: Successful | N241: 2015-08-16
A242: 36 | B242: 2015-08-03 | D242: Camline Fine | E242: Accu | F242: 115.50 | H242: 149 | I242: 140.00 | J242: Profit of Rs 33.50/- | K242: 33.50 | L242: 29.00% | M242: Successful | N242: 2017-01-05
A243: 37 | B243: 2015-09-04 | D243: TCI | E243: Accu | F243: 226.00 | H243: 292 | I243: 292.00 | J243: Target Achieved | K243: 66.00 | L243: 29.20% | M243: Successful | N243: 2015-10-09
... 132 more rows
